{"text_format":"1","workbook":"xlsx","n_sheets":2,"sheets":["Customer Readme","Jetson TK1 Configuration"],"not_rendered":{"charts":0,"images":1,"macros":1,"external_links":0,"defined_names":31,"comments":1,"pivot_tables":0},"unopened":[],"bounds":{"document_bytes":16777216,"sheet_cells":100000,"rows_first":2000,"rows_last":500,"rows_between":2000,"halvings":0,"cell_chars":16384,"cell_head_chars":4096},"cells_cut":0,"cells_raw":0,"read":"whole","date_system":"1900"}

{"sheet":"Customer Readme","index":0,"n_rows":35,"n_cols":4,"rows_kept":35,"cut":false,"hidden":false,"merged":[[34,1,34,3],[12,3,12,6],[13,3,13,6],[14,3,14,6],[15,3,15,6],[16,3,16,6],[23,1,23,3],[25,1,25,3],[26,1,26,3],[27,1,27,3],[31,1,31,3],[32,1,32,3],[18,3,18,8],[20,3,20,8],[21,3,21,6]]}
[]
[]
[]
[]
[]
[]
[]
[]
[]
[null,"Revision History"]
[null,"Date","Revision","Description"]
[null,null,"v01","Initial Release"]
[null,null,"v02","Updated macro to configure the DP_HPD pin and properly set the VIH/VIL levels for pads that are 5V tolerant\nUpdated DSC Package\nUpdated POR values for CLK_REQ2, CLK_REQ3, and CLK3_OUT."]
[null,null,"V03","Updated Clamshell and Tablet Example Usage"]
[null,null,"V04","Removed KBC functions\nHighlight functions that require Nvidia approval before use\nUART2_TXD and UART2_RXD function IR3_TXD and IR3_RXD has been renamed to UB3_TXD and UB3_RXD\nFixed error in the configuration columns that stated USB3_TX1/RX1 is not available in DSC"]
[null,null,"V05","Macro Updated to Generate DT File"]
[null,null,"V06","Marked functions on the MID package that need that require Nvidia approval before use\nFixed Issue where SDMMCx_CLK were not working"]
[null,null,"V07","Input only pins will have their output drivers disabled."]
[null,null,"V08","GPIO_PG0, GPIO_PG1, GPIO_PG2, GPIO_PG3, GPIO_PG4 set to Input GPIO because they are used only for Boot and RAM CODE straps. \nUpdated macro to remove nvidia,low-power-mode entry. Feature is deprecated."]
[null,null,"V09","DAP_MCLK1_REQ set to GPIO, Drive 1 to keep the SATA power on by default."]
[null,null,"V10","Added CSI_CD/DSI_B Muxing Option\nDisabling int PU on JTAG_TCK and using external 100K PD"]
[null,null,"V11","TEGRA_PIN_DRIVE_HIGH_SPEED_MODE_ENABLE changed to TEGRA_PIN_ENABLE.\nTEGRA_PIN_DRIVE_SCHMITT_DISABLE changed to TEGRA_PIN_DISABLE.\nRemoved unused option for MIPI_PAD_CTRL_DSI_B"]
[]
[null,"README"]
[]
[null,"This spreadsheet is a companion to the TK1 datasheet.  It is designed to help system designers specify the pinmux configuration for each new system design."]
[null,"The only cells that need to be edited are the orange highlighted cells on the MPIO worksheet."]
[null,"This spreadsheet automatically highlights many kinds of pinmux configuration problem.  Errors are highlighted in pinkish-red on the MPIO, Signals, or Controllers worksheets.  This spreadsheet highlights the following problems:"]
[null,null,"1) failure to select a pinmux option for a given ball"]
[null,null,"2) bringing out the same signal on more than one ball"]
[null,null,"3) bringing out signals from more than one interface for a single controller"]
[]
[]
[null,"Notice"]
[null,"ALL NVIDIA DESIGN SPECIFICATIONS, REFERENCE BOARDS, FILES, DRAWINGS, DIAGNOSTICS, LISTS, AND OTHER DOCUMENTS (TOGETHER AND SEPARATELY, “MATERIALS”) ARE BEING PROVIDED “AS IS.” NVIDIA MAKES NO WARRANTIES, EXPRESSED, IMPLIED, STATUTORY, OR OTHERWISE WITH RESPECT TO THE MATERIALS, AND EXPRESSLY DISCLAIMS ALL IMPLIED WARRANTIES OF NONINFRINGEMENT, MERCHANTABILITY, AND FITNESS FOR A PARTICULAR PURPOSE.\nInformation furnished is believed to be accurate and reliable. However, NVIDIA Corporation assumes no responsibility for the consequences of use of such information or for any infringement of patents or other rights of third parties that may result from its use. No license is granted by implication or otherwise under any patent or patent rights of NVIDIA Corporation. Specifications mentioned in this publication are subject to change without notice. This publication supersedes and replaces all information previously supplied. NVIDIA Corporation products are not authorized for use as critical components in life support devices or systems without express written approval of NVIDIA Corporation.\n"]

{"sheet":"Jetson TK1 Configuration","index":1,"n_rows":487,"n_cols":47,"rows_kept":487,"cut":false,"hidden":false,"merged":[[443,46,446,46],[493,1,493,9],[482,43,483,43],[482,44,483,44],[482,45,483,45],[482,46,483,46],[485,43,486,43],[485,44,486,44],[485,45,486,45],[485,46,486,46],[439,43,440,43],[439,44,440,44],[439,45,440,45],[439,46,440,46],[433,45,436,45],[433,43,436,43],[433,44,436,44],[433,46,436,46],[474,43,480,43],[474,44,480,44],[474,45,480,45],[474,46,480,46],[447,43,450,43],[447,44,450,44],[447,45,450,45],[447,46,450,46],[443,43,446,43],[451,44,466,44],[451,45,466,45],[451,46,466,46],[455,43,458,43],[463,43,466,43],[443,44,446,44],[443,45,446,45],[416,43,424,43],[416,44,424,44],[416,46,424,46],[427,43,428,43],[427,44,428,44],[427,45,428,45],[427,46,428,46],[416,45,424,45],[437,43,438,43],[437,44,438,44],[437,45,438,45],[437,46,438,46],[233,43,364,43],[233,44,364,44],[233,45,364,45],[233,46,364,46],[366,45,375,45],[376,45,379,45],[213,46,216,46],[226,43,227,43],[226,44,227,44],[226,46,227,46],[380,44,399,44],[380,45,399,45],[380,46,399,46],[403,43,413,43],[403,44,413,44],[403,45,413,45],[403,46,413,46],[366,43,375,43],[366,44,375,44],[366,46,375,46],[376,43,379,43],[376,44,379,44],[376,46,379,46],[180,43,185,43],[180,44,185,44],[180,45,185,45],[180,46,185,46],[196,43,199,43],[196,44,199,44],[196,45,199,45],[196,46,199,46],[200,43,201,43],[200,44,201,44],[200,45,201,45],[200,46,201,46],[209,43,212,43],[209,44,212,44],[209,45,212,45],[209,46,212,46],[220,43,221,43],[220,44,221,44],[220,45,221,45],[220,46,221,46],[226,45,227,45],[213,43,216,43],[213,44,216,44],[213,45,216,45],[87,44,88,44],[87,45,88,45],[87,46,88,46],[92,44,93,44],[92,45,93,45],[92,46,93,46],[99,44,100,44],[99,45,100,45],[99,46,100,46],[78,44,80,44],[78,45,80,45],[78,46,80,46],[63,43,66,43],[63,44,66,44],[63,45,66,45],[63,46,66,46],[71,44,74,44],[71,45,74,45],[71,46,74,46],[78,43,80,43],[61,43,62,43],[61,44,62,44],[61,45,62,45],[61,46,62,46],[49,43,50,43],[49,44,50,44],[49,45,50,45],[49,46,50,46],[45,43,47,43],[45,44,47,44],[45,45,47,45],[45,46,47,46],[5,44,7,44],[5,45,7,45],[5,46,7,46],[11,44,14,44],[11,45,14,45],[11,46,14,46],[30,44,33,44],[30,45,33,45],[15,43,18,43],[15,44,18,44],[15,45,18,45],[15,46,18,46],[30,46,33,46],[5,10,5,14],[5,15,5,19],[5,20,5,21],[5,23,5,28],[5,30,5,38],[5,43,7,43],[0,1,0,9],[1,1,1,9],[2,1,2,9],[3,1,3,9],[4,1,4,9],[5,1,5,3],[5,5,5,9],[6,41,6,42],[102,43,103,43],[102,44,104,44],[102,45,104,45],[102,46,104,46],[104,43,105,43],[106,44,107,44],[106,45,107,45],[106,46,107,46],[109,43,110,43],[109,44,110,44],[109,45,110,45],[109,46,110,46],[111,43,112,43],[111,46,112,46],[115,44,124,44],[115,45,124,45],[115,46,124,46],[429,43,430,43],[429,44,430,44],[429,45,430,45],[429,46,430,46],[137,43,148,43],[137,44,148,44],[137,45,148,45],[137,46,148,46],[126,43,135,43],[126,44,135,44],[126,45,135,45],[126,46,135,46],[202,44,208,44],[202,45,208,45],[202,46,208,46],[178,43,179,43],[178,44,179,44],[178,45,179,45],[178,46,179,46]]}
[null,null,null,null,null,null,null,null,null,null,null,null,null,null,null,null,null,null,null,null,null,null,null,null,null,null,null,null,null,null,null,null,"Color Code",null,null,null,null,null,null,null,null,null,null,"SFIO"]
[null,"Note: 1) Please follow instructions on Sheet \"Customer Readme\"",null,null,null,null,null,null,null,null,null,null,null,null,null,null,null,null,null,null,null,null,null,null,null,null,null,null,null,null,null,null,"Error",null,null,null,null,null,null,null,null,null,null,"GPIO"]
[null,null,null,null,null,null,null,null,null,null,null,null,null,null,null,null,null,null,null,null,null,null,null,null,null,null,null,null,null,null,null,null,"Warning",null,null,null,null,null,null,null,null,null,null,"STRAP"]
[null,null,null,null,null,null,null,null,null,null,null,null,null,null,null,null,null,null,null,null,null,null,null,null,null,null,null,null,null,null,null,null,null,null,null,null,null,null,null,null,null,null,null,"UNUSED"]
[]
[null,"Ball Locations",null,null,null,"Pin Muxing",null,null,null,null,"Allowed Pin Direction",null,null,null,null,"Pin Groups",null,null,null,null,"General",null,"POR","Customer Configuration",null,null,null,null,null,"Error Check","Filled in by Customers",null,null,null,null,null,null,null,null,null,null,null,null,"\nUse-Case 1\nJetson TK1","Use-Case 2","Use-Case 3","Use-Case 4"]
["Ball Name","MID","DSC","POP","Unused","GPIO","SFIO0","SFIO1","SFIO2","SFIO3","GPIO","SFIO0","SFIO1","SFIO2","SFIO3","F0","F1","F2","F3","FS","Power Rail","Wake / Strap","Pin State","Pin Group","SDMMC DAT/CMD","PUPD","Tristate","E_Input","GPIO Init Value","Pin Direction Checker","Customer Usage","Pin Direction","Req. Initial State","Wake Pin","Lock","High or Normal VIL/VIH","Ext Pull Up Value (Ω)","Ext Pull Down Value (Ω)","Req. Deep Sleep State","IO Block Voltage","Customer Usage    Description or Net Names","Expansion Header"]
["MPIO",null,null,null,null,null,null,null,null,null,null,null,null,null,null,null,null,null,null,null,null,null,null,null,null,null,null,null,null,null,null,null,null,null,null,null,null,null,null,null,null,"Connector","Pin #"]
["AUDIO",null,null,null,null,null,null,null,null,null,null,null,null,null,null,null,null,null,null,null,null,null,null,null,null,null,null,null,null,null,null,null,null,null,null,null,null,null,null,"1.8V"]
["DAP_MCLK1","L29","K34","K33","unused_DAP_MCLK1","GPIO3_PW.04","extperiph1_clk","","","","B","O","B","","","EXTPERIPH1","DAP2","RSVD3","RSVD4","RSVD3","vddio_audio","","pd",{"$f":"IF(OR($AE10=\"\",$AE10=$E10),$T10,IF($AE10=$F10,SUBSTITUTE(SUBSTITUTE($AE10,\"GPIO3_\",\"GPIO_\"),\".0\",\"\"),IF($AE10=$G10,$P10,IF($AE10=$H10,$Q10,IF($AE10=$I10,$R10,IF($AE10=$J10,$S10,\"INVALID\"))))))","v":"EXTPERIPH1"},null,{"$f":"IF(AND(OR($AG10=\"Int PU\",$AG10=\"Int PD\"),OR(AND($AK10<>\"\",$AK10<>\"0\"),AND($AL10<>\"\",$AL10<>\"0\"))),\"INVALID\",IF(OR($AE10=$E10,$AG10=\"Int PD\"),\"PULL_DOWN\",IF(OR($AG10=\"Int PU\",AND($Y10=\"YES\",OR($AK10=\"\",$AK10=\"0\"),OR($AL10=\"\",$AL10=\"0\"),OR($AF10=\"Input\",$AF10=\"Bidirectional\"))),\"PULL_UP\",\"NORMAL\")))","v":"NORMAL"},{"$f":"IF(OR($AE10=$E10,$AF10=\"Input\"),\"TRISTATE\",\"NORMAL\")","v":"NORMAL"},{"$f":"IF(OR($AE10=$E10,$AF10=\"Output\"),\"DISABLE\",\"ENABLE\")","v":"DISABLE"},{"$f":"IF($AE10<>$F10,\"N/A\",IF($AG10=\"Drive 1\", \"1\", \"0\"))","v":"N/A"},{"$f":"IF(AND($AE10=$F10,OR(AND($K10=\"I\",OR($AF10=\"Output\",$AF10=\"Bidirectional\")),AND($K10=\"O\",OR($AF10=\"Input\",$AF10=\"Bidirectional\")))),\"INVALID\",IF(AND($AE10=$G10,OR(AND($L10=\"I\",OR($AF10=\"Output\",$AF10=\"Bidirectional\")),AND($L10=\"O\",OR($AF10=\"Input\",$AF10=\"Bidirectional\")))),\"INVALID\",IF(AND($AE10=$H10,OR(AND($M10=\"I\",OR($AF10=\"Output\",$AF10=\"Bidirectional\")),AND($M10=\"O\",OR($AF10=\"Input\",$AF10=\"Bidirectional\")))),\"INVALID\",IF(AND($AE10=$I10,OR(AND($N10=\"I\",OR($AF10=\"Output\",$AF10=\"Bidirectional\")),AND($N10=\"O\",OR($AF10=\"Input\",$AF10=\"Bidirectional\")))),\"INVALID\",IF(AND($AE10=$J10,OR(AND($O10=\"I\",OR($AF10=\"Output\",$AF10=\"Bidirectional\")),AND($O10=\"O\",OR($AF10=\"Input\",$AF10=\"Bidirectional\")))),\"INVALID\",\"VALID\")))))","v":"VALID"},"extperiph1_clk","Output","",null,null,null,"","","",null,"DAP_MCLK1_R",null,null,"CODEC MCLK","CODEC MCLK","CODEC MCLK","CODEC MCLK"]
["DAP_MCLK1_REQ","M31",null,null,"unused_DAP_MCLK1_REQ","GPIO3_PEE.02","","","SATA_DEV_SLP","","B","I","B","O","","DAP","DAP1","SATA","RSVD4","RSVD4","vddio_audio","","pd","RSVD4",null,"PULL_DOWN",{"$f":"IF(OR($AE11=$E11,$AF11=\"Input\"),\"TRISTATE\",\"NORMAL\")","v":"TRISTATE"},"DISABLE","N/A","VALID","unused_DAP_MCLK1_REQ","Not Assigned","Z",null,null,null,"","10K","",null,"Modified; Unused",null,null,"SATA Device Sleep","SATA Device Sleep","SATA Device Sleep","SATA Device Sleep"]
["DAP1_DIN","H28","H34","J35","unused_DAP1_DIN","GPIO3_PN.01","I2S0_SDATA_IN","","","","B","I","B","B","","I2S0","HDA","GMI","RSVD4","RSVD4","vddio_audio","","pd","RSVD4",null,"PULL_DOWN","TRISTATE","DISABLE","N/A","VALID","unused_DAP1_DIN","Not Assigned","",null,null,null,"","","",null,"TP_DAP1_DIN",null,null,null,"PCM(Modem)","PCM(Modem)","PCM(Modem)"]
["DAP1_DOUT","L28","H33","J36","unused_DAP1_DOUT","GPIO3_PN.02","I2S0_SDATA_OUT","","","SATA_LED_ACTIVE","B","B","B","B","O","I2S0","HDA","GMI","SATA","I2S0","vddio_audio","wake30","pd","I2S0",null,"PULL_DOWN","TRISTATE","DISABLE","N/A","VALID","unused_DAP1_DOUT","Not Assigned","Z","No",null,null,"","","",null,"Modified; Unused",null,null,"SATA LED"]
["DAP1_FS","J28","H35","G36","unused_DAP1_FS","GPIO3_PN.00","I2S0_LRCK","","","","B","B","B","B","","I2S0","HDA","GMI","RSVD4","RSVD4","vddio_audio","","pd","RSVD4",null,"PULL_DOWN","TRISTATE","DISABLE","N/A","VALID","unused_DAP1_FS","Not Assigned","",null,null,null,"","","",null,"TP_DAP1_FS"]
["DAP1_SCLK","P31","G33","M34","unused_DAP1_SCLK","GPIO3_PN.03","I2S0_SCLK","","","","B","B","B","B","","I2S0","HDA","GMI","RSVD4","RSVD4","vddio_audio","","pd","RSVD4",null,"PULL_DOWN","TRISTATE","DISABLE","N/A","VALID","unused_DAP1_SCLK","Not Assigned","",null,null,null,"","","",null,"TP_DAP1_SCLK"]
["DAP2_DIN","L30","J36","K34","unused_DAP2_DIN","GPIO3_PA.04","I2S1_SDATA_IN","","","","B","I","B","O","","I2S1","HDA","GMI","RSVD4","RSVD4","vddio_audio","","pd","I2S1",null,"NORMAL","TRISTATE","ENABLE","N/A","VALID","I2S1_SDATA_IN","Input","",null,null,null,"","","",null,"DAP2_DIN",null,null,"Codec I2S\n(ALC5639)","Audio Codec","Audio Codec","Audio Codec"]
["DAP2_DOUT","J29","H36","J34","unused_DAP2_DOUT","GPIO3_PA.05","I2S1_SDATA_OUT","","","","B","B","B","O","","I2S1","HDA","GMI","RSVD4","RSVD4","vddio_audio","","pd","I2S1",null,"NORMAL","NORMAL","DISABLE","N/A","VALID","I2S1_SDATA_OUT","Output","",null,null,null,"","","",null,"DAP2_DOUT"]
["DAP2_FS","R30","K36","M33","unused_DAP2_FS","GPIO3_PA.02","I2S1_LRCK","","","","B","B","B","O","","I2S1","HDA","GMI","RSVD4","RSVD4","vddio_audio","","pd","I2S1",null,"NORMAL","NORMAL","DISABLE","N/A","VALID","I2S1_LRCK","Output","",null,null,null,"","","",null,"DAP2_FS"]
["DAP2_SCLK","M29","K35","L34","unused_DAP2_SCLK","GPIO3_PA.03","I2S1_SCLK","","","","B","B","B","O","","I2S1","HDA","GMI","RSVD4","RSVD4","vddio_audio","","pd","I2S1",null,"NORMAL","NORMAL","DISABLE","N/A","VALID","I2S1_SCLK","Output","",null,null,null,"","","",null,"DAP2_SCLK_R"]
["GPIO_X4_AUD","R28","K38","R35","unused_GPIO_X4_AUD","GPIO3_PX.04","","","","","B","O","B","B","B","GMI","SPI1","SPI2","DAP2","GMI","vddio_audio","","pd","GPIO_PX4",null,"NORMAL","TRISTATE","ENABLE","0","VALID","GPIO3_PX.04","Input","Z",null,null,null,"100K","100K","",null,"BD_ID_STRAP3",null,null,"Board ID Strap 3","Board ID Strap 3","Board ID Strap 3","Board ID Strap 3"]
["GPIO_X5_AUD","R31","L34","N33","unused_GPIO_X5_AUD","GPIO3_PX.05","","","","","B","O","B","B","","GMI","SPI1","SPI2","RSVD4","RSVD4","vddio_audio","","pu","RSVD4",null,"PULL_DOWN","TRISTATE","DISABLE","N/A","VALID","unused_GPIO_X5_AUD","Not Assigned","",null,null,null,"","","",null,""]
["GPIO_X6_AUD","N31","H38","K35","unused_GPIO_X6_AUD","GPIO3_PX.06","","","","","B","B","B","B","O","SPI6","SPI1","SPI2","GMI","GMI","vddio_audio","","pu","GMI",null,"PULL_DOWN","TRISTATE","DISABLE","N/A","VALID","unused_GPIO_X6_AUD","Not Assigned","",null,null,null,"","","",null,""]
["GPIO_X7_AUD","P28","L38","N35","unused_GPIO_X7_AUD","GPIO3_PX.07","","","","","B","","B","B","","RSVD1","SPI1","SPI2","RSVD4","RSVD1","vddio_audio","","pd","RSVD1",null,"PULL_DOWN","TRISTATE","DISABLE","N/A","VALID","unused_GPIO_X7_AUD","Not Assigned","Z",null,null,null,"","","",null,"Modified; Unused",null,null,"WiFi Enable  ","WiFi Enable  ","WiFi Enable  ","WiFi Enable  "]
["GPIO_W2_AUD","M28","L35","R34","unused_GPIO_W2_AUD","GPIO3_PW.02","","","","","B","B","","B","B","SPI6","RSVD2","SPI2","I2C1","RSVD2","vddio_audio","wake12","pu","RSVD2",null,"PULL_DOWN","TRISTATE","DISABLE","N/A","VALID","unused_GPIO_W2_AUD","Not Assigned","","No",null,null,"","","",null,""]
["GPIO_W3_AUD","J30","H37","J33","unused_GPIO_W3_AUD","GPIO3_PW.03","","","","","B","B","B","B","B","SPI6","SPI1","SPI2","I2C1","SPI6","vddio_audio","wake11","pu","SPI6",null,"PULL_DOWN","TRISTATE","DISABLE","N/A","VALID","unused_GPIO_W3_AUD","Not Assigned","","No",null,null,"","","",null,"TP_TOUCH_IRQ_L"]
["DVFS_PWM","P30","L36","M35","unused_DVFS_PWM","GPIO3_PX.00","","CLDVFS_PWM","","","B","B","O","O","","SPI6","CLDVFS","GMI","RSVD4","RSVD4","vddio_audio","","pd","CLDVFS",null,"NORMAL","NORMAL","DISABLE","N/A","VALID","CLDVFS_PWM","Output","",null,null,null,"","","",null,"DVFS_PWM",null,null,"CLDVFS PWM","CLDVFS PWM","CLDVFS PWM","CLDVFS PWM"]
["GPIO_X1_AUD","P29","L37","N36","unused_GPIO_X1_AUD","GPIO3_PX.01","","","","","B","B","","O","","SPI6","RSVD2","GMI","RSVD4","RSVD2","vddio_audio","","pd","GPIO_PX1",null,"NORMAL","TRISTATE","ENABLE","0","VALID","GPIO3_PX.01","Input","Z",null,null,null,"100K","100K","",null,"BD_ID_STRAP2",null,null,"Board ID Strap 2","Board ID Strap 2","Board ID Strap 2","Board ID Strap 2"]
["DVFS_CLK","R29","M36","N34","unused_DVFS_CLK","GPIO3_PX.02","","CLDVFS_CLK","","","B","B","O","O","","SPI6","CLDVFS","GMI","RSVD4","RSVD4","vddio_audio","","pu","CLDVFS",null,"NORMAL","NORMAL","DISABLE","N/A","VALID","CLDVFS_CLK","Output","",null,null,null,"","","",null,"DVFS_CLK",null,null,"CLDVFS CLK","CLDVFS CLK","CLDVFS CLK","CLDVFS CLK"]
["GPIO_X3_AUD","M30","K37","M36","unused_GPIO_X3_AUD","GPIO3_PX.03","","","","","B","B","B","O","","SPI6","SPI1","GMI","RSVD4","RSVD4","vddio_audio","","pu","RSVD4",null,"PULL_DOWN","TRISTATE","DISABLE","N/A","VALID","unused_GPIO_X3_AUD","Not Assigned","",null,null,null,"","","",null,"TP_ALS_IRQ_L"]
["BB",null,null,null,null,null,null,null,null,null,null,null,null,null,null,null,null,null,null,null,null,null,null,null,null,null,null,null,null,null,null,null,null,null,null,null,null,null,null,"1.8V"]
["DAP3_DIN","AF17","AU31","AM24","unused_DAP3_DIN","GPIO3_PP.01","I2S2_SDATA_IN","","","","B","I","B","O","I","I2S2","SPI5","DISPLAYA","DISPLAYB","I2S2","vddio_bb","","pd",{"$f":"IF(OR($AE31=\"\",$AE31=$E31),$T31,IF($AE31=$F31,SUBSTITUTE(SUBSTITUTE($AE31,\"GPIO3_\",\"GPIO_\"),\".0\",\"\"),IF($AE31=$G31,$P31,IF($AE31=$H31,$Q31,IF($AE31=$I31,$R31,IF($AE31=$J31,$S31,\"INVALID\"))))))","v":"I2S2"},null,{"$f":"IF(AND(OR($AG31=\"Int PU\",$AG31=\"Int PD\"),OR(AND($AK31<>\"\",$AK31<>\"0\"),AND($AL31<>\"\",$AL31<>\"0\"))),\"INVALID\",IF(OR($AE31=$E31,$AG31=\"Int PD\"),\"PULL_DOWN\",IF(OR($AG31=\"Int PU\",AND($Y31=\"YES\",OR($AK31=\"\",$AK31=\"0\"),OR($AL31=\"\",$AL31=\"0\"),OR($AF31=\"Input\",$AF31=\"Bidirectional\"))),\"PULL_UP\",\"NORMAL\")))","v":"PULL_DOWN"},{"$f":"IF(OR($AE31=$E31,$AF31=\"Input\"),\"TRISTATE\",\"NORMAL\")","v":"TRISTATE"},{"$f":"IF(OR($AE31=$E31,$AF31=\"Output\"),\"DISABLE\",\"ENABLE\")","v":"DISABLE"},{"$f":"IF($AE31<>$F31,\"N/A\",IF($AG31=\"Drive 1\", \"1\", \"0\"))","v":"N/A"},{"$f":"IF(AND($AE31=$F31,OR(AND($K31=\"I\",OR($AF31=\"Output\",$AF31=\"Bidirectional\")),AND($K31=\"O\",OR($AF31=\"Input\",$AF31=\"Bidirectional\")))),\"INVALID\",IF(AND($AE31=$G31,OR(AND($L31=\"I\",OR($AF31=\"Output\",$AF31=\"Bidirectional\")),AND($L31=\"O\",OR($AF31=\"Input\",$AF31=\"Bidirectional\")))),\"INVALID\",IF(AND($AE31=$H31,OR(AND($M31=\"I\",OR($AF31=\"Output\",$AF31=\"Bidirectional\")),AND($M31=\"O\",OR($AF31=\"Input\",$AF31=\"Bidirectional\")))),\"INVALID\",IF(AND($AE31=$I31,OR(AND($N31=\"I\",OR($AF31=\"Output\",$AF31=\"Bidirectional\")),AND($N31=\"O\",OR($AF31=\"Input\",$AF31=\"Bidirectional\")))),\"INVALID\",IF(AND($AE31=$J31,OR(AND($O31=\"I\",OR($AF31=\"Output\",$AF31=\"Bidirectional\")),AND($O31=\"O\",OR($AF31=\"Input\",$AF31=\"Bidirectional\")))),\"INVALID\",\"VALID\")))))","v":"VALID"},"unused_DAP3_DIN","Not Assigned","",null,null,null,"","","",null,"",null,null,null,"I2S","I2S","I2S"]
["DAP3_DOUT","AE17","AU29","AM25","unused_DAP3_DOUT","GPIO3_PP.02","I2S2_SDATA_OUT","","","","B","B","B","O","","I2S2","SPI5","DISPLAYA","RSVD4","RSVD4","vddio_bb","","pd","RSVD4",null,"PULL_DOWN",{"$f":"IF(OR($AE32=$E32,$AF32=\"Input\"),\"TRISTATE\",\"NORMAL\")","v":"TRISTATE"},"DISABLE","N/A","VALID","unused_DAP3_DOUT","Not Assigned","Z",null,null,null,"","","",null,"Modified; Unused","J3A1",27,"Enable VDD to Backlight Driver"]
["DAP3_FS","AE15","AV31","AT25","unused_DAP3_FS","GPIO3_PP.00","I2S2_LRCK","","","","B","B","B","I","O","I2S2","SPI5","DISPLAYA","DISPLAYB","I2S2","vddio_bb","","pd","I2S2",null,"PULL_DOWN","TRISTATE","DISABLE","N/A","VALID","unused_DAP3_FS","Not Assigned","",null,null,null,"","","",null,""]
["DAP3_SCLK","AJ17","AU28","AN24","unused_DAP3_SCLK","GPIO3_PP.03","I2S2_SCLK","","","","B","B","B","","O","I2S2","SPI5","RSVD3","DISPLAYB","RSVD3","vddio_bb","","pd","RSVD3",null,"PULL_DOWN","TRISTATE","DISABLE","N/A","VALID","unused_DAP3_SCLK","Not Assigned","",null,null,null,"","","",null,""]
["GPIO_PV0","AG17","AU32","AM22","unused_GPIO_PV0","GPIO3_PV.00","","","","","B","","","","","RSVD1","RSVD2","RSVD3","RSVD4","RSVD1","vddio_bb","wake24","z","GPIO_PV0",null,"NORMAL","TRISTATE","ENABLE","0","VALID","GPIO3_PV.00","Input","","No",null,null,"10K","","",null,"GPIO_PV0"]
["GPIO_PV1","AD15","AV32","AP25","unused_GPIO_PV1","GPIO3_PV.01","","","","","B","","","","","RSVD1","RSVD2","RSVD3","RSVD4","RSVD1","vddio_bb","wake1","z","GPIO_PV1",null,"NORMAL","TRISTATE","ENABLE","0","VALID","GPIO3_PV.01","Input","","No",null,null,"10K","","",null,"GPIO_PV1"]
["ULPI_CLK","AK17","AU26","AN25","unused_ULPI_CLK","GPIO3_PY.00","SPI1A_DOUT","","","","B","B","B","O",null,"SPI1","SPI5","UARTD","ULPI","ULPI","vddio_bb","","z","SPI1",null,"NORMAL","NORMAL","DISABLE","N/A","VALID","SPI1A_DOUT","Output","",null,null,null,"","","",null,"TS_SPI_MOSI","J3A1",5,"SPI 1(Touch SPI Port)","SPI 1","SPI 1","SPI 1"]
["ULPI_DATA0","AF15","AV22","AT27","unused_ULPI_DATA0","GPIO3_PO.01","","","","","B","B",null,"O",null,"SPI3","HSI","UARTA","ULPI","ULPI","vddio_bb","","pu","GPIO_PO1",null,"NORMAL","TRISTATE","ENABLE","0","VALID","GPIO3_PO.01","Input","Z",null,null,null,"",0,"",null,"PEX_MINI_PRSNT_L"]
["ULPI_DATA1","AH15","AV23","AP23","unused_ULPI_DATA1","GPIO3_PO.02","","","","","B","B",null,"I",null,"SPI3","HSI","UARTA","ULPI","ULPI","vddio_bb","","pu","ULPI",null,"PULL_DOWN","TRISTATE","DISABLE","N/A","VALID","unused_ULPI_DATA1","Not Assigned","",null,null,null,"","","",null,"TP_ULPI_DATA1",null,null,null," "," "," "]
["ULPI_DATA2","AD17","AU23","AN22","unused_ULPI_DATA2","GPIO3_PO.03","","","","","B","B",null,"I",null,"SPI3","HSI","UARTA","ULPI","ULPI","vddio_bb","","pu","ULPI",null,"PULL_DOWN","TRISTATE","DISABLE","N/A","VALID","unused_ULPI_DATA2","Not Assigned","",null,null,null,"","","",null,"TP_ULPI_DATA2",null,null,null," "," "," "]
["ULPI_DATA3","AJ15","AU22","AP27","unused_ULPI_DATA3","GPIO3_PO.04","","","","","B","B",null,"O",null,"SPI3","HSI","UARTA","ULPI","ULPI","vddio_bb","wake32","pu","GPIO_PO4",null,"NORMAL","TRISTATE","ENABLE","0","VALID","GPIO3_PO.04","Input","Z","No",null,null,"",0,"",null,"PEX_GIGE_PRSNT_L"]
["ULPI_DATA4","AJ18","AT23","AM27","unused_ULPI_DATA4","GPIO3_PO.05","","","","","B","B",null,"I",null,"SPI2","HSI","UARTA","ULPI","ULPI","vddio_bb","wake0","pu","ULPI",null,"PULL_DOWN","TRISTATE","DISABLE","N/A","VALID","unused_ULPI_DATA4","Not Assigned","","No",null,null,"","","",null,""]
["ULPI_DATA5","AH17","AT24","AN27","unused_ULPI_DATA5","GPIO3_PO.06","","","","","B","B",null,"I",null,"SPI2","HSI","UARTA","ULPI","ULPI","vddio_bb","","pu","ULPI",null,"PULL_DOWN","TRISTATE","DISABLE","N/A","VALID","unused_ULPI_DATA5","Not Assigned","",null,null,null,"","","",null,""]
["ULPI_DATA6","AK18","AU25","AP26","unused_ULPI_DATA6","GPIO3_PO.07","","","","","B","B",null,"I",null,"SPI2","HSI","UARTA","ULPI","ULPI","vddio_bb","","pu","ULPI",null,"PULL_DOWN","TRISTATE","DISABLE","N/A","VALID","unused_ULPI_DATA6","Not Assigned","",null,null,null,"","","",null,""]
["ULPI_DATA7","AL17","AV25","AR27","unused_ULPI_DATA7","GPIO3_PO.00","","","","","B","B",null,"O",null,"SPI2","HSI","UARTA","ULPI","ULPI","vddio_bb","","pu","ULPI",null,"PULL_DOWN","TRISTATE","DISABLE","N/A","VALID","unused_ULPI_DATA7","Not Assigned","",null,null,null,"","","",null,""]
["ULPI_DIR","AL18","AV26","AR24","unused_ULPI_DIR","GPIO3_PY.01","SPI1A_DIN","","","","B","B","B","I",null,"SPI1","SPI5","UARTD","ULPI","ULPI","vddio_bb","","z","SPI1",null,"NORMAL","TRISTATE","ENABLE","N/A","VALID","SPI1A_DIN","Input","",null,null,null,"","","",null,"TS_SPI_MISO","J3A1",7,"SPI 1(Touch SPI Port)","SPI1","SPI1","SPI1"]
["ULPI_NXT","AG15","AV29","AR25","unused_ULPI_NXT","GPIO3_PY.02","SPI1A_SCK","","","","B","B","B","I",null,"SPI1","SPI5","UARTD","ULPI","ULPI","vddio_bb","","z","SPI1",null,"NORMAL","NORMAL","DISABLE","N/A","VALID","SPI1A_SCK","Output","",null,null,null,"","","",null,"TS_SPI_SCK","J3A1",4]
["ULPI_STP","AL16","AV28","AP24","unused_ULPI_STP","GPIO3_PY.03","SPI1A_CS0","","","","B","B","B","O",null,"SPI1","SPI5","UARTD","ULPI","ULPI","vddio_bb","","z","SPI1",null,"NORMAL","NORMAL","DISABLE","N/A","VALID","SPI1A_CS0","Output","",null,null,null,"","","",null,"TS_SPI_CS_L","J3A1",6]
["CAM",null,null,null,null,null,null,null,null,null,null,null,null,null,null,null,null,null,null,null,null,null,null,null,null,null,null,null,null,null,null,null,null,null,null,null,null,null,null,"1.8V"]
["CAM_I2C_SCL","AF8","AP10","AP9","unused_CAM_I2C_SCL","GPIO3_PBB.01","","I2C3_CLK","","","B","B","B","","B","VGP1","I2C3","RSVD3","SDMMC2B","RSVD3","vddio_cam","wake53","z",{"$f":"IF(OR($AE50=\"\",$AE50=$E50),$T50,IF($AE50=$F50,SUBSTITUTE(SUBSTITUTE($AE50,\"GPIO3_\",\"GPIO_\"),\".0\",\"\"),IF($AE50=$G50,$P50,IF($AE50=$H50,$Q50,IF($AE50=$I50,$R50,IF($AE50=$J50,$S50,\"INVALID\"))))))","v":"I2C3"},null,{"$f":"IF(AND(OR($AG50=\"Int PU\",$AG50=\"Int PD\"),OR(AND($AK50<>\"\",$AK50<>\"0\"),AND($AL50<>\"\",$AL50<>\"0\"))),\"INVALID\",IF(OR($AE50=$E50,$AG50=\"Int PD\"),\"PULL_DOWN\",IF(OR($AG50=\"Int PU\",AND($Y50=\"YES\",OR($AK50=\"\",$AK50=\"0\"),OR($AL50=\"\",$AL50=\"0\"),OR($AF50=\"Input\",$AF50=\"Bidirectional\"))),\"PULL_UP\",\"NORMAL\")))","v":"NORMAL"},{"$f":"IF(OR($AE50=$E50,$AF50=\"Input\"),\"TRISTATE\",\"NORMAL\")","v":"NORMAL"},{"$f":"IF(OR($AE50=$E50,$AF50=\"Output\"),\"DISABLE\",\"ENABLE\")","v":"ENABLE"},{"$f":"IF($AE50<>$F50,\"N/A\",IF($AG50=\"Drive 1\", \"1\", \"0\"))","v":"N/A"},{"$f":"IF(AND($AE50=$F50,OR(AND($K50=\"I\",OR($AF50=\"Output\",$AF50=\"Bidirectional\")),AND($K50=\"O\",OR($AF50=\"Input\",$AF50=\"Bidirectional\")))),\"INVALID\",IF(AND($AE50=$G50,OR(AND($L50=\"I\",OR($AF50=\"Output\",$AF50=\"Bidirectional\")),AND($L50=\"O\",OR($AF50=\"Input\",$AF50=\"Bidirectional\")))),\"INVALID\",IF(AND($AE50=$H50,OR(AND($M50=\"I\",OR($AF50=\"Output\",$AF50=\"Bidirectional\")),AND($M50=\"O\",OR($AF50=\"Input\",$AF50=\"Bidirectional\")))),\"INVALID\",IF(AND($AE50=$I50,OR(AND($N50=\"I\",OR($AF50=\"Output\",$AF50=\"Bidirectional\")),AND($N50=\"O\",OR($AF50=\"Input\",$AF50=\"Bidirectional\")))),\"INVALID\",IF(AND($AE50=$J50,OR(AND($O50=\"I\",OR($AF50=\"Output\",$AF50=\"Bidirectional\")),AND($O50=\"O\",OR($AF50=\"Input\",$AF50=\"Bidirectional\")))),\"INVALID\",\"VALID\")))))","v":"VALID"},"I2C3_CLK","Open-Drain","Z","No","Disable",null,"1K","","",null,"CAM_I2C_SCL","J3A2",11,"Camera I2C","I2C3","I2C3","I2C3"]
["CAM_I2C_SDA","AG8","AR10","AP8","unused_CAM_I2C_SDA","GPIO3_PBB.02","","I2C3_DAT","","","B","B","B","","B","VGP2","I2C3","RSVD3","SDMMC2B","RSVD3","vddio_cam","wake48","z","I2C3",null,"NORMAL",{"$f":"IF(OR($AE51=$E51,$AF51=\"Input\"),\"TRISTATE\",\"NORMAL\")","v":"NORMAL"},"ENABLE","N/A","VALID","I2C3_DAT","Open-Drain","Z","No","Disable",null,"1K","","",null,"CAM_I2C_SDA","J3A2",8]
["CAM_MCLK","AL5","AT10","AP7","unused_CAM_MCLK","GPIO3_PCC.00","","","vimclk_alt3","","B","B","O","O","B","VI","VI_ALT1","VI_ALT3","SDMMC2B","VI","vddio_cam","","pu","VI_ALT3",null,"NORMAL","NORMAL","DISABLE","N/A","VALID","vimclk_alt3","Output","",null,null,null,"","","",null,"CAM1_MCLK","J3A2",69,"Rear Camera Master Clock","Rear Camera Master Clock","Rear Camera Master Clock","Rear Camera Master Clock"]
["GPIO_PBB0","AK5","AT12","AN9","unused_GPIO_PBB0","GPIO3_PBB.00","","","","vimclk2_alt3","B","B","O","B","O","VGP6","VIMCLK2","SDMMC2B","VIMCLK2_ALT","VGP6","vddio_cam","","pd","VIMCLK2_ALT",null,"NORMAL","NORMAL","DISABLE","N/A","VALID","vimclk2_alt3","Output","",null,null,null,"","","",null,"CAM2_MCLK","J3A2",4,"Front Camera Master Clock","Front Camera Master Clock","Front Camera Master Clock","Front Camera Master Clock"]
["GPIO_PBB3","AK6","AU11","AM9","unused_GPIO_PBB3","GPIO3_PBB.03","VGP3","","","","B","B","I","O","O","VGP3","DISPLAYA","DISPLAYB","SDMMC2B","VGP3","vddio_cam","","pd","GPIO_PBB3",null,"NORMAL","NORMAL",{"$f":"IF($AE54=$J54,\"ENABLE\",IF(OR($AE54=$E54,$AF54=\"Output\"),\"DISABLE\",\"ENABLE\"))","v":"DISABLE"},"0","VALID","GPIO3_PBB.03","Output","Drive 0",null,null,null,"","","",null,"Modified: TK1-1 LED","J3A2",5,"Front/Rear Camera Reset","Front/Rear Camera Reset","Front/Rear Camera Reset","Front/Rear Camera Reset"]
["GPIO_PBB4","AH6","AU10","AR10","unused_GPIO_PBB4","GPIO3_PBB.04","VGP4","","","","B","B","O","I","B","VGP4","DISPLAYA","DISPLAYB","SDMMC2B","VGP4","vddio_cam","","pd","VGP4",null,"PULL_DOWN","TRISTATE","DISABLE","N/A","VALID","unused_GPIO_PBB4","Not Assigned","Z",null,null,null,"","","",null,"Modified; Unused","J3A2",63,"Camera Flash Enable / Torch Mode Enable","Camera Flash Enable / Torch Mode Enable","Camera Flash Enable / Torch Mode Enable","Camera Flash Enable / Torch Mode Enable"]
["GPIO_PBB5","AH5","AT11","AP10","unused_GPIO_PBB5","GPIO3_PBB.05","VGP5","","","","B","B","O","","B","VGP5","DISPLAYA","RSVD3","SDMMC2B","RSVD3","vddio_cam","","pd","RSVD3",null,"PULL_DOWN","TRISTATE","DISABLE","N/A","VALID","unused_GPIO_PBB5","Not Assigned","Z",null,null,null,"","","",null,"Modified; Unused","J3A2",66,"Rear Camera Power Down","Rear Camera Power Down","Rear Camera Power Down","Rear Camera Power Down"]
["GPIO_PBB6","AL6","AR11","AN10","unused_GPIO_PBB6","GPIO3_PBB.06","","","","","B","I","","O","B","I2S4","RSVD2","DISPLAYB","SDMMC2B","RSVD2","vddio_cam","wake45","pd","GPIO_PBB6",null,"NORMAL","NORMAL","DISABLE","0","VALID","GPIO3_PBB.06","Output","Drive 0","No",null,null,"","","",null,"CAM2_PWDN","J3A2",2,"Front Camera Power Down","Front Camera Power Down","Front Camera Power Down","Front Camera Power Down"]
["GPIO_PBB7","AJ5","AV11","AR7","unused_GPIO_PBB7","GPIO3_PBB.07","","","","","B","B","","","B","I2S4","RSVD2","RSVD3","SDMMC2B","RSVD2","vddio_cam","","pd","GPIO_PBB7",null,"NORMAL","NORMAL","DISABLE","0","VALID","GPIO3_PBB.07","Output","Drive 0",null,null,null,"","","",null,"CAM1_AF_PWDN","J3A2",60,"Rear Camera Autofocuser Power Down","Rear Camera Autofocuser Power Down","Rear Camera Autofocuser Power Down","Rear Camera Autofocuser Power Down"]
["GPIO_PCC1","AJ6","AV10","AR9","unused_GPIO_PCC1","GPIO3_PCC.01","","","","","B","B","","","B","I2S4","RSVD2","RSVD3","SDMMC2B","RSVD2","vddio_cam","","pu","GPIO_PCC1",null,"NORMAL","NORMAL","ENABLE","0","VALID","GPIO3_PCC.01","Bidirectional","",null,null,null,"","","",null,"CAM1_GPIO","J3A2",57,"Rear Camera Spare GPIO","Rear Camera Spare GPIO","Rear Camera Spare GPIO","Rear Camera Spare GPIO"]
["GPIO_PCC2","AL7","AP11","AM10","unused_GPIO_PCC2","GPIO3_PCC.02","","","","","B","B","","B","B","I2S4","RSVD2","SDMMC3","SDMMC2B","RSVD2","vddio_cam","","pu","GPIO_PCC2",null,"NORMAL","NORMAL","ENABLE","0","VALID","GPIO3_PCC.02","Bidirectional","",null,null,null,"","","",null,"CAM2_GPIO","J3A2",7,"Front Camera Spare GPIO / Debug GPIO 3","Front Camera Spare GPIO / Debug GPIO 3","Front Camera Spare GPIO / Debug GPIO 3","Front Camera Spare GPIO / Debug GPIO 3"]
["GMI",null,null,null,null,null,null,null,null,null,null,null,null,null,null,null,null,null,null,null,null,null,null,null,null,null,null,null,null,null,null,null,null,null,null,null,null,null,null,"1.8V"]
["GEN2_I2C_SCL","Y2","AF3","AF3","unused_GEN2_I2C_SCL","GPIO3_PT.05","I2C2_CLK","","","","B","B","","O","","I2C2","RSVD2","GMI","RSVD4","RSVD2","vddio_gmi","","z",{"$f":"IF(OR($AE62=\"\",$AE62=$E62),$T62,IF($AE62=$F62,SUBSTITUTE(SUBSTITUTE($AE62,\"GPIO3_\",\"GPIO_\"),\".0\",\"\"),IF($AE62=$G62,$P62,IF($AE62=$H62,$Q62,IF($AE62=$I62,$R62,IF($AE62=$J62,$S62,\"INVALID\"))))))","v":"I2C2"},null,{"$f":"IF(AND(OR($AG62=\"Int PU\",$AG62=\"Int PD\"),OR(AND($AK62<>\"\",$AK62<>\"0\"),AND($AL62<>\"\",$AL62<>\"0\"))),\"INVALID\",IF(OR($AE62=$E62,$AG62=\"Int PD\"),\"PULL_DOWN\",IF(OR($AG62=\"Int PU\",AND($Y62=\"YES\",OR($AK62=\"\",$AK62=\"0\"),OR($AL62=\"\",$AL62=\"0\"),OR($AF62=\"Input\",$AF62=\"Bidirectional\"))),\"PULL_UP\",\"NORMAL\")))","v":"NORMAL"},{"$f":"IF(OR($AE62=$E62,$AF62=\"Input\"),\"TRISTATE\",\"NORMAL\")","v":"NORMAL"},{"$f":"IF(OR($AE62=$E62,$AF62=\"Output\"),\"DISABLE\",\"ENABLE\")","v":"ENABLE"},{"$f":"IF($AE62<>$F62,\"N/A\",IF($AG62=\"Drive 1\", \"1\", \"0\"))","v":"N/A"},{"$f":"IF(AND($AE62=$F62,OR(AND($K62=\"I\",OR($AF62=\"Output\",$AF62=\"Bidirectional\")),AND($K62=\"O\",OR($AF62=\"Input\",$AF62=\"Bidirectional\")))),\"INVALID\",IF(AND($AE62=$G62,OR(AND($L62=\"I\",OR($AF62=\"Output\",$AF62=\"Bidirectional\")),AND($L62=\"O\",OR($AF62=\"Input\",$AF62=\"Bidirectional\")))),\"INVALID\",IF(AND($AE62=$H62,OR(AND($M62=\"I\",OR($AF62=\"Output\",$AF62=\"Bidirectional\")),AND($M62=\"O\",OR($AF62=\"Input\",$AF62=\"Bidirectional\")))),\"INVALID\",IF(AND($AE62=$I62,OR(AND($N62=\"I\",OR($AF62=\"Output\",$AF62=\"Bidirectional\")),AND($N62=\"O\",OR($AF62=\"Input\",$AF62=\"Bidirectional\")))),\"INVALID\",IF(AND($AE62=$J62,OR(AND($O62=\"I\",OR($AF62=\"Output\",$AF62=\"Bidirectional\")),AND($O62=\"O\",OR($AF62=\"Input\",$AF62=\"Bidirectional\")))),\"INVALID\",\"VALID\")))))","v":"VALID"},"I2C2_CLK","Open-Drain","Z",null,"Disable",null,"1K","","",null,"GEN2_I2C_SCL_3.3V","J3A1",18,"GEN2 I2C","I2C2","I2C2","I2C2"]
["GEN2_I2C_SDA","AA2","AF2","AE3","unused_GEN2_I2C_SDA","GPIO3_PT.06","I2C2_DAT","","","","B","B","","O","","I2C2","RSVD2","GMI","RSVD4","RSVD2","vddio_gmi","wake47","z","I2C2",null,"NORMAL",{"$f":"IF(OR($AE63=$E63,$AF63=\"Input\"),\"TRISTATE\",\"NORMAL\")","v":"NORMAL"},"ENABLE","N/A","VALID","I2C2_DAT","Open-Drain","Z","No","Disable",null,"1K","","",null,"GEN2_I2C_SDA_3.3V","J3A1",20]
["GPIO_PJ7","V4","AJ2","W5","unused_GPIO_PJ7","GPIO3_PJ.07","UD3_TXD","","","","B","O","","B","I","UARTD","RSVD2","GMI","GMI_ALT","RSVD2","vddio_gmi","arm_jtag0","z","UARTD",null,"NORMAL","NORMAL","DISABLE","N/A","VALID","UD3_TXD","Output","",null,null,null,"","","",null,"UART4_TXD","J1A2",3,"BR Debug/SQA UART","UART 4","UART 4","UART 4"]
["GPIO_PB0","U4","AJ1","AG2","unused_GPIO_PB0","GPIO3_PB.00","UD3_RXD","","","","B","I","","B","","UARTD","RSVD2","GMI","RSVD4","RSVD2","vddio_gmi","","z","UARTD",null,"PULL_UP","TRISTATE","ENABLE","N/A","VALID","UD3_RXD","Input","Int PU",null,null,null,"","","",null,"UART4_RXD","J1A2",2]
["GPIO_PB1","V9","AH1","AE2","unused_GPIO_PB1","GPIO3_PB.01","UD3_CTS","","","","B","I","","B","","UARTD","RSVD2","GMI","RSVD4","RSVD2","vddio_gmi","","z","UARTD",null,"PULL_UP","TRISTATE","ENABLE","N/A","VALID","UD3_CTS","Input","Int PU",null,null,null,"","","",null,"UART4_CTS_L","J1A2",8]
["GPIO_PK7","V5","AH2","AC3","unused_GPIO_PK7","GPIO3_PK.07","UD3_RTS","","","","B","O","","B","","UARTD","RSVD2","GMI","RSVD4","RSVD2","vddio_gmi","arm_jtag1","z","UARTD",null,"NORMAL","NORMAL","DISABLE","N/A","VALID","UD3_RTS","Output","",null,null,null,"","","",null,"UART4_RTS_L","J1A2",7]
["GPIO_PG0","V2","AB4","AH2","unused_GPIO_PG0","GPIO3_PG.00","","","","","B","","","B","","RSVD1","RSVD2","GMI","RSVD4","RSVD1","vddio_gmi","boot_select0","z","GPIO_PG0",null,"NORMAL","TRISTATE","ENABLE","0","VALID","GPIO3_PG.00","Input","",null,null,null,"","","",null,"LCD_LR",null,null,"(boot strap)","(boot strap)","(boot strap)","(boot strap)"]
["GPIO_PG1","V6","AH4","AA4","unused_GPIO_PG1","GPIO3_PG.01","","","","","B","","","B","","RSVD1","RSVD2","GMI","RSVD4","RSVD1","vddio_gmi","boot_select1","z","GPIO_PG1",null,"NORMAL","TRISTATE","ENABLE","0","VALID","GPIO3_PG.01","Input","",null,null,null,"","","",null,"LCD_UD",null,null,"(boot strap)","(boot strap)","(boot strap)","(boot strap)"]
["GPIO_PH2","AA4","AF4","AB6","unused_GPIO_PH2","GPIO3_PH.02","PM3_PWM2","","","","B","O","O","B","O","PWM2","TMDS","GMI","CLDVFS","GMI","vddio_gmi","","pd","GMI",null,"PULL_DOWN","TRISTATE","DISABLE","N/A","VALID","unused_GPIO_PH2","Not Assigned","Z",null,null,null,"","","",null,"Modified; Unused","J3A1",48,"LCD Backlight Enable","Backlight Control","Backlight Control","Backlight Control"]
["GPIO_PH3","V8","AE4","AA6","unused_GPIO_PH3","GPIO3_PH.03","PM3_PWM3","","","","B","O","B","B","O","PWM3","SPI4","GMI","CLDVFS","GMI","vddio_gmi","","pd","GMI",null,"PULL_DOWN","TRISTATE","DISABLE","N/A","VALID","unused_GPIO_PH3","Not Assigned","",null,null,null,"","","",null,""]
["GPIO_PH4","R5","AE3","AB2","unused_GPIO_PH4","GPIO3_PH.04","SDMMC2A_DAT0","","","","B","B","","B","","SDMMC2A","RSVD2","GMI","RSVD4","RSVD2","vddio_gmi","","pu","GPIO_PH4",{"$f":"IF($AE72=$G72,\"YES\",\"NO\")","v":"NO"},"NORMAL","TRISTATE","ENABLE","0","VALID","GPIO3_PH.04","Input","",null,null,null,"","","",null,"CODEC_IRQ_L",null,null,"CODEC IRQ","SDIO 2","SDIO 2","SDIO 2"]
["GPIO_PH5","R4","AB2","AA1","unused_GPIO_PH5","GPIO3_PH.05","SDMMC2A_DAT2","","","","B","B","","B","","SDMMC2A","RSVD2","GMI","RSVD4","RSVD2","vddio_gmi","","pd","RSVD2",{"$f":"IF($AE73=$G73,\"YES\",\"NO\")","v":"NO"},"PULL_DOWN","TRISTATE","DISABLE","N/A","VALID","unused_GPIO_PH5","Not Assigned","",null,null,null,"","","",null,"TP_GPIO_PH5"]
["GPIO_PH6","U8","AE1","W3","unused_GPIO_PH6","GPIO3_PH.06","SDMMC2A_DAT3","tracedata3","","DTV_DATA","B","B","O","B","I","SDMMC2A","TRACE","GMI","DTV","GMI","vddio_gmi","","pu","GMI",{"$f":"IF($AE74=$G74,\"YES\",\"NO\")","v":"NO"},"PULL_DOWN","TRISTATE","DISABLE","N/A","VALID","unused_GPIO_PH6","Not Assigned","",null,null,null,"","","",null,"TP_GPIO_PH6"]
["GPIO_PH7","U2","AB3","AD2","unused_GPIO_PH7","GPIO3_PH.07","SDMMC2A_CMD","tracedata4","","DTV_CLK","B","B","O","B","I","SDMMC2A","TRACE","GMI","DTV","GMI","vddio_gmi","","pu","GPIO_PH7",{"$f":"IF($AE75=$G75,\"YES\",\"NO\")","v":"NO"},"NORMAL","NORMAL","ENABLE","0","VALID","GPIO3_PH.07","Bidirectional","",null,null,null,"","","",null,"GPIO_PH7",null,null,"HDMI Enable"]
["GPIO_PG2","Y7","AE5","AK3","unused_GPIO_PG2","GPIO3_PG.02","","tracedata0","","","B","","O","B","","RSVD1","TRACE","GMI","RSVD4","RSVD1","vddio_gmi","boot_select2","z","GPIO_PG2",null,"NORMAL","TRISTATE","ENABLE","0","VALID","GPIO3_PG.02","Input","",null,null,null,"","","",null,"MODEM_SAR0",null,null,"(boot strap)","(boot strap)","(boot strap)","(boot strap)"]
["GPIO_PG3","AA5","AH3","AJ3","unused_GPIO_PG3","GPIO3_PG.03","","tracedata1","","","B","","O","B","","RSVD1","TRACE","GMI","RSVD4","RSVD1","vddio_gmi","boot_select3","z","GPIO_PG3",null,"NORMAL","TRISTATE","ENABLE","0","VALID","GPIO3_PG.03","Input","",null,null,null,"","","",null,"GPIO_PG3",null,null,"(boot strap)","(boot strap)","(boot strap)","(boot strap)"]
["GPIO_PG4","Y3","AC5","AE4","unused_GPIO_PG4","GPIO3_PG.04","","","","SPI4C_CS3","B","","O","B","B","RSVD1","TMDS","GMI","SPI4","RSVD1","vddio_gmi","ram_code0","z","GPIO_PG4",null,"NORMAL","TRISTATE","ENABLE","0","VALID","GPIO3_PG.04","Input","",null,null,null,"","","",null,"SPI4_CS3_L",null,null,"(boot strap)","(boot strap)","(boot strap)","(boot strap)"]
["GPIO_PG5","AA3","AM2","AG3","unused_GPIO_PG5","GPIO3_PG.05","","","","SPI4C_SCK","B","","","B","B","RSVD1","RSVD2","GMI","SPI4","RSVD1","vddio_gmi","ram_code1","z","SPI4",null,"NORMAL","NORMAL","DISABLE","N/A","VALID","SPI4C_SCK","Output","",null,null,null,"","","",null,"SPI4_SCK",null,null,"SPI4(BootRom)","SPI4","SPI4","SPI4"]
["GPIO_PG6","Y8","AL2","AA5","unused_GPIO_PG6","GPIO3_PG.06","","","","SPI4C_DOUT","B","","","B","B","RSVD1","RSVD2","GMI","SPI4","RSVD1","vddio_gmi","ram_code2","z","SPI4",null,"NORMAL","NORMAL","DISABLE","N/A","VALID","SPI4C_DOUT","Output","",null,null,null,"","","",null,"SPI4_MOSI"]
["GPIO_PG7","V3","AL1","AK2","unused_GPIO_PG7","GPIO3_PG.07","","","","SPI4C_DIN","B","","","B","B","RSVD1","RSVD2","GMI","SPI4","RSVD1","vddio_gmi","ram_code3","z","SPI4",null,"NORMAL","TRISTATE","ENABLE","N/A","VALID","SPI4C_DIN","Input","",null,null,null,"","","",null,"SPI4_MISO"]
["GPIO_PH0","Y6","AJ5","AD5","unused_GPIO_PH0","GPIO3_PH.00","PM3_PWM0","tracedata2","","DTV_VALID","B","O","O","B","I","PWM0","TRACE","GMI","DTV","GMI","vddio_gmi","","pd","GMI",null,"PULL_DOWN","TRISTATE","DISABLE","N/A","VALID","unused_GPIO_PH0","Not Assigned","",null,null,null,"","","",null,"TP_KBL_PWM"]
["GPIO_PH1","U3","AD3","W4","unused_GPIO_PH1","GPIO3_PH.01","PM3_PWM1","","","","B","O","O","B","O","PWM1","TMDS","GMI","DISPLAYA","GMI","vddio_gmi","","pd","GMI",null,"PULL_DOWN","TRISTATE","DISABLE","N/A","VALID","unused_GPIO_PH1","Not Assigned","Z",null,null,null,"","","",null,"Modified; Unused","J3A1",50,"LCD Backlight PWM","Backlight Control","Backlight Control","Backlight Control"]
["GPIO_PK0","AA1","AB5","AB4","unused_GPIO_PK0","GPIO3_PK.00","","","","soc_therm_oc3_n","B","","B","O","I","RSVD1","SDMMC3","GMI","SOC","RSVD1","vddio_gmi","","pu","RSVD1",null,"PULL_DOWN","TRISTATE","DISABLE","N/A","VALID","unused_GPIO_PK0","Not Assigned","",null,null,null,"","","",null,"TP_GPIO_PK0"]
["GPIO_PK1","R3","AC3","W1","unused_GPIO_PK1","GPIO3_PK.01","SDMMC2A_CLK","traceclk","","","B","O","O","O","","SDMMC2A","TRACE","GMI","RSVD4","RSVD4","vddio_gmi","","pd","RSVD4",null,"PULL_DOWN","TRISTATE",{"$f":"IF($AE85=$G85,\"ENABLE\",IF(OR($AE85=$E85,$AF85=\"Output\"),\"DISABLE\",\"ENABLE\"))","v":"DISABLE"},"N/A",{"$f":"IF(AND($AE85=$F85,OR(AND($K85=\"I\",OR($AF85=\"Output\",$AF85=\"Bidirectional\")),AND($K85=\"O\",OR($AF85=\"Input\",$AF85=\"Bidirectional\")))),\"INVALID\",IF(AND($AE85=$G85,$AF85=\"Input\"),\"INVALID\",IF(AND($AE85=$H85,OR(AND($M85=\"I\",OR($AF85=\"Output\",$AF85=\"Bidirectional\")),AND($M85=\"O\",OR($AF85=\"Input\",$AF85=\"Bidirectional\")))),\"INVALID\",IF(AND($AE85=$I85,OR(AND($N85=\"I\",OR($AF85=\"Output\",$AF85=\"Bidirectional\")),AND($N85=\"O\",OR($AF85=\"Input\",$AF85=\"Bidirectional\")))),\"INVALID\",IF(AND($AE85=$J85,OR(AND($O85=\"I\",OR($AF85=\"Output\",$AF85=\"Bidirectional\")),AND($O85=\"O\",OR($AF85=\"Input\",$AF85=\"Bidirectional\")))),\"INVALID\",\"VALID\")))))","v":"VALID"},"unused_GPIO_PK1","Not Assigned","Z",null,null,null,"","","",null,"Modified; Unused","J3A1",11,"Touch Screen Shutdown","SDIO 2","SDIO 2","SDIO 2"]
["GPIO_PJ0","U6","AF1","V5","unused_GPIO_PJ0","GPIO3_PJ.00","","","","","B","","","O"," ","RSVD1","RSVD2","GMI","USB","RSVD1","vddio_gmi","wake33","pu","GPIO_PJ0",null,"NORMAL","TRISTATE","ENABLE","0","VALID","GPIO3_PJ.00","Input","","Yes",null,null,"","10K","",null,"AC_OK_AP_L",null,null,"AC_OK_AP_L (pulled down to GND)","AC_OK_AP_L (pulled down to GND)","AC_OK_AP_L (pulled down to GND)","AC_OK_AP_L (pulled down to GND)"]
["GPIO_PJ2","W1","AC4","AB3","unused_GPIO_PJ2","GPIO3_PJ.02","","","","soc_therm_oc4_n","B","","","O","I","RSVD1","RSVD2","GMI","SOC","RSVD1","vddio_gmi","wake15","pu","GPIO_PJ2",null,"NORMAL","TRISTATE","ENABLE","0","VALID","GPIO3_PJ.02","Input","Z","No",null,null,"","","",null,"Modified: USB-B_DET"]
["GPIO_PK3","R2","AC1","W2","unused_GPIO_PK3","GPIO3_PK.03","SDMMC2A_DAT4","tracectl","","","B","B","O","B","O","SDMMC2A","TRACE","GMI","CCLA","GMI","vddio_gmi","","pu","GMI",{"$f":"IF($AE88=$G88,\"YES\",\"NO\")","v":"NO"},"PULL_DOWN","TRISTATE","DISABLE","N/A","VALID","unused_GPIO_PK3","Not Assigned","",null,null,null,"","","",null,"TP_GPIO_PK3",null,null,null,"SDIO 2","SDIO 2","SDIO 2"]
["GPIO_PK4","T1","AB1","AA2","unused_GPIO_PK4","GPIO3_PK.04","SDMMC2A_DAT5","","","","B","B","","B","I","SDMMC2A","RSVD2","GMI","GMI_ALT","RSVD2","vddio_gmi","","pu","RSVD2",{"$f":"IF($AE89=$G89,\"YES\",\"NO\")","v":"NO"},"PULL_DOWN","TRISTATE","DISABLE","N/A","VALID","unused_GPIO_PK4","Not Assigned","Z",null,null,null,"","","",null,"Modified; Unused","J3A1",13,"Touch Screen Reset"]
["GPIO_PK2","Y1","AF5","AK1","unused_GPIO_PK2","GPIO3_PK.02","","","","","B","","","B","","RSVD1","RSVD2","GMI","RSVD4","RSVD1","vddio_gmi","wake34","pu","RSVD1",null,"PULL_DOWN","TRISTATE","DISABLE","N/A","VALID","unused_GPIO_PK2","Not Assigned","","Yes",null,null,"","","",null,"Modified; Unused","J3A1",17,"GPIO_PK2","GPIO_PK2","GPIO_PK2","GPIO_PK2"]
["GPIO_PI3","V7","AM1","AD3","unused_GPIO_PI3","GPIO3_PI.03","","","","SPI4C_CS0","B","","","B","B","RSVD1","RSVD2","GMI","SPI4","RSVD1","vddio_gmi","","pu","SPI4",null,"NORMAL","NORMAL","DISABLE","N/A","VALID","SPI4C_CS0","Output","",null,null,null,"","","",null,"Modified: spi4_cs0_l",null,null,"SPI4 (BootROM)","SPI4","SPI4","SPI4"]
["GPIO_PI6","R1","AA3","V3","unused_GPIO_PI6","GPIO3_PI.06","","","","SDMMC2A_DAT7","B","","","B","B","RSVD1","RSVD2","GMI","SDMMC2A","RSVD1","vddio_gmi","wake35","pu","GPIO_PI6",{"$f":"IF($AE92=$J92,\"YES\",\"NO\")","v":"NO"},"NORMAL","TRISTATE","ENABLE","0","VALID","GPIO3_PI.06","Input","","Yes",null,null,"10K","","",null,"TEMP_ALERT_L",null,null,"Skin Temperature Alert","Skin Temperature Alert","Skin Temperature Alert","Skin Temperature Alert"]
["GPIO_PI2","V1","AC2","AE1","unused_GPIO_PI2","GPIO3_PI.02","SDMMC2A_DAT6","tracedata5","","","B","B","O","B","","SDMMC2A","TRACE","GMI","RSVD4","RSVD4","vddio_gmi","","pu","RSVD4",{"$f":"IF($AE93=$G93,\"YES\",\"NO\")","v":"NO"},"PULL_DOWN","TRISTATE","DISABLE","N/A","VALID","unused_GPIO_PI2","Not Assigned","",null,null,null,"","","",null,"TP_GPIO_PI2",null,null,null,"SDIO 2","SDIO 2","SDIO 2"]
["GPIO_PI5","U7","AE2","AB1","unused_GPIO_PI5","GPIO3_PI.05","SDMMC2A_DAT1","","","","B","B","","I","","SDMMC2A","RSVD2","GMI","RSVD4","RSVD2","vddio_gmi","wake23","pu","RSVD2",{"$f":"IF($AE94=$G94,\"YES\",\"NO\")","v":"NO"},"PULL_DOWN","TRISTATE","DISABLE","N/A","VALID","unused_GPIO_PI5","Not Assigned","","No",null,null,"","","",null,""]
["GPIO_PI1","AA6","AL3","AE5","unused_GPIO_PI1","GPIO3_PI.01","","","","","B","","","O","","RSVD1","RSVD2","GMI","RSVD4","RSVD1","vddio_gmi","force_recovery","pu","GPIO_PI1",null,"NORMAL","TRISTATE","ENABLE","0","VALID","GPIO3_PI.01","Input","",null,null,null,"100K","","",null,"AP_FORCE_RECOVERY_L","J3A2",67,"Force Recovery","Force Recovery","Force Recovery","Force Recovery"]
["GPIO_PI4","Y9","AE6","AD4","unused_GPIO_PI4","GPIO3_PI.04","SPI4C_CS1","tracedata6","","","B","B","O","O","I","SPI4","TRACE","GMI","DISPLAYA","GMI","vddio_gmi","","pd","GPIO_PI4",null,"NORMAL","TRISTATE","ENABLE","0","VALID","GPIO3_PI.04","Input","",null,null,null,"","","",null,"Modified: EXTRA_GPIO_CS1_N"]
["GPIO_PI7","Y4","AG3","AH3","unused_GPIO_PI7","GPIO3_PI.07","","tracedata7","","DTV_ERR_PSYNC","B","","O","I","I","RSVD1","TRACE","GMI","DTV","RSVD1","vddio_gmi","","pu","RSVD1",null,"PULL_DOWN","TRISTATE","DISABLE","N/A","VALID","unused_GPIO_PI7","Not Assigned","",null,null,null,"","","",null,""]
["GPIO_PC7","U1","Y4","AA3","unused_GPIO_PC7","GPIO3_PC.07","","","","","B","","","O","I","RSVD1","RSVD2","GMI","GMI_ALT","RSVD1","vddio_gmi","wake8","pu","RSVD1",null,"PULL_DOWN","TRISTATE","DISABLE","N/A","VALID","unused_GPIO_PC7","Not Assigned","","No",null,null,"","","",null,"TP_KBC_IRQ_L"]
["GPIO_PI0","Y5","AJ3","AB5","unused_GPIO_PI0","GPIO3_PI.00","","","","","B","","","O","","RSVD1","RSVD2","GMI","RSVD4","RSVD1","vddio_gmi","nor_boot","pu","GPIO_PI0",null,"NORMAL","NORMAL","DISABLE","0","VALID","GPIO3_PI.00","Output","",null,null,null,"","","",null,"GPIO_PI0",null,null,"(boot strap)","(boot strap)","(boot strap)","(boot strap)"]
["SDMMC2_COMP_PD","R6","Y6","Y3","unused_SDMMC2_COMP_PD",null,"SDMMC2_COMP_PD",null,null,null,null,null,null,null,null,null,null,null,null,null,null,null,null,null,null,null,null,null,null,null,"unused_SDMMC2_COMP_PD",null,null,null,null,null,null,null,null,null,"SDMMC2_COMP_PD",null,null,null,"SDIO 2","SDIO 2","SDIO 2"]
["SDMMC2_COMP_PU","U5","Y5","V4","unused_SDMMC2_COMP_PU",null,"SDMMC2_COMP_PU",null,null,null,null,null,null,null,null,null,null,null,null,null,null,null,null,null,null,null,null,null,null,null,"unused_SDMMC2_COMP_PU",null,null,null,null,null,null,null,null,null,"SDMMC2_COMP_PU"]
["PEX_CTL",null,null,null,null,null,null,null,null,null,null,null,null,null,null,null,null,null,null,null,null,null,null,null,null,null,null,null,null,null,null,null,null,null,null,null,null,null,null,"3.3V"]
["PEX_L0_CLKREQ_N","AK29",null,null,"unused_PEX_L0_CLKREQ_N","GPIO3_PDD.02","pe0_clkreq_l","","","","B","I","","","","PE0","RSVD2","RSVD3","RSVD4","RSVD2","vddio_pex_ctl","","z",{"$f":"IF(OR($AE103=\"\",$AE103=$E103),$T103,IF($AE103=$F103,SUBSTITUTE(SUBSTITUTE($AE103,\"GPIO3_\",\"GPIO_\"),\".0\",\"\"),IF($AE103=$G103,$P103,IF($AE103=$H103,$Q103,IF($AE103=$I103,$R103,IF($AE103=$J103,$S103,\"INVALID\"))))))","v":"PE0"},null,{"$f":"IF(AND(OR($AG103=\"Int PU\",$AG103=\"Int PD\"),OR(AND($AK103<>\"\",$AK103<>\"0\"),AND($AL103<>\"\",$AL103<>\"0\"))),\"INVALID\",IF(OR($AE103=$E103,$AG103=\"Int PD\"),\"PULL_DOWN\",IF(OR($AG103=\"Int PU\",AND($Y103=\"YES\",OR($AK103=\"\",$AK103=\"0\"),OR($AL103=\"\",$AL103=\"0\"),OR($AF103=\"Input\",$AF103=\"Bidirectional\"))),\"PULL_UP\",\"NORMAL\")))","v":"NORMAL"},{"$f":"IF(OR($AE103=$E103,$AF103=\"Input\"),\"TRISTATE\",\"NORMAL\")","v":"TRISTATE"},{"$f":"IF(OR($AE103=$E103,$AF103=\"Output\"),\"DISABLE\",\"ENABLE\")","v":"ENABLE"},{"$f":"IF($AE103<>$F103,\"N/A\",IF($AG103=\"Drive 1\", \"1\", \"0\"))","v":"N/A"},{"$f":"IF(AND($AE103=$F103,OR(AND($K103=\"I\",OR($AF103=\"Output\",$AF103=\"Bidirectional\")),AND($K103=\"O\",OR($AF103=\"Input\",$AF103=\"Bidirectional\")))),\"INVALID\",IF(AND($AE103=$G103,OR(AND($L103=\"I\",OR($AF103=\"Output\",$AF103=\"Bidirectional\")),AND($L103=\"O\",OR($AF103=\"Input\",$AF103=\"Bidirectional\")))),\"INVALID\",IF(AND($AE103=$H103,OR(AND($M103=\"I\",OR($AF103=\"Output\",$AF103=\"Bidirectional\")),AND($M103=\"O\",OR($AF103=\"Input\",$AF103=\"Bidirectional\")))),\"INVALID\",IF(AND($AE103=$I103,OR(AND($N103=\"I\",OR($AF103=\"Output\",$AF103=\"Bidirectional\")),AND($N103=\"O\",OR($AF103=\"Input\",$AF103=\"Bidirectional\")))),\"INVALID\",IF(AND($AE103=$J103,OR(AND($O103=\"I\",OR($AF103=\"Output\",$AF103=\"Bidirectional\")),AND($O103=\"O\",OR($AF103=\"Input\",$AF103=\"Bidirectional\")))),\"INVALID\",\"VALID\")))))","v":"VALID"},"pe0_clkreq_l","Input","",null,null,null,"","","",null,"PEX_L0_CLKREQ_L","J2D2",7,"PCIe x1\nMini PCIe Connector","PCIe x 4","PCIe x 4","PCIe x 4"]
["PEX_L0_RST_N","AJ29",null,null,"unused_PEX_L0_RST_N","GPIO3_PDD.01","pe0_rst_l","","","","B","O","","","","PE0","RSVD2","RSVD3","RSVD4","RSVD2","vddio_pex_ctl","","z","PE0",null,"NORMAL",{"$f":"IF(OR($AE104=$E104,$AF104=\"Input\"),\"TRISTATE\",\"NORMAL\")","v":"NORMAL"},"DISABLE","N/A","VALID","pe0_rst_l","Output","",null,null,null,"","","",null,"PEX_L0_RST_L","J2D2",22]
["PEX_L1_CLKREQ_N","AJ30",null,null,"unused_PEX_L1_CLKREQ_N","GPIO3_PDD.06","pe1_clkreq_l","","","","B","I","","","","PE1","RSVD2","RSVD3","RSVD4","RSVD2","vddio_pex_ctl","","z","PE1",null,"NORMAL","TRISTATE","ENABLE","N/A","VALID","pe1_clkreq_l","Input","",null,null,null,"","","",null,"PEX_L1_CLKREQ_L",null,null,"PCIe x1\nGigE LAN\n(Realtek RTL811GS)"]
["PEX_L1_RST_N","AJ31",null,null,"unused_PEX_L1_RST_N","GPIO3_PDD.05","pe1_rst_l","","","","B","O","","","","PE1","RSVD2","RSVD3","RSVD4","RSVD2","vddio_pex_ctl","","z","PE1",null,"NORMAL","NORMAL","DISABLE","N/A","VALID","pe1_rst_l","Output","",null,null,null,"","","",null,"PEX_L1_RST_L",null,null,null,null,null,"PCIe x 1"]
["PEX_WAKE_N","AG28",null,null,"unused_PEX_WAKE_N","GPIO3_PDD.03","pe_wake_l","","","","B","I","","","","PE","RSVD2","RSVD3","RSVD4","RSVD2","vddio_pex_ctl","wake14","z","PE",{"$f":"IF($AE107=$G107,\"YES\",\"NO\")","v":"YES"},"NORMAL","TRISTATE","ENABLE","N/A","VALID","pe_wake_l","Input","","Yes",null,null,"100K","","",null,"PEX_WAKE_L","J2D2",1,"PCIe x1\nMini PCIe Connector","PCIe x 4","PCIe x 4","PCIe x 4"]
["USB_VBUS_EN2","AG29","AK36",null,"unused_USB_VBUS_EN2","GPIO3_PFF.01","usb_vbus_en2","","","","B","B","","","","USB","RSVD2","RSVD3","RSVD4","RSVD2","vddio_pex_ctl","",0,"RSVD2",{"$f":"IF($AE108=$G108,\"YES\",\"NO\")","v":"NO"},"PULL_DOWN","TRISTATE","DISABLE","N/A","VALID","unused_USB_VBUS_EN2","Not Assigned","",null,null,null,"","","",null,"TP_USB_VBUS_EN2"]
["GPIO_PFF2","AG30",null,null,"unused_GPIO_PFF2","GPIO3_PFF.02","SATA_DA","","","","B","I","","","","SATA","RSVD2","RSVD3","RSVD4","RSVD2","vddio_pex_ctl","wake59","z","RSVD2",{"$f":"IF($AE109=$G109,\"YES\",\"NO\")","v":"NO"},"PULL_DOWN","TRISTATE","DISABLE","N/A","VALID","unused_GPIO_PFF2","Not Assigned","","No",null,null,"","","",null,""]
["PEX_CLK1P","AF26",null,null,"unused_PEX_CLK1P",null,"PEX_CLK_OUT_1_P","","","","","O","","","",null,null,null,null,null,"vddio_pex_ctl","",0,null,null,null,null,null,null,null,"PEX_CLK_OUT_1_P","Output","",null,null,null,"","","",null,"PEX_CLK1_P","J2D2",13,"PCIe x1\nMini PCIe Connector","PCIe x 4","PCIe x 4","PCIe x 4"]
["PEX_CLK1N","AG26",null,null,"unused_PEX_CLK1N",null,"PEX_CLK_OUT_1_N","","","","","O","","","",null,null,null,null,null,"vddio_pex_ctl","",0,null,null,null,null,null,null,null,"PEX_CLK_OUT_1_N","Output","",null,null,null,"","","",null,"PEX_CLK1_N","J2D2",11]
["PEX_CLK2P","AC26",null,null,"unused_PEX_CLK2P",null,"PEX_CLK_OUT_2_P","","","","","O","","","",null,null,null,null,null,"vddio_pex_ctl","",0,null,null,null,null,null,null,null,"PEX_CLK_OUT_2_P","Output","",null,null,null,"","","",null,"PEX_CLK2_P",null,null,"PCIe x1\nGigE LAN\n(Realtek RTL811GS)",null,null,"PCIe x 1"]
["PEX_CLK2N","AC27",null,null,"unused_PEX_CLK2N",null,"PEX_CLK_OUT_2_N","","","","","O","","","",null,null,null,null,null,"vddio_pex_ctl","",0,null,null,null,null,null,null,null,"PEX_CLK_OUT_2_N","Output","",null,null,null,"","","",null,"PEX_CLK2_N"]
["SDMMC1",null,null,null,null,null,null,null,null,null,null,null,null,null,null,null,null,null,null,null,null,null,null,null,null,null,null,null,null,null,null,null,null,null,null,null,null,null,null,"1.8V"]
["CLK2_OUT","K1","M3","J4","unused_CLK2_OUT","GPIO3_PW.05","extperiph2_clk","","","","B","O","","","","EXTPERIPH2","RSVD2","RSVD3","RSVD4","RSVD2","vddio_sdmmc1","","pd",{"$f":"IF(OR($AE115=\"\",$AE115=$E115),$T115,IF($AE115=$F115,SUBSTITUTE(SUBSTITUTE($AE115,\"GPIO3_\",\"GPIO_\"),\".0\",\"\"),IF($AE115=$G115,$P115,IF($AE115=$H115,$Q115,IF($AE115=$I115,$R115,IF($AE115=$J115,$S115,\"INVALID\"))))))","v":"RSVD2"},null,{"$f":"IF(AND(OR($AG115=\"Int PU\",$AG115=\"Int PD\"),OR(AND($AK115<>\"\",$AK115<>\"0\"),AND($AL115<>\"\",$AL115<>\"0\"))),\"INVALID\",IF(OR($AE115=$E115,$AG115=\"Int PD\"),\"PULL_DOWN\",IF(OR($AG115=\"Int PU\",AND($Y115=\"YES\",OR($AK115=\"\",$AK115=\"0\"),OR($AL115=\"\",$AL115=\"0\"),OR($AF115=\"Input\",$AF115=\"Bidirectional\"))),\"PULL_UP\",\"NORMAL\")))","v":"PULL_DOWN"},{"$f":"IF(OR($AE115=$E115,$AF115=\"Input\"),\"TRISTATE\",\"NORMAL\")","v":"TRISTATE"},{"$f":"IF(OR($AE115=$E115,$AF115=\"Output\"),\"DISABLE\",\"ENABLE\")","v":"DISABLE"},{"$f":"IF($AE115<>$F115,\"N/A\",IF($AG115=\"Drive 1\", \"1\", \"0\"))","v":"N/A"},{"$f":"IF(AND($AE115=$F115,OR(AND($K115=\"I\",OR($AF115=\"Output\",$AF115=\"Bidirectional\")),AND($K115=\"O\",OR($AF115=\"Input\",$AF115=\"Bidirectional\")))),\"INVALID\",IF(AND($AE115=$G115,OR(AND($L115=\"I\",OR($AF115=\"Output\",$AF115=\"Bidirectional\")),AND($L115=\"O\",OR($AF115=\"Input\",$AF115=\"Bidirectional\")))),\"INVALID\",IF(AND($AE115=$H115,OR(AND($M115=\"I\",OR($AF115=\"Output\",$AF115=\"Bidirectional\")),AND($M115=\"O\",OR($AF115=\"Input\",$AF115=\"Bidirectional\")))),\"INVALID\",IF(AND($AE115=$I115,OR(AND($N115=\"I\",OR($AF115=\"Output\",$AF115=\"Bidirectional\")),AND($N115=\"O\",OR($AF115=\"Input\",$AF115=\"Bidirectional\")))),\"INVALID\",IF(AND($AE115=$J115,OR(AND($O115=\"I\",OR($AF115=\"Output\",$AF115=\"Bidirectional\")),AND($O115=\"O\",OR($AF115=\"Input\",$AF115=\"Bidirectional\")))),\"INVALID\",\"VALID\")))))","v":"VALID"},"unused_CLK2_OUT","Not Assigned","",null,null,null,"","","",null,"Modified; Unused","J3A1",12,"Touch Screen Clock","Touch Screen Clock","Touch Screen Clock","Touch Screen Clock"]
["CLK2_REQ","L4","N3","K3","unused_CLK2_REQ","GPIO3_PCC.05","","","","","B","I","","","","DAP","RSVD2","RSVD3","RSVD4","RSVD2","vddio_sdmmc1","","z","RSVD2",null,"PULL_DOWN",{"$f":"IF(OR($AE116=$E116,$AF116=\"Input\"),\"TRISTATE\",\"NORMAL\")","v":"TRISTATE"},"DISABLE","N/A","VALID","unused_CLK2_REQ","Not Assigned","",null,null,null,"","","",null,"",null,null,null,"SDIO 1 (WiFi)","SDIO 1 (WiFi)","SDIO 1 (WiFi)"]
["SDMMC1_WP_N","L5","N5","J2","unused_SDMMC1_WP_N","GPIO3_PV.03","SDMMC1_WP_N","","","","B","B","O","B","O","SDMMC1","CLK12","SPI4","UARTA","SDMMC1","vddio_sdmmc1","","pu","SDMMC1",null,"PULL_DOWN","TRISTATE","DISABLE","N/A","VALID","unused_SDMMC1_WP_N","Not Assigned","",null,null,null,"","","",null,""]
["SDMMC1_CLK","L7","P6","H3","unused_SDMMC1_CLK","GPIO3_PZ.00","SDMMC1_CLK","","","","B","O","O","","","SDMMC1","CLK12","RSVD3","RSVD4","RSVD3","vddio_sdmmc1","","pd","RSVD3",null,"PULL_DOWN","TRISTATE",{"$f":"IF($AE118=$G118,\"ENABLE\",IF(OR($AE118=$E118,$AF118=\"Output\"),\"DISABLE\",\"ENABLE\"))","v":"DISABLE"},"N/A",{"$f":"IF(AND($AE118=$F118,OR(AND($K118=\"I\",OR($AF118=\"Output\",$AF118=\"Bidirectional\")),AND($K118=\"O\",OR($AF118=\"Input\",$AF118=\"Bidirectional\")))),\"INVALID\",IF(AND($AE118=$G118,$AF118=\"Input\"),\"INVALID\",IF(AND($AE118=$H118,OR(AND($M118=\"I\",OR($AF118=\"Output\",$AF118=\"Bidirectional\")),AND($M118=\"O\",OR($AF118=\"Input\",$AF118=\"Bidirectional\")))),\"INVALID\",IF(AND($AE118=$I118,OR(AND($N118=\"I\",OR($AF118=\"Output\",$AF118=\"Bidirectional\")),AND($N118=\"O\",OR($AF118=\"Input\",$AF118=\"Bidirectional\")))),\"INVALID\",IF(AND($AE118=$J118,OR(AND($O118=\"I\",OR($AF118=\"Output\",$AF118=\"Bidirectional\")),AND($O118=\"O\",OR($AF118=\"Input\",$AF118=\"Bidirectional\")))),\"INVALID\",\"VALID\")))))","v":"VALID"},"unused_SDMMC1_CLK","Not Assigned","",null,null,null,"","","",null,""]
["SDMMC1_CMD","L8","N2","G3","unused_SDMMC1_CMD","GPIO3_PZ.01","SDMMC1_CMD","","","","B","B","O","B","O","SDMMC1","SPDIF","SPI4","UARTA","SDMMC1","vddio_sdmmc1","","pu","SDMMC1",{"$f":"IF($AE119=$G119,\"YES\",\"NO\")","v":"NO"},"PULL_DOWN","TRISTATE","DISABLE","N/A","VALID","unused_SDMMC1_CMD","Not Assigned","",null,null,null,"","","",null,""," "," "]
["SDMMC1_DAT0","L2","P3","F1","unused_SDMMC1_DAT0","GPIO3_PY.07","SDMMC1_DAT0","","","","B","B","","B","I","SDMMC1","RSVD2","SPI4","UARTA","RSVD2","vddio_sdmmc1","","pu","RSVD2",{"$f":"IF($AE120=$G120,\"YES\",\"NO\")","v":"NO"},"PULL_DOWN","TRISTATE","DISABLE","N/A","VALID","unused_SDMMC1_DAT0","Not Assigned","",null,null,null,"","","",null,""]
["SDMMC1_DAT1","L3","P2","G1","unused_SDMMC1_DAT1","GPIO3_PY.06","SDMMC1_DAT1","","","","B","B","O","B","I","SDMMC1","PWM1","SPI4","UARTA","SDMMC1","vddio_sdmmc1","wake13","pu","SDMMC1",{"$f":"IF($AE121=$G121,\"YES\",\"NO\")","v":"NO"},"PULL_DOWN","TRISTATE","DISABLE","N/A","VALID","unused_SDMMC1_DAT1","Not Assigned","","No",null,null,"","","",null,""]
["SDMMC1_DAT2","L1","P1","J3","unused_SDMMC1_DAT2","GPIO3_PY.05","SDMMC1_DAT2","","","","B","B","O","B","O","SDMMC1","PWM0","SPI4","UARTA","SDMMC1","vddio_sdmmc1","","pu","SDMMC1",{"$f":"IF($AE122=$G122,\"YES\",\"NO\")","v":"NO"},"PULL_DOWN","TRISTATE","DISABLE","N/A","VALID","unused_SDMMC1_DAT2","Not Assigned","",null,null,null,"","","",null,""," "," "]
["SDMMC1_DAT3","J8","N1","G2","unused_SDMMC1_DAT3","GPIO3_PY.04","SDMMC1_DAT3","","","","B","B","I","B","I","SDMMC1","SPDIF","SPI4","UARTA","SDMMC1","vddio_sdmmc1","","pu","SDMMC1",{"$f":"IF($AE123=$G123,\"YES\",\"NO\")","v":"NO"},"PULL_DOWN","TRISTATE","DISABLE","N/A","VALID","unused_SDMMC1_DAT3","Not Assigned","",null,null,null,"","","",null,""," "," "]
["SDMMC1_COMP_PD","L6","N4","K4","unused_SDMMC1_COMP_PD",null,"SDMMC1_COMP_PD",null,null,null,null,null,null,null,null,null,null,null,null,null,null,null,null,null,null,null,null,null,null,null,"unused_SDMMC1_COMP_PD",null,null,null,null,null,null,33.200000000000003,null,null,"SDMMC1_COMP_PD"]
["SDMMC1_COMP_PU","J7","N6","F2","unused_SDMMC1_COMP_PU",null,"SDMMC1_COMP_PU",null,null,null,null,null,null,null,null,null,null,null,null,null,null,null,null,null,null,null,null,null,null,null,"unused_SDMMC1_COMP_PU",null,null,null,null,null,33.200000000000003,null,null,null,"SDMMC1_COMP_PU"]
["SDMMC3",null,null,null,null,null,null,null,null,null,null,null,null,null,null,null,null,null,null,null,null,null,null,null,null,null,null,null,null,null,null,null,null,null,null,null,null,null,null,"1.8V"]
["SDMMC3_CLK","F5","G1","B6","unused_SDMMC3_CLK","GPIO3_PA.06","SDMMC3_CLK","","","","B","O","","","B","SDMMC3","RSVD2","RSVD3","SPI3","RSVD2","vddio_sdmmc3","","pd",{"$f":"IF(OR($AE127=\"\",$AE127=$E127),$T127,IF($AE127=$F127,SUBSTITUTE(SUBSTITUTE($AE127,\"GPIO3_\",\"GPIO_\"),\".0\",\"\"),IF($AE127=$G127,$P127,IF($AE127=$H127,$Q127,IF($AE127=$I127,$R127,IF($AE127=$J127,$S127,\"INVALID\"))))))","v":"SDMMC3"},null,{"$f":"IF(AND(OR($AG127=\"Int PU\",$AG127=\"Int PD\"),OR(AND($AK127<>\"\",$AK127<>\"0\"),AND($AL127<>\"\",$AL127<>\"0\"))),\"INVALID\",IF(OR($AE127=$E127,$AG127=\"Int PD\"),\"PULL_DOWN\",IF(OR($AG127=\"Int PU\",AND($Y127=\"YES\",OR($AK127=\"\",$AK127=\"0\"),OR($AL127=\"\",$AL127=\"0\"),OR($AF127=\"Input\",$AF127=\"Bidirectional\"))),\"PULL_UP\",\"NORMAL\")))","v":"NORMAL"},{"$f":"IF(OR($AE127=$E127,$AF127=\"Input\"),\"TRISTATE\",\"NORMAL\")","v":"NORMAL"},{"$f":"IF($AE127=$G127,\"ENABLE\",IF(OR($AE127=$E127,$AF127=\"Output\"),\"DISABLE\",\"ENABLE\"))","v":"ENABLE"},{"$f":"IF($AE127<>$F127,\"N/A\",IF($AG127=\"Drive 1\", \"1\", \"0\"))","v":"N/A"},{"$f":"IF(AND($AE127=$F127,OR(AND($K127=\"I\",OR($AF127=\"Output\",$AF127=\"Bidirectional\")),AND($K127=\"O\",OR($AF127=\"Input\",$AF127=\"Bidirectional\")))),\"INVALID\",IF(AND($AE127=$G127,$AF127=\"Input\"),\"INVALID\",IF(AND($AE127=$H127,OR(AND($M127=\"I\",OR($AF127=\"Output\",$AF127=\"Bidirectional\")),AND($M127=\"O\",OR($AF127=\"Input\",$AF127=\"Bidirectional\")))),\"INVALID\",IF(AND($AE127=$I127,OR(AND($N127=\"I\",OR($AF127=\"Output\",$AF127=\"Bidirectional\")),AND($N127=\"O\",OR($AF127=\"Input\",$AF127=\"Bidirectional\")))),\"INVALID\",IF(AND($AE127=$J127,OR(AND($O127=\"I\",OR($AF127=\"Output\",$AF127=\"Bidirectional\")),AND($O127=\"O\",OR($AF127=\"Input\",$AF127=\"Bidirectional\")))),\"INVALID\",\"VALID\")))))","v":"VALID"},"SDMMC3_CLK","Output","",null,null,null,"","","",null,"Modified; Unused","J5B1",5,"SD Card","SD Card / SDIO 3","SD Card / SDIO 3","SD Card / SDIO 3"]
["SDMMC3_CMD","F2","H2","C6","unused_SDMMC3_CMD","GPIO3_PA.07","SDMMC3_CMD","","","","B","B","O","I","B","SDMMC3","PWM3","UARTA","SPI3","SDMMC3","vddio_sdmmc3","","pu","SDMMC3",{"$f":"IF($AE128=$G128,\"YES\",\"NO\")","v":"YES"},"PULL_UP",{"$f":"IF(OR($AE128=$E128,$AF128=\"Input\"),\"TRISTATE\",\"NORMAL\")","v":"NORMAL"},{"$f":"IF(OR($AE128=$E128,$AF128=\"Output\"),\"DISABLE\",\"ENABLE\")","v":"ENABLE"},"N/A",{"$f":"IF(AND($AE128=$F128,OR(AND($K128=\"I\",OR($AF128=\"Output\",$AF128=\"Bidirectional\")),AND($K128=\"O\",OR($AF128=\"Input\",$AF128=\"Bidirectional\")))),\"INVALID\",IF(AND($AE128=$G128,OR(AND($L128=\"I\",OR($AF128=\"Output\",$AF128=\"Bidirectional\")),AND($L128=\"O\",OR($AF128=\"Input\",$AF128=\"Bidirectional\")))),\"INVALID\",IF(AND($AE128=$H128,OR(AND($M128=\"I\",OR($AF128=\"Output\",$AF128=\"Bidirectional\")),AND($M128=\"O\",OR($AF128=\"Input\",$AF128=\"Bidirectional\")))),\"INVALID\",IF(AND($AE128=$I128,OR(AND($N128=\"I\",OR($AF128=\"Output\",$AF128=\"Bidirectional\")),AND($N128=\"O\",OR($AF128=\"Input\",$AF128=\"Bidirectional\")))),\"INVALID\",IF(AND($AE128=$J128,OR(AND($O128=\"I\",OR($AF128=\"Output\",$AF128=\"Bidirectional\")),AND($O128=\"O\",OR($AF128=\"Input\",$AF128=\"Bidirectional\")))),\"INVALID\",\"VALID\")))))","v":"VALID"},"SDMMC3_CMD","Not Assigned","Int PU",null,null,null,"","","",null,"Modified; Unused","J5B1",2]
["SDMMC3_DAT0","H2","H1","A6","unused_SDMMC3_DAT0","GPIO3_PB.07","SDMMC3_DAT0","","","","B","B","","","B","SDMMC3","RSVD2","RSVD3","SPI3","RSVD2","vddio_sdmmc3","","pu","SDMMC3","YES","PULL_UP","NORMAL","ENABLE","N/A","VALID","SDMMC3_DAT0","Not Assigned","Int PU",null,null,null,"","","",null,"Modified; Unused","J5B1",7]
["SDMMC3_DAT1","H1","H3","A7","unused_SDMMC3_DAT1","GPIO3_PB.06","SDMMC3_DAT1","","","","B","B","O","O","B","SDMMC3","PWM2","UARTA","SPI3","SDMMC3","vddio_sdmmc3","wake3","pu","SDMMC3","YES","PULL_UP","NORMAL","ENABLE","N/A","VALID","SDMMC3_DAT1","Not Assigned","Int PU","No",null,null,"","","",null,"Modified; Unused","J5B1",8]
["SDMMC3_DAT2","F1","G3","C7","unused_SDMMC3_DAT2","GPIO3_PB.05","SDMMC3_DAT2","","","","B","B","O","O","B","SDMMC3","PWM1","DISPLAYA","SPI3","SDMMC3","vddio_sdmmc3","","pu","SDMMC3","YES","PULL_UP","NORMAL","ENABLE","N/A","VALID","SDMMC3_DAT2","Not Assigned","Int PU",null,null,null,"","","",null,"Modified; Unused","J5B1",9]
["SDMMC3_DAT3","G1","G2","D6","unused_SDMMC3_DAT3","GPIO3_PB.04","SDMMC3_DAT3","","","","B","B","O","O","B","SDMMC3","PWM0","DISPLAYB","SPI3","SDMMC3","vddio_sdmmc3","","pu","SDMMC3","YES","PULL_UP","NORMAL","ENABLE","N/A","VALID","SDMMC3_DAT3","Not Assigned","Int PU",null,null,null,"","","",null,"Modified; Unused","J5B1",1]
["SDMMC3_CLK_LB_OUT","F4","F3","D7","unused_SDMMC3_CLK_LB_OUT","GPIO3_PEE.04","SDMMC3_CLK_LB_OUT","","","","B","B","","","","SDMMC3","RSVD2","RSVD3","RSVD4","RSVD2","vddio_sdmmc3","","z","SDMMC3","YES","NORMAL","NORMAL","ENABLE","N/A","VALID","SDMMC3_CLK_LB_OUT","Not Assigned","",null,null,null,"","","",null,"Modified; Unused"]
["SDMMC3_CLK_LB_IN","F3","E3","B7","unused_SDMMC3_CLK_LB_IN","GPIO3_PEE.05","SDMMC3_CLK_LB_IN","","","","B","I","","","","SDMMC3","RSVD2","RSVD3","RSVD4","RSVD2","vddio_sdmmc3","","pd","SDMMC3","YES","PULL_UP",{"$f":"IF($AE134=$G134,\"NORMAL\",IF(OR($AE134=$E134,$AF134=\"Input\"),\"TRISTATE\",\"NORMAL\"))","v":"NORMAL"},"ENABLE","N/A","VALID","SDMMC3_CLK_LB_IN","Input","",null,null,null,"","","",null,"Modified; Unused"]
["SDMMC3_COMP_PD","E5","D2","C9","unused_SDMMC3_COMP_PD",null,"SDMMC3_COMP_PD",null,null,null,null,null,null,null,null,null,null,null,null,null,null,null,null,null,null,null,null,null,null,null,"SDMMC3_COMP_PD",null,null,null,null,null,null,33.200000000000003,null,null,"SDMMC3_COMP_PD"]
["SDMMC3_COMP_PU","E2","D1","C8","unused_SDMMC3_COMP_PU",null,"SDMMC3_COMP_PU",null,null,null,null,null,null,null,null,null,null,null,null,null,null,null,null,null,null,null,null,null,null,null,"SDMMC3_COMP_PU",null,null,null,null,null,33.200000000000003,null,null,null,"SDMMC3_COMP_PU"]
["SDMMC4",null,null,null,null,null,null,null,null,null,null,null,null,null,null,null,null,null,null,null,null,null,null,null,null,null,null,null,null,null,null,null,null,null,null,null,null,null,null,"1.8V"]
["SDMMC4_CLK","G31","G37","F35","unused_SDMMC4_CLK","GPIO3_PCC.04","SDMMC4_CLK","","","","B","O","","O","","SDMMC4","RSVD2","GMI","RSVD4","RSVD2","vddio_sdmmc4","","pd",{"$f":"IF(OR($AE138=\"\",$AE138=$E138),$T138,IF($AE138=$F138,SUBSTITUTE(SUBSTITUTE($AE138,\"GPIO3_\",\"GPIO_\"),\".0\",\"\"),IF($AE138=$G138,$P138,IF($AE138=$H138,$Q138,IF($AE138=$I138,$R138,IF($AE138=$J138,$S138,\"INVALID\"))))))","v":"SDMMC4"},null,{"$f":"IF(AND(OR($AG138=\"Int PU\",$AG138=\"Int PD\"),OR(AND($AK138<>\"\",$AK138<>\"0\"),AND($AL138<>\"\",$AL138<>\"0\"))),\"INVALID\",IF(OR($AE138=$E138,$AG138=\"Int PD\"),\"PULL_DOWN\",IF(OR($AG138=\"Int PU\",AND($Y138=\"YES\",OR($AK138=\"\",$AK138=\"0\"),OR($AL138=\"\",$AL138=\"0\"),OR($AF138=\"Input\",$AF138=\"Bidirectional\"))),\"PULL_UP\",\"NORMAL\")))","v":"NORMAL"},{"$f":"IF(OR($AE138=$E138,$AF138=\"Input\"),\"TRISTATE\",\"NORMAL\")","v":"NORMAL"},{"$f":"IF($AE138=$G138,\"ENABLE\",IF(OR($AE138=$E138,$AF138=\"Output\"),\"DISABLE\",\"ENABLE\"))","v":"ENABLE"},{"$f":"IF($AE138<>$F138,\"N/A\",IF($AG138=\"Drive 1\", \"1\", \"0\"))","v":"N/A"},{"$f":"IF(AND($AE138=$F138,OR(AND($K138=\"I\",OR($AF138=\"Output\",$AF138=\"Bidirectional\")),AND($K138=\"O\",OR($AF138=\"Input\",$AF138=\"Bidirectional\")))),\"INVALID\",IF(AND($AE138=$G138,$AF138=\"Input\"),\"INVALID\",IF(AND($AE138=$H138,OR(AND($M138=\"I\",OR($AF138=\"Output\",$AF138=\"Bidirectional\")),AND($M138=\"O\",OR($AF138=\"Input\",$AF138=\"Bidirectional\")))),\"INVALID\",IF(AND($AE138=$I138,OR(AND($N138=\"I\",OR($AF138=\"Output\",$AF138=\"Bidirectional\")),AND($N138=\"O\",OR($AF138=\"Input\",$AF138=\"Bidirectional\")))),\"INVALID\",IF(AND($AE138=$J138,OR(AND($O138=\"I\",OR($AF138=\"Output\",$AF138=\"Bidirectional\")),AND($O138=\"O\",OR($AF138=\"Input\",$AF138=\"Bidirectional\")))),\"INVALID\",\"VALID\")))))","v":"VALID"},"SDMMC4_CLK","Output","",null,"Disable",null,"","","",null,"SDMMC4_CLK",null,null,"eMMC","eMMC","eMMC","eMMC"]
["SDMMC4_CMD","E31","G38","F34","unused_SDMMC4_CMD","GPIO3_PT.07","SDMMC4_CMD","","","","B","B","","O","","SDMMC4","RSVD2","GMI","RSVD4","RSVD2","vddio_sdmmc4","","pu","SDMMC4",{"$f":"IF($AE139=$G139,\"YES\",\"NO\")","v":"YES"},"PULL_UP",{"$f":"IF(OR($AE139=$E139,$AF139=\"Input\"),\"TRISTATE\",\"NORMAL\")","v":"NORMAL"},{"$f":"IF(OR($AE139=$E139,$AF139=\"Output\"),\"DISABLE\",\"ENABLE\")","v":"ENABLE"},"N/A",{"$f":"IF(AND($AE139=$F139,OR(AND($K139=\"I\",OR($AF139=\"Output\",$AF139=\"Bidirectional\")),AND($K139=\"O\",OR($AF139=\"Input\",$AF139=\"Bidirectional\")))),\"INVALID\",IF(AND($AE139=$G139,OR(AND($L139=\"I\",OR($AF139=\"Output\",$AF139=\"Bidirectional\")),AND($L139=\"O\",OR($AF139=\"Input\",$AF139=\"Bidirectional\")))),\"INVALID\",IF(AND($AE139=$H139,OR(AND($M139=\"I\",OR($AF139=\"Output\",$AF139=\"Bidirectional\")),AND($M139=\"O\",OR($AF139=\"Input\",$AF139=\"Bidirectional\")))),\"INVALID\",IF(AND($AE139=$I139,OR(AND($N139=\"I\",OR($AF139=\"Output\",$AF139=\"Bidirectional\")),AND($N139=\"O\",OR($AF139=\"Input\",$AF139=\"Bidirectional\")))),\"INVALID\",IF(AND($AE139=$J139,OR(AND($O139=\"I\",OR($AF139=\"Output\",$AF139=\"Bidirectional\")),AND($O139=\"O\",OR($AF139=\"Input\",$AF139=\"Bidirectional\")))),\"INVALID\",\"VALID\")))))","v":"VALID"},"SDMMC4_CMD","Bidirectional","Int PU",null,"Disable",null,"","","",null,"SDMMC4_CMD"]
["SDMMC4_DAT0","F29","E36","D35","unused_SDMMC4_DAT0","GPIO3_PAA.00","SDMMC4_DAT0","","","","B","B","B","O","","SDMMC4","SPI3","GMI","RSVD4","RSVD4","vddio_sdmmc4","","pu","SDMMC4","YES","PULL_UP","NORMAL","ENABLE","N/A","VALID","SDMMC4_DAT0","Bidirectional","Int PU",null,"Disable",null,"","","",null,"SDMMC4_DAT<0>"]
["SDMMC4_DAT1","F30","E38","D36","unused_SDMMC4_DAT1","GPIO3_PAA.01","SDMMC4_DAT1","","","","B","B","B","O","","SDMMC4","SPI3","GMI","RSVD4","RSVD4","vddio_sdmmc4","wake10","pu","SDMMC4","YES","PULL_UP","NORMAL","ENABLE","N/A","VALID","SDMMC4_DAT1","Bidirectional","Int PU","No","Disable",null,"","","",null,"SDMMC4_DAT<1>"]
["SDMMC4_DAT2","E28","D35","E34","unused_SDMMC4_DAT2","GPIO3_PAA.02","SDMMC4_DAT2","","","","B","B","B","O","","SDMMC4","SPI3","GMI","RSVD4","RSVD4","vddio_sdmmc4","","pu","SDMMC4","YES","PULL_UP","NORMAL","ENABLE","N/A","VALID","SDMMC4_DAT2","Bidirectional","Int PU",null,"Disable",null,"","","",null,"SDMMC4_DAT<2>"]
["SDMMC4_DAT3","H31","G36","G34","unused_SDMMC4_DAT3","GPIO3_PAA.03","SDMMC4_DAT3","","","","B","B","B","O","","SDMMC4","SPI3","GMI","RSVD4","RSVD4","vddio_sdmmc4","","pu","SDMMC4","YES","PULL_UP","NORMAL","ENABLE","N/A","VALID","SDMMC4_DAT3","Bidirectional","Int PU",null,"Disable",null,"","","",null,"SDMMC4_DAT<3>"]
["SDMMC4_DAT4","D31","F36","G33","unused_SDMMC4_DAT4","GPIO3_PAA.04","SDMMC4_DAT4","","","","B","B","B","O","","SDMMC4","SPI3","GMI","RSVD4","RSVD4","vddio_sdmmc4","","pu","SDMMC4","YES","PULL_UP","NORMAL","ENABLE","N/A","VALID","SDMMC4_DAT4","Bidirectional","Int PU",null,"Disable",null,"","","",null,"SDMMC4_DAT<4>"]
["SDMMC4_DAT5","E30","E37","F33","unused_SDMMC4_DAT5","GPIO3_PAA.05","SDMMC4_DAT5","","","","B","B","B","","","SDMMC4","SPI3","RSVD3","RSVD4","RSVD3","vddio_sdmmc4","","pu","SDMMC4","YES","PULL_UP","NORMAL","ENABLE","N/A","VALID","SDMMC4_DAT5","Bidirectional","Int PU",null,"Disable",null,"","","",null,"SDMMC4_DAT<5>"]
["SDMMC4_DAT6","E29","E35","D34","unused_SDMMC4_DAT6","GPIO3_PAA.06","SDMMC4_DAT6","","","","B","B","B","B","","SDMMC4","SPI3","GMI","RSVD4","RSVD4","vddio_sdmmc4","","pu","SDMMC4","YES","PULL_UP","NORMAL","ENABLE","N/A","VALID","SDMMC4_DAT6","Bidirectional","Int PU",null,"Disable",null,"","","",null,"SDMMC4_DAT<6>"]
["SDMMC4_DAT7","F28","D36","C35","unused_SDMMC4_DAT7","GPIO3_PAA.07","SDMMC4_DAT7","","","","B","B","","B","","SDMMC4","RSVD2","GMI","RSVD4","RSVD2","vddio_sdmmc4","","pu","SDMMC4","YES","PULL_UP","NORMAL","ENABLE","N/A","VALID","SDMMC4_DAT7","Bidirectional","Int PU",null,"Disable",null,"","","",null,"SDMMC4_DAT<7>"]
["SDMMC4_COMP_PD","H29","G35","H34","unused_SDMMC4_COMP_PD",null,"SDMMC4_COMP_PD",null,null,null,null,null,null,null,null,null,null,null,null,null,null,null,null,null,null,null,null,null,null,null,"SDMMC4_COMP_PD",null,null,null,null,null,null,49.9,null,null,"SDMMC4_COMP_PD"]
["SDMMC4_COMP_PU","H30","G34","G35","unused_SDMMC4_COMP_PU",null,"SDMMC4_COMP_PU",null,null,null,null,null,null,null,null,null,null,null,null,null,null,null,null,null,null,null,null,null,null,null,"SDMMC4_COMP_PU",null,null,null,null,null,49.9,null,null,null,"SDMMC4_COMP_PU"]
["SYS",null,null,null,null,null,null,null,null,null,null,null,null,null,null,null,null,null,null,null,null,null,null,null,null,null,null,null,null,null,null,null,null,null,null,null,null,null,null,"1.8V"]
["KB_COL0","AD30","AJ38","AG33","unused_KB_COL0","GPIO3_PQ.00","","","","","B","B","","B","","KBC","RSVD2","SPI2","RSVD4","RSVD2","vddio_sys","wake51","pu",{"$f":"IF(OR($AE151=\"\",$AE151=$E151),$T151,IF($AE151=$F151,SUBSTITUTE(SUBSTITUTE($AE151,\"GPIO3_\",\"GPIO_\"),\".0\",\"\"),IF($AE151=$G151,$P151,IF($AE151=$H151,$Q151,IF($AE151=$I151,$R151,IF($AE151=$J151,$S151,\"INVALID\"))))))","v":"GPIO_PQ0"},null,{"$f":"IF(AND(OR($AG151=\"Int PU\",$AG151=\"Int PD\"),OR(AND($AK151<>\"\",$AK151<>\"0\"),AND($AL151<>\"\",$AL151<>\"0\"))),\"INVALID\",IF(OR($AE151=$E151,$AG151=\"Int PD\"),\"PULL_DOWN\",IF(OR($AG151=\"Int PU\",AND($Y151=\"YES\",OR($AK151=\"\",$AK151=\"0\"),OR($AL151=\"\",$AL151=\"0\"),OR($AF151=\"Input\",$AF151=\"Bidirectional\"))),\"PULL_UP\",\"NORMAL\")))","v":"PULL_UP"},{"$f":"IF(OR($AE151=$E151,$AF151=\"Input\"),\"TRISTATE\",\"NORMAL\")","v":"TRISTATE"},{"$f":"IF(OR($AE151=$E151,$AF151=\"Output\"),\"DISABLE\",\"ENABLE\")","v":"ENABLE"},{"$f":"IF($AE151<>$F151,\"N/A\",IF($AG151=\"Drive 1\", \"1\", \"0\"))","v":"0"},{"$f":"IF(AND($AE151=$F151,OR(AND($K151=\"I\",OR($AF151=\"Output\",$AF151=\"Bidirectional\")),AND($K151=\"O\",OR($AF151=\"Input\",$AF151=\"Bidirectional\")))),\"INVALID\",IF(AND($AE151=$G151,OR(AND($L151=\"I\",OR($AF151=\"Output\",$AF151=\"Bidirectional\")),AND($L151=\"O\",OR($AF151=\"Input\",$AF151=\"Bidirectional\")))),\"INVALID\",IF(AND($AE151=$H151,OR(AND($M151=\"I\",OR($AF151=\"Output\",$AF151=\"Bidirectional\")),AND($M151=\"O\",OR($AF151=\"Input\",$AF151=\"Bidirectional\")))),\"INVALID\",IF(AND($AE151=$I151,OR(AND($N151=\"I\",OR($AF151=\"Output\",$AF151=\"Bidirectional\")),AND($N151=\"O\",OR($AF151=\"Input\",$AF151=\"Bidirectional\")))),\"INVALID\",IF(AND($AE151=$J151,OR(AND($O151=\"I\",OR($AF151=\"Output\",$AF151=\"Bidirectional\")),AND($O151=\"O\",OR($AF151=\"Input\",$AF151=\"Bidirectional\")))),\"INVALID\",\"VALID\")))))","v":"VALID"},"GPIO3_PQ.00","Input","Int PU","Yes",null,null,"","","",null,"KB_COL0_AP",null,null,"Power Button","Power Button","Power Button","Power Button"]
["KB_COL1","AC28","AJ36","AL34","unused_KB_COL1","GPIO3_PQ.01","","","","","B","B","","B","","KBC","RSVD2","SPI2","RSVD4","RSVD2","vddio_sys","","pu","RSVD2",null,"PULL_DOWN",{"$f":"IF(OR($AE152=$E152,$AF152=\"Input\"),\"TRISTATE\",\"NORMAL\")","v":"TRISTATE"},"DISABLE","N/A","VALID","unused_KB_COL1","Not Assigned","",null,null,null,"","","",null,""]
["KB_COL2","AD28","AJ35","AK33","unused_KB_COL2","GPIO3_PQ.02","","","","","B","B","","B","","KBC","RSVD2","SPI2","RSVD4","RSVD2","vddio_sys","","pu","RSVD2",null,"PULL_DOWN","TRISTATE","DISABLE","N/A","VALID","unused_KB_COL2","Not Assigned","",null,null,null,"","","",null,""]
["KB_COL3","AD31","AH38","AH34","unused_KB_COL3","GPIO3_PQ.03","","","","","B","B","O","O","I","KBC","DISPLAYA","PWM2","UARTA","KBC","vddio_sys","","pu","GPIO_PQ3",null,"NORMAL","TRISTATE","ENABLE","0","VALID","GPIO3_PQ.03","Input","",null,null,null,"100K","100K","",null,"BD_ID_STRAP0",null,null,"(boot strap)","(boot strap)","(boot strap)","(boot strap)"]
["KB_COL4","AF28","AH35","AK34","unused_KB_COL4","GPIO3_PQ.04","","","SDMMC3_WP_N","","B","B","O","B","O","KBC","OWR","SDMMC3","UARTA","KBC","vddio_sys","","pu","KBC",null,"PULL_DOWN","TRISTATE","DISABLE","N/A","VALID","unused_KB_COL4","Not Assigned","Z",null,null,null,"","","",null,"Modified; Unused","J5B1","WP","SD Card Write Protect","SD Card Write Protect","SD Card Write Protect","SD Card Write Protect"]
["KB_COL5","AA27","AH36","AJ34","unused_KB_COL5","GPIO3_PQ.05","","","","","B","B","","I","","KBC","RSVD2","SDMMC3","RSVD4","RSVD2","vddio_sys","wake54","pu","RSVD2",null,"PULL_DOWN","TRISTATE","DISABLE","N/A","VALID","unused_KB_COL5","Input","","Yes",null,null,"100K","","",null,"Modified; Unused",null,null,"Mic Insertion Detection","Mic Insertion Detection","Mic Insertion Detection","Mic Insertion Detection"]
["KB_COL6","AD29","AH34","AH33","unused_KB_COL6","GPIO3_PQ.06","","","","","B","B","","B","O","KBC","RSVD2","SPI2","UARTD","RSVD2","vddio_sys","","pu","RSVD2",null,"PULL_DOWN","TRISTATE","DISABLE","N/A","VALID","unused_KB_COL6","Not Assigned","",null,null,null,"","","",null,""]
["KB_COL7","AA25","AJ37","AL33","unused_KB_COL7","GPIO3_PQ.07","","","","","B","B","","B","I","KBC","RSVD2","SPI2","UARTD","RSVD2","vddio_sys","","pu","RSVD2",null,"PULL_DOWN","TRISTATE","DISABLE","N/A","VALID","unused_KB_COL7","Not Assigned","",null,null,null,"","","",null,""]
["KB_ROW0","W31","AD36","AC34","unused_KB_ROW0","GPIO3_PR.00","","","","","B","B","","","","KBC","RSVD2","RSVD3","RSVD4","RSVD2","vddio_sys","","pd","GPIO_PR0",null,"NORMAL","NORMAL","ENABLE","0","VALID","GPIO3_PR.00","Bidirectional","Z",null,null,null,"","","",null,"Modified: TK1_GPIO5",null,null,"Enable Power to the SD Card","Enable Power to the SD Card","Enable Power to the SD Card","Enable Power to the SD Card"]
["KB_ROW1","Y26","AE35","AE33","unused_KB_ROW1","GPIO3_PR.01","","","","","B","B","","","","KBC","RSVD2","RSVD3","RSVD4","RSVD2","vddio_sys","","pd","RSVD2",null,"PULL_DOWN","TRISTATE","DISABLE","N/A","VALID","unused_KB_ROW1","Not Assigned","",null,null,null,"","","",null,"TP_AP_WP_L"]
["KB_ROW10","AA31","AE36","AG36","unused_KB_ROW10","GPIO3_PS.02","","","","UA3_RXD","B","B","","","I","KBC","RSVD2","RSVD3","UARTA","RSVD2","vddio_sys","wake9","pd","GPIO_PS2",null,"NORMAL","NORMAL","ENABLE","0","VALID","GPIO3_PS.02","Bidirectional","Z","No",null,null,"","","",null,"Modified: TK1_GPIO3","J3A2",44,"Debug UART","UART1","UART1","UART1"]
["KB_ROW11","V28","AC37","AB34","unused_KB_ROW11","GPIO3_PS.03","","","","","B","B","","","O","KBC","RSVD2","RSVD3","IRDA","RSVD2","vddio_sys","","pd","GPIO_PS3",null,"NORMAL","NORMAL","ENABLE","0","VALID","GPIO3_PS.03","Bidirectional","Z",null,null,null,"","","",null,"Modified: TK1_GPIO4"]
["KB_ROW12","Y27","AC36","AD36","unused_KB_ROW12","GPIO3_PS.04","","","","","B","B","","","I","KBC","RSVD2","RSVD3","IRDA","RSVD2","vddio_sys","wake25","pd","GPIO_PS4",null,"NORMAL","NORMAL","ENABLE","0","VALID","GPIO3_PS.04","Bidirectional","Z","No",null,null,"","","",null,"Modified: TK1_GPIO7"]
["KB_ROW13","AF29","AL38","AL35","unused_KB_ROW13","GPIO3_PS.05","","","","","B","B","","B","","KBC","RSVD2","SPI2","RSVD4","RSVD2","vddio_sys","wake26","pd","GPIO_PS5",null,"NORMAL","NORMAL","ENABLE","0","VALID","GPIO3_PS.05","Bidirectional","Z","No",null,null,"","","",null,"Modified: TK1_GPIO0"]
["KB_ROW14","AC30","AG36","AG34","unused_KB_ROW14","GPIO3_PS.06","","","","","B","B","","B","","KBC","RSVD2","SPI2","RSVD4","RSVD2","vddio_sys","wake28","pd","GPIO_PS6",null,"NORMAL","NORMAL","ENABLE","0","VALID","GPIO3_PS.06","Bidirectional","Z","No",null,null,"","","",null,"Modified: TK1_GPIO2"]
["KB_ROW15","Y25","AE34","AB35","unused_KB_ROW15","GPIO3_PS.07","","soc_therm_oc1_n","","","B","B","I","","","KBC","SOC","RSVD3","RSVD4","RSVD3","vddio_sys","wake29","pd","GPIO_PS7",null,"NORMAL","TRISTATE","ENABLE","0","VALID","GPIO3_PS.07","Input","","No",null,null,"","","",null,"IGPU_PWRGD",null,null,"GPU Overcurrent Interrupt","GPU Overcurrent Interrupt","GPU Overcurrent Interrupt","GPU Overcurrent Interrupt"]
["KB_ROW16","AA26",null,null,"unused_KB_ROW16","GPIO3_PT.00","","","","","B","B","","","O","KBC","RSVD2","RSVD3","UARTC","RSVD2","vddio_sys","","pd","GPIO_PT0",null,"NORMAL","NORMAL","ENABLE","0","VALID","GPIO3_PT.00","Bidirectional","Z",null,null,null,"","","",null,"Modifed: TK1_GPIO1"]
["KB_ROW17","AC29",null,null,"unused_KB_ROW17","GPIO3_PT.01","","","","","B","B","","","I","KBC","RSVD2","RSVD3","UARTC","RSVD2","vddio_sys","","pd","GPIO_PT1",null,"NORMAL","TRISTATE","ENABLE","0","VALID","GPIO3_PT.01","Input","",null,null,null,"100K","100K","",null,"BD_ID_STRAP1",null,null,"(boot strap)","(boot strap)","(boot strap)","(boot strap)"]
["KB_ROW2","AF30","AH37","AK35","unused_KB_ROW2","GPIO3_PR.02","","","","","B","B","","","","KBC","RSVD2","RSVD3","RSVD4","RSVD2","vddio_sys","","pd","GPIO_PR2",null,"NORMAL","NORMAL","DISABLE","0","VALID","GPIO3_PR.02","Output","Drive 0",null,null,null,"","","",null,"AUDIO_LDO_EN",null,null,"Audio Power Enable","Audio Power Enable","Audio Power Enable","Audio Power Enable"]
["KB_ROW3","AC31","AF36","AG35","unused_KB_ROW3","GPIO3_PR.03","","","SYS_CLK_REQ","","B","B","I","O","O","KBC","DISPLAYA","SYS","DISPLAYB","KBC","vddio_sys","",1,"KBC",null,"PULL_DOWN","TRISTATE","DISABLE","N/A","VALID","unused_KB_ROW3","Not Assigned","",null,null,null,"","","",null,""]
["KB_ROW4","Y29","AE38","AE35","unused_KB_ROW4","GPIO3_PR.04","","","","","B","B","O","","O","KBC","DISPLAYA","RSVD3","DISPLAYB","RSVD3","vddio_sys","wake50","pd","GPIO_PR4",null,"NORMAL","TRISTATE","ENABLE","0","VALID","GPIO3_PR.04","Input","","Yes",null,null,"100K","","",null,"LID_CLOSED_L",null,null,"Lid Close Detection (pulled-up)","Lid Close Detection (pulled-up)","Lid Close Detection (pulled-up)","Lid Close Detection (pulled-up)"]
["KB_ROW5","Y31","AC38","AD34","unused_KB_ROW5","GPIO3_PR.05","","","","","B","B","O","","I","KBC","DISPLAYA","RSVD3","DISPLAYB","RSVD3","vddio_sys","","pd","RSVD3",null,"PULL_DOWN","TRISTATE","DISABLE","N/A","VALID","unused_KB_ROW5","Not Assigned","",null,null,null,"","","",null,""]
["KB_ROW6","AB31","AF34","AK36","unused_KB_ROW6","GPIO3_PR.06","","","DCA_LSPII","","B","B","O","I","O","KBC","DISPLAYA","DISPLAYA_ALT","DISPLAYB","KBC","vddio_sys","","pd","GPIO_PR6",null,"NORMAL","NORMAL","ENABLE","0","VALID","GPIO3_PR.06","Bidirectional","Z",null,null,null,"","","",null,"Modified: TK1_GPIO6","J3A1",49,"LCD Teareffect Warning to AP","LCD Teareffect Warning to AP","LCD Teareffect Warning to AP","LCD Teareffect Warning to AP"]
["KB_ROW7","Y30","AE37","AE36","unused_KB_ROW7","GPIO3_PR.07","","","","","B","B","","O","O","KBC","RSVD2","CLDVFS","UARTA","RSVD2","vddio_sys","wake49","pd","RSVD2",null,"PULL_DOWN","TRISTATE","DISABLE","N/A","VALID","unused_KB_ROW7","Not Assigned","","Yes",null,null,"100K","","",null,"Modified; Unused",null,null,"Headphone Insertion Detection","Headphone Insertion Detection","Headphone Insertion Detection","Headphone Insertion Detection"]
["KB_ROW8","AA29","AF35","AH35","unused_KB_ROW8","GPIO3_PS.00","","","","","B","B","","O","I","KBC","RSVD2","CLDVFS","UARTA","RSVD2","vddio_sys","wake27","pd","RSVD2",null,"PULL_DOWN","TRISTATE","DISABLE","N/A","VALID","unused_KB_ROW8","Not Assigned","","No",null,null,"","",""]
["KB_ROW9","AA28","AF37","AF34","unused_KB_ROW9","GPIO3_PS.01","","","","UA3_TXD","B","B","","","O","KBC","RSVD2","RSVD3","UARTA","RSVD2","vddio_sys","","pd","RSVD2",null,"PULL_DOWN","TRISTATE","DISABLE","N/A","VALID","unused_KB_ROW9","Not Assigned","",null,null,null,"","","",null,"Modified; Unused","J3A2",41,"Debug UART","UART1","UART1","UART1"]
["SDMMC3_CD_N","V24","AE33","AD35","unused_SDMMC3_CD_N","GPIO3_PV.02","SDMMC3_CD_N","","","","B","I","O","","","SDMMC3","OWR","RSVD3","RSVD4","RSVD3","vddio_sys","wake56","pu","RSVD3",null,"PULL_DOWN","TRISTATE","DISABLE","N/A","VALID","unused_SDMMC3_CD_N","Not Assigned","Int PU","No",null,null,"","","",null,"Modified; Unused","J5B1","CD","SD Card Card Detect","SD Card Card Detect","SD Card Card Detect","SD Card Card Detect"]
["CLK_32K_OUT","J6","L3","B2","unused_CLK_32K_OUT","GPIO3_PA.00","","soc_therm_oc2_n","","","B","O","I","","","BLINK","SOC","RSVD3","RSVD4","RSVD3","vddio_sys_2","","pd","SOC",null,"PULL_UP","TRISTATE","ENABLE","N/A","VALID","soc_therm_oc2_n","Input","Int PU",null,null,null,"","","",null,"CPU_OC_INT",null,null,"CPU Regulator Overcurrent Alarm","CPU Regulator Overcurrent Alarm","CPU Regulator Overcurrent Alarm","CPU Regulator Overcurrent Alarm"]
["PWR_I2C_SCL","J4","L1","D3","unused_PWR_I2C_SCL","GPIO3_PZ.06","I2CPMU_CLK","","","","B","B","","","","I2CPWR","RSVD2","RSVD3","RSVD4","RSVD2","vddio_sys_2","","z","I2CPWR",null,"NORMAL","NORMAL","ENABLE","N/A","VALID","I2CPMU_CLK","Open-Drain","",null,null,null,"1K","","",null,"PWR_I2C_SCL","J3A2",50,"Power I2C","I2C5(PMU)","I2C5(PMU)","I2C5(PMU)"]
["PWR_I2C_SDA","J3","K1","F3","unused_PWR_I2C_SDA","GPIO3_PZ.07","I2CPMU_DAT","","","","B","B","","","","I2CPWR","RSVD2","RSVD3","RSVD4","RSVD2","vddio_sys_2","wake46","z","I2CPWR",null,"NORMAL","NORMAL","ENABLE","N/A","VALID","I2CPMU_DAT","Open-Drain","","No",null,null,"1K","","",null,"PWR_I2C_SDA","J3A2",53]
["JTAG_RTCK","J2","K3","E3","unused_JTAG_RTCK",null,"RTCK","","","",null,null,null,null,null,"RTCK","RSVD2","RSVD3","RSVD4","RSVD2","vddio_sys_2","","pu","RTCK",null,"PULL_UP","NORMAL","DISABLE","N/A","VALID","RTCK","Output","Int PU",null,null,null,"","","",null,"JTAG_RTCK","J4A1",11,"JTAG","JTAG","JTAG","JTAG"]
["JTAG_TRST_N","H4","K4","C4","unused_JTAG_TRST_N",null,"JTAG_TRST_N","","","",null,null,null,null,null,null,null,null,null,null,"vddio_sys_2","","pd",null,null,null,null,null,null,null,"JTAG_TRST_N","Input","Int PD",null,null,null,"","10K","",null,"JTAG_TRST_N"]
["JTAG_TDO","J1","L4","C2","unused_JTAG_TDO",null,"JTAG_TDO","","","",null,null,null,null,null,null,null,null,null,null,"vddio_sys_2","",0,null,null,null,null,null,null,null,"JTAG_TDO","Output","",null,null,null,"","","",null,"JTAG_TDO","J4A1",13]
["JTAG_TMS","J5","L5","C1","unused_JTAG_TMS",null,"JTAG_TMS","","","",null,null,null,null,null,null,null,null,null,null,"vddio_sys_2","","pu",null,null,null,null,null,null,null,"JTAG_TMS","Input","Int PU",null,null,null,"","","",null,"JTAG_TMS","J4A1",7]
["JTAG_TCK","H6","K5","C5","unused_JTAG_TCK",null,"JTAG_TCK","","","",null,null,null,null,null,null,null,null,null,null,"vddio_sys_2","","",null,null,null,null,null,null,null,"JTAG_TCK","Input","",null,null,null,"","100K","",null,"JTAG_TCK","J4A1",9]
["JTAG_TDI","H5","K2","B4","unused_JTAG_TDI",null,"JTAG_TDI","","","",null,null,null,null,null,null,null,null,null,null,"vddio_sys_2","","pu",null,null,null,null,null,null,null,"JTAG_TDI","Input","Int PU",null,null,null,"","","",null,"JTAG_TDI","J4A1",5]
["TEST_MODE_EN","H7","J3","F4","unused_TEST_MODE_EN",null,"TEST_MODE_","","","",null,null,null,null,null,null,null,null,null,null,"vddio_sys_2","","",null,null,null,null,null,null,null,"TEST_MODE_EN","Input","",null,null,null,"",0,"",null,"TEST_MODE_EN",null,null,"TEST MODE","TEST MODE","TEST MODE","TEST MODE"]
["SYS_RESET_N","AA30","AF38","AD33","unused_SYS_RESET_N",null,"SYS_RESET_N",null,null,null,null,null,null,null,null,null,null,null,null,null,null,null,null,null,null,null,null,null,null,null,"SYS_RESET_N","Input",null,null,null,null,null,null,null,null,"SYS_RESET_IN",null,null,"RESET into AP","RESET into AP","RESET into AP","RESET into AP"]
["CLK_32K_IN","H3","L2","B3","unused_CLK_32K_IN",null,"CLK_32K_IN","","","",null,null,null,null,null,"CLK","RSVD2","RSVD3","RSVD4","RSVD2","vddio_sys_2","","z",{"$f":"IF(OR($AE189=\"\",$AE189=$E189),$T189,IF($AE189=$F189,SUBSTITUTE(SUBSTITUTE($AE189,\"GPIO3_\",\"GPIO_\"),\".0\",\"\"),IF($AE189=$G189,$P189,IF($AE189=$H189,$Q189,IF($AE189=$I189,$R189,IF($AE189=$J189,$S189,\"INVALID\"))))))","v":"CLK"},null,{"$f":"IF(AND(OR($AG189=\"Int PU\",$AG189=\"Int PD\"),OR(AND($AK189<>\"\",$AK189<>\"0\"),AND($AL189<>\"\",$AL189<>\"0\"))),\"INVALID\",IF(OR($AE189=$E189,$AG189=\"Int PD\"),\"PULL_DOWN\",IF(OR($AG189=\"Int PU\",AND($Y189=\"YES\",OR($AK189=\"\",$AK189=\"0\"),OR($AL189=\"\",$AL189=\"0\"),OR($AF189=\"Input\",$AF189=\"Bidirectional\"))),\"PULL_UP\",\"NORMAL\")))","v":"NORMAL"},{"$f":"IF(OR($AE189=$E189,$AF189=\"Input\"),\"TRISTATE\",\"NORMAL\")","v":"TRISTATE"},{"$f":"IF(OR($AE189=$E189,$AF189=\"Output\"),\"DISABLE\",\"ENABLE\")","v":"ENABLE"},{"$f":"IF($AE189<>$F189,\"N/A\",IF($AG189=\"Drive 1\", \"1\", \"0\"))","v":"N/A"},{"$f":"IF(AND($AE189=$F189,OR(AND($K189=\"I\",OR($AF189=\"Output\",$AF189=\"Bidirectional\")),AND($K189=\"O\",OR($AF189=\"Input\",$AF189=\"Bidirectional\")))),\"INVALID\",IF(AND($AE189=$G189,OR(AND($L189=\"I\",OR($AF189=\"Output\",$AF189=\"Bidirectional\")),AND($L189=\"O\",OR($AF189=\"Input\",$AF189=\"Bidirectional\")))),\"INVALID\",IF(AND($AE189=$H189,OR(AND($M189=\"I\",OR($AF189=\"Output\",$AF189=\"Bidirectional\")),AND($M189=\"O\",OR($AF189=\"Input\",$AF189=\"Bidirectional\")))),\"INVALID\",IF(AND($AE189=$I189,OR(AND($N189=\"I\",OR($AF189=\"Output\",$AF189=\"Bidirectional\")),AND($N189=\"O\",OR($AF189=\"Input\",$AF189=\"Bidirectional\")))),\"INVALID\",IF(AND($AE189=$J189,OR(AND($O189=\"I\",OR($AF189=\"Output\",$AF189=\"Bidirectional\")),AND($O189=\"O\",OR($AF189=\"Input\",$AF189=\"Bidirectional\")))),\"INVALID\",\"VALID\")))))","v":"VALID"},"CLK_32K_IN","Input","",null,null,null,"","","",null,"CLK_32KHZ_PMU",null,null,"32KHZ CLOCK IN","32KHZ CLOCK IN","32KHZ CLOCK IN","32KHZ CLOCK IN"]
["CORE_PWR_REQ","Y28","AC35","AB33","unused_CORE_PWR_REQ",null,"PWRON","","","","","O","","","","PWRON","RSVD2","RSVD3","RSVD4","RSVD2","vddio_sys","",1,{"$f":"IF(OR($AE190=\"\",$AE190=$E190),$T190,IF($AE190=$F190,SUBSTITUTE(SUBSTITUTE($AE190,\"GPIO3_\",\"GPIO_\"),\".0\",\"\"),IF($AE190=$G190,$P190,IF($AE190=$H190,$Q190,IF($AE190=$I190,$R190,IF($AE190=$J190,$S190,\"INVALID\"))))))","v":"PWRON"},null,{"$f":"IF(AND(OR($AG190=\"Int PU\",$AG190=\"Int PD\"),OR(AND($AK190<>\"\",$AK190<>\"0\"),AND($AL190<>\"\",$AL190<>\"0\"))),\"INVALID\",IF(OR($AE190=$E190,$AG190=\"Int PD\"),\"PULL_DOWN\",IF(OR($AG190=\"Int PU\",AND($Y190=\"YES\",OR($AK190=\"\",$AK190=\"0\"),OR($AL190=\"\",$AL190=\"0\"),OR($AF190=\"Input\",$AF190=\"Bidirectional\"))),\"PULL_UP\",\"NORMAL\")))","v":"NORMAL"},{"$f":"IF(OR($AE190=$E190,$AF190=\"Input\"),\"TRISTATE\",\"NORMAL\")","v":"NORMAL"},{"$f":"IF(OR($AE190=$E190,$AF190=\"Output\"),\"DISABLE\",\"ENABLE\")","v":"DISABLE"},{"$f":"IF($AE190<>$F190,\"N/A\",IF($AG190=\"Drive 1\", \"1\", \"0\"))","v":"N/A"},{"$f":"IF(AND($AE190=$F190,OR(AND($K190=\"I\",OR($AF190=\"Output\",$AF190=\"Bidirectional\")),AND($K190=\"O\",OR($AF190=\"Input\",$AF190=\"Bidirectional\")))),\"INVALID\",IF(AND($AE190=$G190,OR(AND($L190=\"I\",OR($AF190=\"Output\",$AF190=\"Bidirectional\")),AND($L190=\"O\",OR($AF190=\"Input\",$AF190=\"Bidirectional\")))),\"INVALID\",IF(AND($AE190=$H190,OR(AND($M190=\"I\",OR($AF190=\"Output\",$AF190=\"Bidirectional\")),AND($M190=\"O\",OR($AF190=\"Input\",$AF190=\"Bidirectional\")))),\"INVALID\",IF(AND($AE190=$I190,OR(AND($N190=\"I\",OR($AF190=\"Output\",$AF190=\"Bidirectional\")),AND($N190=\"O\",OR($AF190=\"Input\",$AF190=\"Bidirectional\")))),\"INVALID\",IF(AND($AE190=$J190,OR(AND($O190=\"I\",OR($AF190=\"Output\",$AF190=\"Bidirectional\")),AND($O190=\"O\",OR($AF190=\"Input\",$AF190=\"Bidirectional\")))),\"INVALID\",\"VALID\")))))","v":"VALID"},"PWRON","Output","",null,null,null,"","","",null,"CORE_PWR_REQ",null,null,"SOC Power Request","SOC Power Request","SOC Power Request","SOC Power Request"]
["CPU_PWR_REQ","V25","AC34","AA35","unused_CPU_PWR_REQ",null,"CPU_PWR_REQ","","","","","O","","","","CPU","RSVD2","RSVD3","RSVD4","RSVD2","vddio_sys","",0,{"$f":"IF(OR($AE191=\"\",$AE191=$E191),$T191,IF($AE191=$F191,SUBSTITUTE(SUBSTITUTE($AE191,\"GPIO3_\",\"GPIO_\"),\".0\",\"\"),IF($AE191=$G191,$P191,IF($AE191=$H191,$Q191,IF($AE191=$I191,$R191,IF($AE191=$J191,$S191,\"INVALID\"))))))","v":"CPU"},null,{"$f":"IF(AND(OR($AG191=\"Int PU\",$AG191=\"Int PD\"),OR(AND($AK191<>\"\",$AK191<>\"0\"),AND($AL191<>\"\",$AL191<>\"0\"))),\"INVALID\",IF(OR($AE191=$E191,$AG191=\"Int PD\"),\"PULL_DOWN\",IF(OR($AG191=\"Int PU\",AND($Y191=\"YES\",OR($AK191=\"\",$AK191=\"0\"),OR($AL191=\"\",$AL191=\"0\"),OR($AF191=\"Input\",$AF191=\"Bidirectional\"))),\"PULL_UP\",\"NORMAL\")))","v":"NORMAL"},"NORMAL",{"$f":"IF(OR($AE191=$E191,$AF191=\"Output\"),\"DISABLE\",\"ENABLE\")","v":"DISABLE"},{"$f":"IF($AE191<>$F191,\"N/A\",IF($AG191=\"Drive 1\", \"1\", \"0\"))","v":"N/A"},{"$f":"IF(AND($AE191=$F191,OR(AND($K191=\"I\",OR($AF191=\"Output\",$AF191=\"Bidirectional\")),AND($K191=\"O\",OR($AF191=\"Input\",$AF191=\"Bidirectional\")))),\"INVALID\",IF(AND($AE191=$G191,OR(AND($L191=\"I\",OR($AF191=\"Output\",$AF191=\"Bidirectional\")),AND($L191=\"O\",OR($AF191=\"Input\",$AF191=\"Bidirectional\")))),\"INVALID\",IF(AND($AE191=$H191,OR(AND($M191=\"I\",OR($AF191=\"Output\",$AF191=\"Bidirectional\")),AND($M191=\"O\",OR($AF191=\"Input\",$AF191=\"Bidirectional\")))),\"INVALID\",IF(AND($AE191=$I191,OR(AND($N191=\"I\",OR($AF191=\"Output\",$AF191=\"Bidirectional\")),AND($N191=\"O\",OR($AF191=\"Input\",$AF191=\"Bidirectional\")))),\"INVALID\",IF(AND($AE191=$J191,OR(AND($O191=\"I\",OR($AF191=\"Output\",$AF191=\"Bidirectional\")),AND($O191=\"O\",OR($AF191=\"Input\",$AF191=\"Bidirectional\")))),\"INVALID\",\"VALID\")))))","v":"VALID"},"CPU_PWR_REQ","Output","",null,null,null,"","","",null,"CPU_PWR_REQ",null,null,"CPU Power Request","CPU Power Request","CPU Power Request","CPU Power Request"]
["PWR_INT_N","V30","AB38","AB36","unused_PWR_INT_N",null,"PMICINTR","","","","","I","","","","PMI","RSVD2","RSVD3","RSVD4","RSVD2","vddio_sys","wake18","z",{"$f":"IF(OR($AE192=\"\",$AE192=$E192),$T192,IF($AE192=$F192,SUBSTITUTE(SUBSTITUTE($AE192,\"GPIO3_\",\"GPIO_\"),\".0\",\"\"),IF($AE192=$G192,$P192,IF($AE192=$H192,$Q192,IF($AE192=$I192,$R192,IF($AE192=$J192,$S192,\"INVALID\"))))))","v":"PMI"},null,{"$f":"IF(AND(OR($AG192=\"Int PU\",$AG192=\"Int PD\"),OR(AND($AK192<>\"\",$AK192<>\"0\"),AND($AL192<>\"\",$AL192<>\"0\"))),\"INVALID\",IF(OR($AE192=$E192,$AG192=\"Int PD\"),\"PULL_DOWN\",IF(OR($AG192=\"Int PU\",AND($Y192=\"YES\",OR($AK192=\"\",$AK192=\"0\"),OR($AL192=\"\",$AL192=\"0\"),OR($AF192=\"Input\",$AF192=\"Bidirectional\"))),\"PULL_UP\",\"NORMAL\")))","v":"PULL_UP"},"TRISTATE",{"$f":"IF(OR($AE192=$E192,$AF192=\"Output\"),\"DISABLE\",\"ENABLE\")","v":"ENABLE"},{"$f":"IF($AE192<>$F192,\"N/A\",IF($AG192=\"Drive 1\", \"1\", \"0\"))","v":"N/A"},{"$f":"IF(AND($AE192=$F192,OR(AND($K192=\"I\",OR($AF192=\"Output\",$AF192=\"Bidirectional\")),AND($K192=\"O\",OR($AF192=\"Input\",$AF192=\"Bidirectional\")))),\"INVALID\",IF(AND($AE192=$G192,OR(AND($L192=\"I\",OR($AF192=\"Output\",$AF192=\"Bidirectional\")),AND($L192=\"O\",OR($AF192=\"Input\",$AF192=\"Bidirectional\")))),\"INVALID\",IF(AND($AE192=$H192,OR(AND($M192=\"I\",OR($AF192=\"Output\",$AF192=\"Bidirectional\")),AND($M192=\"O\",OR($AF192=\"Input\",$AF192=\"Bidirectional\")))),\"INVALID\",IF(AND($AE192=$I192,OR(AND($N192=\"I\",OR($AF192=\"Output\",$AF192=\"Bidirectional\")),AND($N192=\"O\",OR($AF192=\"Input\",$AF192=\"Bidirectional\")))),\"INVALID\",IF(AND($AE192=$J192,OR(AND($O192=\"I\",OR($AF192=\"Output\",$AF192=\"Bidirectional\")),AND($O192=\"O\",OR($AF192=\"Input\",$AF192=\"Bidirectional\")))),\"INVALID\",\"VALID\")))))","v":"VALID"},"PMICINTR","Input","Int PU","Yes",null,null,"","","",null,"PMU_INT_L",null,null,"PMIC Interrupt to AP","PMIC Interrupt to AP","PMIC Interrupt to AP","PMIC Interrupt to AP"]
["RESET_OUT_N","Y24","AF33","AE34","unused_RESET_OUT_N",null,"","","","RESET_OUT_N",null,null,null,null,"O","RSVD1","RSVD2","RSVD3","RESET_OUT_N","RSVD1","vddio_sys","",0,{"$f":"IF(OR($AE193=\"\",$AE193=$E193),$T193,IF($AE193=$F193,SUBSTITUTE(SUBSTITUTE($AE193,\"GPIO3_\",\"GPIO_\"),\".0\",\"\"),IF($AE193=$G193,$P193,IF($AE193=$H193,$Q193,IF($AE193=$I193,$R193,IF($AE193=$J193,$S193,\"INVALID\"))))))","v":"RESET_OUT_N"},null,{"$f":"IF(AND(OR($AG193=\"Int PU\",$AG193=\"Int PD\"),OR(AND($AK193<>\"\",$AK193<>\"0\"),AND($AL193<>\"\",$AL193<>\"0\"))),\"INVALID\",IF(OR($AE193=$E193,$AG193=\"Int PD\"),\"PULL_DOWN\",IF(OR($AG193=\"Int PU\",AND($Y193=\"YES\",OR($AK193=\"\",$AK193=\"0\"),OR($AL193=\"\",$AL193=\"0\"),OR($AF193=\"Input\",$AF193=\"Bidirectional\"))),\"PULL_UP\",\"NORMAL\")))","v":"NORMAL"},"NORMAL",{"$f":"IF(OR($AE193=$E193,$AF193=\"Output\"),\"DISABLE\",\"ENABLE\")","v":"ENABLE"},{"$f":"IF($AE193<>$F193,\"N/A\",IF($AG193=\"Drive 1\", \"1\", \"0\"))","v":"N/A"},{"$f":"IF(AND($AE193=$F193,OR(AND($K193=\"I\",OR($AF193=\"Output\",$AF193=\"Bidirectional\")),AND($K193=\"O\",OR($AF193=\"Input\",$AF193=\"Bidirectional\")))),\"INVALID\",IF(AND($AE193=$G193,OR(AND($L193=\"I\",OR($AF193=\"Output\",$AF193=\"Bidirectional\")),AND($L193=\"O\",OR($AF193=\"Input\",$AF193=\"Bidirectional\")))),\"INVALID\",IF(AND($AE193=$H193,OR(AND($M193=\"I\",OR($AF193=\"Output\",$AF193=\"Bidirectional\")),AND($M193=\"O\",OR($AF193=\"Input\",$AF193=\"Bidirectional\")))),\"INVALID\",IF(AND($AE193=$I193,OR(AND($N193=\"I\",OR($AF193=\"Output\",$AF193=\"Bidirectional\")),AND($N193=\"O\",OR($AF193=\"Input\",$AF193=\"Bidirectional\")))),\"INVALID\",IF(AND($AE193=$J193,OR(AND($O193=\"I\",OR($AF193=\"Output\",$AF193=\"Bidirectional\")),AND($O193=\"O\",OR($AF193=\"Input\",$AF193=\"Bidirectional\")))),\"INVALID\",\"VALID\")))))","v":"VALID"},"RESET_OUT_N","Open-Drain","",null,null,null,"","","",null,"",null,null,"Reset Out From AP","Reset Out From AP","Reset Out From AP","Reset Out From AP"]
["UART",null,null,null,null,null,null,null,null,null,null,null,null,null,null,null,null,null,null,null,null,null,null,null,null,null,null,null,null,null,null,null,null,null,null,null,null,null,null,"1.8V"]
["CLK3_OUT","P7","W4","R1","unused_CLK3_OUT","GPIO3_PEE.00","extperiph3_clk","","","","B","O","","","","EXTPERIPH3","RSVD2","RSVD3","RSVD4","RSVD2","vddio_uart","","z",{"$f":"IF(OR($AE195=\"\",$AE195=$E195),$T195,IF($AE195=$F195,SUBSTITUTE(SUBSTITUTE($AE195,\"GPIO3_\",\"GPIO_\"),\".0\",\"\"),IF($AE195=$G195,$P195,IF($AE195=$H195,$Q195,IF($AE195=$I195,$R195,IF($AE195=$J195,$S195,\"INVALID\"))))))","v":"RSVD2"},null,{"$f":"IF(AND(OR($AG195=\"Int PU\",$AG195=\"Int PD\"),OR(AND($AK195<>\"\",$AK195<>\"0\"),AND($AL195<>\"\",$AL195<>\"0\"))),\"INVALID\",IF(OR($AE195=$E195,$AG195=\"Int PD\"),\"PULL_DOWN\",IF(OR($AG195=\"Int PU\",AND($Y195=\"YES\",OR($AK195=\"\",$AK195=\"0\"),OR($AL195=\"\",$AL195=\"0\"),OR($AF195=\"Input\",$AF195=\"Bidirectional\"))),\"PULL_UP\",\"NORMAL\")))","v":"PULL_DOWN"},{"$f":"IF(OR($AE195=$E195,$AF195=\"Input\"),\"TRISTATE\",\"NORMAL\")","v":"TRISTATE"},{"$f":"IF(OR($AE195=$E195,$AF195=\"Output\"),\"DISABLE\",\"ENABLE\")","v":"DISABLE"},{"$f":"IF($AE195<>$F195,\"N/A\",IF($AG195=\"Drive 1\", \"1\", \"0\"))","v":"N/A"},{"$f":"IF(AND($AE195=$F195,OR(AND($K195=\"I\",OR($AF195=\"Output\",$AF195=\"Bidirectional\")),AND($K195=\"O\",OR($AF195=\"Input\",$AF195=\"Bidirectional\")))),\"INVALID\",IF(AND($AE195=$G195,OR(AND($L195=\"I\",OR($AF195=\"Output\",$AF195=\"Bidirectional\")),AND($L195=\"O\",OR($AF195=\"Input\",$AF195=\"Bidirectional\")))),\"INVALID\",IF(AND($AE195=$H195,OR(AND($M195=\"I\",OR($AF195=\"Output\",$AF195=\"Bidirectional\")),AND($M195=\"O\",OR($AF195=\"Input\",$AF195=\"Bidirectional\")))),\"INVALID\",IF(AND($AE195=$I195,OR(AND($N195=\"I\",OR($AF195=\"Output\",$AF195=\"Bidirectional\")),AND($N195=\"O\",OR($AF195=\"Input\",$AF195=\"Bidirectional\")))),\"INVALID\",IF(AND($AE195=$J195,OR(AND($O195=\"I\",OR($AF195=\"Output\",$AF195=\"Bidirectional\")),AND($O195=\"O\",OR($AF195=\"Input\",$AF195=\"Bidirectional\")))),\"INVALID\",\"VALID\")))))","v":"VALID"},"unused_CLK3_OUT","Not Assigned","",null,null,null,"","","",null,"Modified; Unused","J3A2",70,"CLK3_OUT","CLK3_OUT","CLK3_OUT","CLK3_OUT"]
["CLK3_REQ","M7","P4","K2","unused_CLK3_REQ","GPIO3_PEE.01","","","","","B","I","","","","DEV3","RSVD2","RSVD3","RSVD4","RSVD2","vddio_uart","","z","RSVD2",null,"PULL_DOWN",{"$f":"IF(OR($AE196=$E196,$AF196=\"Input\"),\"TRISTATE\",\"NORMAL\")","v":"TRISTATE"},"DISABLE","N/A","VALID","unused_CLK3_REQ","Not Assigned","",null,null,null,"","",""]
["DAP4_DIN","P3","T5","T3","unused_DAP4_DIN","GPIO3_PP.05","I2S3_SDATA_IN","","","","B","I","O","","","I2S3","GMI","RSVD3","RSVD4","RSVD3","vddio_uart","","pd","RSVD3",null,"PULL_DOWN","TRISTATE","DISABLE","N/A","VALID","unused_DAP4_DIN","Not Assigned","",null,null,null,"","","",null,"TP_DAP4_DIN",null,null,null,"PCM (BT)","PCM (BT)","PCM (BT)"]
["DAP4_DOUT","P5","U2","R3","unused_DAP4_DOUT","GPIO3_PP.06","I2S3_SDATA_OUT","","","","B","B","O","I","","I2S3","GMI","DTV","RSVD4","RSVD4","vddio_uart","","pd","RSVD4",null,"PULL_DOWN","TRISTATE","DISABLE","N/A","VALID","unused_DAP4_DOUT","Not Assigned","",null,null,null,"","","",null,"TP_DAP4_DOUT"]
["DAP4_FS","P1","U3","P3","unused_DAP4_FS","GPIO3_PP.04","I2S3_LRCK","","","","B","B","O","I","","I2S3","GMI","DTV","RSVD4","RSVD4","vddio_uart","","pd","RSVD4",null,"PULL_DOWN","TRISTATE","DISABLE","N/A","VALID","unused_DAP4_FS","Not Assigned","",null,null,null,"","","",null,"TP_DAP4_FS"]
["DAP4_SCLK","N1","T4","N1","unused_DAP4_SCLK","GPIO3_PP.07","I2S3_SCLK","","","","B","B","O","","","I2S3","GMI","RSVD3","RSVD4","RSVD3","vddio_uart","","pd","RSVD3",null,"PULL_DOWN","TRISTATE","DISABLE","N/A","VALID","unused_DAP4_SCLK","Not Assigned","",null,null,null,"","","",null,"TP_DAP4_SCLK"]
["GEN1_I2C_SCL","P6","P5","T4","unused_GEN1_I2C_SCL","GPIO3_PC.04","I2C1_CLK","","","","B","B","","","","I2C1","RSVD2","RSVD3","RSVD4","RSVD2","vddio_uart","","z","I2C1",null,"NORMAL","NORMAL","ENABLE","N/A","VALID","I2C1_CLK","Open-Drain","",null,"Disable",null,"1K","","",null,"GEN1_I2C_SCL","J3A1\nJ3A2\nJ2D2","21\n56\n30","GEN1_I2C","I2C1","I2C1","I2C1"]
["GEN1_I2C_SDA","M6","R3","M4","unused_GEN1_I2C_SDA","GPIO3_PC.05","I2C1_DAT","","","","B","B","","","","I2C1","RSVD2","RSVD3","RSVD4","RSVD2","vddio_uart","wake44","z","I2C1",null,"NORMAL","NORMAL","ENABLE","N/A","VALID","I2C1_DAT","Open-Drain","","No","Disable",null,"1K","","",null,"GEN1_I2C_SDA","J3A1\nJ3A2\nJ2D2","23\n59\n32"]
["GPIO_PU0","R7","Y2","U3","unused_GPIO_PU0","GPIO3_PU.00","","UA3_TXD","","","B","O","O","O","","OWR","UARTA","GMI","RSVD4","RSVD4","vddio_uart","","z","RSVD4",null,"PULL_DOWN","TRISTATE","DISABLE","N/A","VALID","unused_GPIO_PU0","Not Assigned","",null,null,null,"","","",null,"Modified; Unused","J3A2",40,"GPIO_PU0","UART1","UART1","UART1"]
["GPIO_PU1","P2","Y3","V1","unused_GPIO_PU1","GPIO3_PU.01","","UA3_RXD","","","B","","I","O","","RSVD1","UARTA","GMI","RSVD4","RSVD1","vddio_uart","","z","RSVD1",null,"PULL_DOWN","TRISTATE","DISABLE","N/A","VALID","unused_GPIO_PU1","Not Assigned","",null,null,null,"","","",null,"Modified; Unused","J3A2",43,"GPIO_PU1"]
["GPIO_PU2","M10","Y1","M1","unused_GPIO_PU2","GPIO3_PU.02","","UA3_CTS","","","B","","I","O","","RSVD1","UARTA","GMI","RSVD4","RSVD1","vddio_uart","","z","RSVD1",null,"PULL_DOWN","TRISTATE","DISABLE","N/A","VALID","unused_GPIO_PU2","Not Assigned","",null,null,null,"","","",null,"Modified; Unused","J3A2",46,"GPIO_PU2"]
["GPIO_PU3","P8","W1","N4","unused_GPIO_PU3","GPIO3_PU.03","","UA3_RTS","","","B","O","O","O","O","PWM0","UARTA","GMI","DISPLAYB","GMI","vddio_uart","","z","GMI",null,"PULL_DOWN","TRISTATE","DISABLE","N/A","VALID","unused_GPIO_PU3","Not Assigned","",null,null,null,"","","",null,"Modified; Unused","J3A2",49,"GPIO_PU3"]
["GPIO_PU4","M9","W2","M2","unused_GPIO_PU4","GPIO3_PU.04","","","","","B","O","O","O","O","PWM1","UARTA","GMI","DISPLAYB","GMI","vddio_uart","","z","GMI",null,"PULL_DOWN","TRISTATE","DISABLE","N/A","VALID","unused_GPIO_PU4","Not Assigned","",null,null,null,"","","",null,"Modified; Unused","J3A2",52,"GPIO_PU4"]
["GPIO_PU5","M4","T1","M5","unused_GPIO_PU5","GPIO3_PU.05","","","","","B","O","I","O","O","PWM2","UARTA","GMI","DISPLAYB","GMI","vddio_uart","wake6","z","GMI",null,"PULL_DOWN","TRISTATE","DISABLE","N/A","VALID","unused_GPIO_PU5","Not Assigned","","No",null,null,"","","",null,"Modified; Unused","J3A2",55,"GPIO_PU5"]
["GPIO_PU6","M5","U1","M3","unused_GPIO_PU6","GPIO3_PU.06","","","","","B","O","I","","O","PWM3","UARTA","RSVD3","GMI","RSVD3","vddio_uart","wake7","z","RSVD3",null,"PULL_DOWN","TRISTATE","DISABLE","N/A","VALID","unused_GPIO_PU6","Not Assigned","","No",null,null,"","","",null,"Modified; Unused","J3A2",58,"GPIO_PU6"]
["UART2_CTS_N","M1","W3","N5","unused_UART2_CTS_N","GPIO3_PJ.05","","UB3_CTS","","","B","I","I","O","B","UARTA","UARTB","GMI","SPI4","GMI","vddio_uart","","pu","UARTB",null,"PULL_UP","TRISTATE","ENABLE","N/A","VALID","UB3_CTS","Input","Int PU",null,null,null,"","","",null,"UART2_CTS_L","J3A2",71,"GPS UART 2","UART 2","UART 2","UART 2"]
["UART2_RTS_N","P4","V3","R2","unused_UART2_RTS_N","GPIO3_PJ.06","","UB3_RTS","","","B","O","O","O","B","UARTA","UARTB","GMI","SPI4","GMI","vddio_uart","","pu","UARTB",null,"NORMAL","NORMAL","DISABLE","N/A","VALID","UB3_RTS","Output","",null,null,null,"","","",null,"UART2_RTS_L","J3A2",74]
["UART2_RXD","L9","W6","N3","unused_UART2_RXD","GPIO3_PC.03","IR3_RXD","","","","B","I","O","I","B","IRDA","SPDIF","UARTA","SPI4","IRDA","vddio_uart","","pu","IRDA",null,"PULL_UP","TRISTATE","ENABLE","N/A","VALID","IR3_RXD","Input","Int PU",null,null,null,"","","",null,"UART2_RXD","J3A2",65]
["UART2_TXD","M8","W5","N2","unused_UART2_TXD","GPIO3_PC.02","IR3_TXD","","","","B","O","I","O","B","IRDA","SPDIF","UARTA","SPI4","IRDA","vddio_uart","","pu","IRDA",null,"NORMAL","NORMAL","DISABLE","N/A","VALID","IR3_TXD","Output","",null,null,null,"","","",null,"UART2_TXD","J3A2",68]
["UART3_CTS_N","R8","U5","V2","unused_UART3_CTS_N","GPIO3_PA.01","UC3_CTS","","","","B","I","I","I","O","UARTC","SDMMC1","DTV","GMI","GMI","vddio_uart","wake55","pu","GMI",null,"PULL_DOWN","TRISTATE","DISABLE","N/A","VALID","unused_UART3_CTS_N","Not Assigned","","No",null,null,"","","",null,"",null,null,null,"UART 3(BT)","UART 3(BT)","UART 3(BT)"]
["UART3_RTS_N","R9","U4","R4","unused_UART3_RTS_N","GPIO3_PC.00","UC3_RTS","","","","B","O","O","I","O","UARTC","PWM0","DTV","GMI","GMI","vddio_uart","","pu","GMI",null,"PULL_DOWN","TRISTATE","DISABLE","N/A","VALID","unused_UART3_RTS_N","Not Assigned","",null,null,null,"","","",null,""]
["UART3_RXD","M3","T2","L3","unused_UART3_RXD","GPIO3_PW.07","UC3_RXD","","","","B","I","","O","B","UARTC","RSVD2","GMI","SPI4","RSVD2","vddio_uart","","pu","RSVD2",null,"PULL_DOWN","TRISTATE","DISABLE","N/A","VALID","unused_UART3_RXD","Not Assigned","",null,null,null,"","","",null,""]
["UART3_TXD","M2","T3","K1","unused_UART3_TXD","GPIO3_PW.06","UC3_TXD","","","","B","O","","O","B","UARTC","RSVD2","GMI","SPI4","RSVD2","vddio_uart","","pu","RSVD2",null,"PULL_DOWN","TRISTATE","DISABLE","N/A","VALID","unused_UART3_TXD","Not Assigned","",null,null,null,"","","",null,""]
["HV",null,null,null,null,null,null,null,null,null,null,null,null,null,null,null,null,null,null,null,null,null,null,null,null,null,null,null,null,null,null,null,null,null,null,null,null,null,null,"3.3V"]
["HDMI_CEC","AD7","AJ4","AL2","unused_HDMI_CEC","GPIO3_PEE.03","CEC","","","","B","B","","","","CEC","RSVD2","RSVD3","RSVD4","RSVD2","vddio_hv","wake52","z",{"$f":"IF(OR($AE219=\"\",$AE219=$E219),$T219,IF($AE219=$F219,SUBSTITUTE(SUBSTITUTE($AE219,\"GPIO3_\",\"GPIO_\"),\".0\",\"\"),IF($AE219=$G219,$P219,IF($AE219=$H219,$Q219,IF($AE219=$I219,$R219,IF($AE219=$J219,$S219,\"INVALID\"))))))","v":"CEC"},null,{"$f":"IF(AND(OR($AG219=\"Int PU\",$AG219=\"Int PD\"),OR(AND($AK219<>\"\",$AK219<>\"0\"),AND($AL219<>\"\",$AL219<>\"0\"))),\"INVALID\",IF(OR($AE219=$E219,$AG219=\"Int PD\"),\"PULL_DOWN\",IF(OR($AG219=\"Int PU\",AND($Y219=\"YES\",OR($AK219=\"\",$AK219=\"0\"),OR($AL219=\"\",$AL219=\"0\"),OR($AF219=\"Input\",$AF219=\"Bidirectional\"))),\"PULL_UP\",\"NORMAL\")))","v":"NORMAL"},{"$f":"IF(OR($AE219=$E219,$AF219=\"Input\"),\"TRISTATE\",\"NORMAL\")","v":"NORMAL"},{"$f":"IF(OR($AE219=$E219,$AF219=\"Output\"),\"DISABLE\",\"ENABLE\")","v":"ENABLE"},{"$f":"IF($AE219<>$F219,\"N/A\",IF($AG219=\"Drive 1\", \"1\", \"0\"))","v":"N/A"},{"$f":"IF(AND($AE219=$F219,OR(AND($K219=\"I\",OR($AF219=\"Output\",$AF219=\"Bidirectional\")),AND($K219=\"O\",OR($AF219=\"Input\",$AF219=\"Bidirectional\")))),\"INVALID\",IF(AND($AE219=$G219,OR(AND($L219=\"I\",OR($AF219=\"Output\",$AF219=\"Bidirectional\")),AND($L219=\"O\",OR($AF219=\"Input\",$AF219=\"Bidirectional\")))),\"INVALID\",IF(AND($AE219=$H219,OR(AND($M219=\"I\",OR($AF219=\"Output\",$AF219=\"Bidirectional\")),AND($M219=\"O\",OR($AF219=\"Input\",$AF219=\"Bidirectional\")))),\"INVALID\",IF(AND($AE219=$I219,OR(AND($N219=\"I\",OR($AF219=\"Output\",$AF219=\"Bidirectional\")),AND($N219=\"O\",OR($AF219=\"Input\",$AF219=\"Bidirectional\")))),\"INVALID\",IF(AND($AE219=$J219,OR(AND($O219=\"I\",OR($AF219=\"Output\",$AF219=\"Bidirectional\")),AND($O219=\"O\",OR($AF219=\"Input\",$AF219=\"Bidirectional\")))),\"INVALID\",\"VALID\")))))","v":"VALID"},"CEC","Bidirectional","","Yes",null,null,"162K","","",null,"HDMI_CEC","J1C1",13,"HDMI_CEC","HDMI_CEC","HDMI_CEC","HDMI_CEC"]
["HDMI_INT","AC3","AM4","AK5","unused_HDMI_INT","GPIO3_PN.07","","","","","B","","","","","RSVD1","RSVD2","RSVD3","RSVD4","RSVD1","vddio_hv","wake4","pd","GPIO_PN7",null,"PULL_DOWN","TRISTATE","ENABLE","0","VALID","GPIO3_PN.07","Input","Int PD","Yes",null,"NORMAL","","","",null,"HDMI_INT","J1C1",19,"HDMI_INT","HDMI_INT","HDMI_INT","HDMI_INT"]
["DDC_SCL","AC7","AP1","AK4","unused_DDC_SCL","GPIO3_PV.04","I2C4_CLK","","","","B","B","","","","I2C4","RSVD2","RSVD3","RSVD4","RSVD2","vddio_hv","","z","I2C4",null,"NORMAL","NORMAL","ENABLE","N/A","VALID","I2C4_CLK","Open-Drain","",null,null,"NORMAL","1.8K","","",null,"HDMI_DDC_SCL","J1C1",15,"HDMI_DDC","I2C4","I2C4","I2C4"]
["DDC_SDA","AC8","AR1","AL1","unused_DDC_SDA","GPIO3_PV.05","I2C4_DAT","","","","B","B","","","","I2C4","RSVD2","RSVD3","RSVD4","RSVD2","vddio_hv","","z","I2C4",null,"NORMAL","NORMAL","ENABLE","N/A","VALID","I2C4_DAT","Open-Drain","",null,null,"NORMAL","1.8K","","",null,"HDMI_DDC_SDA","J1C1",16]
["SPDIF_OUT","AC4","AP3","AL5","unused_SPDIF_OUT","GPIO3_PK.05","SPDIF_OUT","","","","B","O","","","B","SPDIF","RSVD2","RSVD3","I2C3","RSVD2","vddio_hv","","pu","RSVD2",null,"PULL_DOWN","TRISTATE","DISABLE","N/A","VALID","unused_SPDIF_OUT","Not Assigned","",null,null,null,"","","",null,""]
["SPDIF_IN","AA8","AP2","AL4","unused_SPDIF_IN","GPIO3_PK.06","SPDIF_IN","","","","B","I","","","B","SPDIF","RSVD2","RSVD3","I2C3","RSVD2","vddio_hv","wake57","pd","GPIO_PK6",null,"NORMAL","NORMAL","DISABLE","0","VALID","GPIO3_PK.06","Output","Drive 0","No",null,null,"","","",null,"EN_VDD_HDMI",null,null,"Turn on/off the HDMI Load Switch","Turn on/off the HDMI Load Switch","Turn on/off the HDMI Load Switch","Turn on/off the HDMI Load Switch"]
["USB_VBUS_EN0","AB1","AM3",null,"unused_USB_VBUS_EN0","GPIO3_PN.04","usb_vbus_en0","","","","B","B","","","","USB","RSVD2","RSVD3","RSVD4","RSVD2","vddio_hv","",0,"USB",null,"NORMAL","NORMAL","ENABLE","N/A","VALID","usb_vbus_en0","Bidirectional","Z",null,null,null,null,"1K","",null,"Modified: Drive0->Z 100K PU->1K PD; USB_VBUS_EN0",null,null,"USB VBUS0 EN ","USB VBUS0 EN ","USB VBUS0 EN ","USB VBUS0 EN "]
["USB_VBUS_EN1","AC1","AN3",null,"unused_USB_VBUS_EN1","GPIO3_PN.05","usb_vbus_en1","","","","B","B","","","","USB","RSVD2","RSVD3","RSVD4","RSVD2","vddio_hv","",0,"USB",null,"NORMAL","NORMAL","ENABLE","N/A","VALID","usb_vbus_en1","Bidirectional","Z",null,null,null,null,"1K","",null,"Modified: 100KPU->1KpdUSB_VBUS_EN1",null,null,"USB VBUS1 EN  ","USB VBUS1 EN  ","USB VBUS1 EN  ","USB VBUS1 EN  "]
["DP_AUX_CH0_P","AC6","AL5","AP6","unused_DP_AUX_CH0_P",null,"I2C6_CLK","","","","","B","","","",null,null,null,null,null,"vddio_hv","","z",null,null,null,null,null,null,null,"unused_DP_AUX_CH0_P","Not Assigned","",null,null,null,"",null,"",null,"Modified; Unused","J3A1",28,"DP_AUX","I2C6","I2C6","I2C6"]
["DP_AUX_CH0_N","AC5","AL4","AR6","unused_DP_AUX_CH0_N",null,"I2C6_DAT","","","","","B","","","",null,null,null,null,null,"vddio_hv","","z",null,null,null,null,null,null,null,"unused_DP_AUX_CH0_N","Not Assigned","",null,null,null,"",null,"",null,"Modified; Unused","J3A1",30]
["DP_HPD","AC2","AK3",null,"unused_DP_HPD","GPIO3_PFF.00","DP_HPD","","","","B","I","","","","DP","RSVD2","RSVD3","RSVD4","RSVD2","vddio_hv","","z","RSVD2",null,"PULL_DOWN",{"$f":"IF(OR($AE229=$E229,$AF229=\"Input\"),\"TRISTATE\",\"NORMAL\")","v":"TRISTATE"},"DISABLE","N/A","VALID","unused_DP_HPD","Not Assigned","",null,null,null,"","","",null,"Modified; Unused","J3A1",46,"eDP Hot Plug Detect","eDP Hot Plug Detect","eDP Hot Plug Detect","eDP Hot Plug Detect"]
["DSIB_CSI_CD"]
["MIPI_PAD_CTRL_DSI_B",null,null,null,null,null,"CSI_CD","DSI_B",null,null,null,"I","O",null,null,"CSI","DSI_B","RSVD3","RSVD4","DSI_B","avdd_csi_dsi",null,null,{"$f":"IF(OR($AE231=\"\",$AE231=$E231),$T231,IF($AE231=$F231,SUBSTITUTE(SUBSTITUTE($AE231,\"GPIO3_\",\"GPIO_\"),\".0\",\"\"),IF($AE231=$G231,$P231,IF($AE231=$H231,$Q231,IF($AE231=$I231,$R231,IF($AE231=$J231,$S231,\"INVALID\"))))))","v":"DSI_B"},null,"PULL_DOWN","NORMAL","ENABLE","N/A",{"$f":"IF(AND($AE231=$F231,OR(AND($K231=\"I\",OR($AF231=\"Output\",$AF231=\"Bidirectional\")),AND($K231=\"O\",OR($AF231=\"Input\",$AF231=\"Bidirectional\")))),\"INVALID\",IF(AND($AE231=$G231,OR(AND($L231=\"I\",OR($AF231=\"Output\",$AF231=\"Bidirectional\")),AND($L231=\"O\",OR($AF231=\"Input\",$AF231=\"Bidirectional\")))),\"INVALID\",IF(AND($AE231=$H231,OR(AND($M231=\"I\",OR($AF231=\"Output\",$AF231=\"Bidirectional\")),AND($M231=\"O\",OR($AF231=\"Input\",$AF231=\"Bidirectional\")))),\"INVALID\",IF(AND($AE231=$I231,OR(AND($N231=\"I\",OR($AF231=\"Output\",$AF231=\"Bidirectional\")),AND($N231=\"O\",OR($AF231=\"Input\",$AF231=\"Bidirectional\")))),\"INVALID\",IF(AND($AE231=$J231,OR(AND($O231=\"I\",OR($AF231=\"Output\",$AF231=\"Bidirectional\")),AND($O231=\"O\",OR($AF231=\"Input\",$AF231=\"Bidirectional\")))),\"INVALID\",\"VALID\")))))","v":"VALID"},"DSI_B","Output",null,null,null,null,null,null," ",null,null,null,null,null,"DSI_B","DSI_B","DSI_B"]
["Dedicated SFIOs"]
["DDR",null,null,null,null,null,null,null,null,null,null,null,null,null,null,null,null,null,null,null,null,null,null,null,null,null,null,null,null,null,null,null,null,null,null,null,null,null,null,"1.35V"]
["DDR_A0","E14","D16",null,"unused_DDR_A0",null,"DDR_A0",null,null,null,null,null,null,null,null,null,null,null,null,null,"vddio_ddr",null,null,null,null,null,null,null,null,null,"DDR_A0",null,null,null,null,null,null,null,null,null,"DDR_A<2>",null,null,"DDR3L","DDR3L","DDR3L","DDR3L"]
["DDR_A1","D14","E16",null,"unused_DDR_A1",null,"DDR_A1",null,null,null,null,null,null,null,null,null,null,null,null,null,"vddio_ddr",null,null,null,null,null,null,null,null,null,"DDR_A1",null,null,null,null,null,null,null,null,null,"DDR_A0<5>"]
["DDR_A2","E15","A17",null,"unused_DDR_A2",null,"DDR_A2",null,null,null,null,null,null,null,null,null,null,null,null,null,"vddio_ddr",null,null,null,null,null,null,null,null,null,"DDR_A2",null,null,null,null,null,null,null,null,null,"DDR_WE_L"]
["DDR_A3","E12","A14",null,"unused_DDR_A3",null,"DDR_A3",null,null,null,null,null,null,null,null,null,null,null,null,null,"vddio_ddr",null,null,null,null,null,null,null,null,null,"DDR_A3",null,null,null,null,null,null,null,null,null,"DDR_A0<4>"]
["DDR_A4","D12","B14",null,"unused_DDR_A4",null,"DDR_A4",null,null,null,null,null,null,null,null,null,null,null,null,null,"vddio_ddr",null,null,null,null,null,null,null,null,null,"DDR_A4",null,null,null,null,null,null,null,null,null,"DDR_A<1>"]
["DDR_A5","F12","C14",null,"unused_DDR_A5",null,"DDR_A5",null,null,null,null,null,null,null,null,null,null,null,null,null,"vddio_ddr",null,null,null,null,null,null,null,null,null,"DDR_A5",null,null,null,null,null,null,null,null,null,"DDR_A<9>"]
["DDR_A6","C12","C15",null,"unused_DDR_A6",null,"DDR_A6",null,null,null,null,null,null,null,null,null,null,null,null,null,"vddio_ddr",null,null,null,null,null,null,null,null,null,"DDR_A6",null,null,null,null,null,null,null,null,null,"DDR_A<8>"]
["DDR_A7","F14","C16",null,"unused_DDR_A7",null,"DDR_A7",null,null,null,null,null,null,null,null,null,null,null,null,null,"vddio_ddr",null,null,null,null,null,null,null,null,null,"DDR_A7",null,null,null,null,null,null,null,null,null,"DDR_A<7>"]
["DDR_A8","D15","B16",null,"unused_DDR_A8",null,"DDR_A8",null,null,null,null,null,null,null,null,null,null,null,null,null,"vddio_ddr",null,null,null,null,null,null,null,null,null,"DDR_A8",null,null,null,null,null,null,null,null,null,"DDR_RAS_L"]
["DDR_A9","B12","A16",null,"unused_DDR_A9",null,"DDR_A9",null,null,null,null,null,null,null,null,null,null,null,null,null,"vddio_ddr",null,null,null,null,null,null,null,null,null,"DDR_A9",null,null,null,null,null,null,null,null,null,"DDR_A<6>"]
["DDR_A10","D18","D20",null,"unused_DDR_A10",null,"DDR_A10",null,null,null,null,null,null,null,null,null,null,null,null,null,"vddio_ddr",null,null,null,null,null,null,null,null,null,"DDR_A10",null,null,null,null,null,null,null,null,null,"DDR_A<13>"]
["DDR_A11","G17","B23",null,"unused_DDR_A11",null,"DDR_A11",null,null,null,null,null,null,null,null,null,null,null,null,null,"vddio_ddr",null,null,null,null,null,null,null,null,null,"DDR_A11",null,null,null,null,null,null,null,null,null,"DDR_A1<3>"]
["DDR_A12","A16","D23",null,"unused_DDR_A12",null,"DDR_A12",null,null,null,null,null,null,null,null,null,null,null,null,null,"vddio_ddr",null,null,null,null,null,null,null,null,null,"DDR_A12",null,null,null,null,null,null,null,null,null,"DDR_A<15>"]
["DDR_A13","C20","C24",null,"unused_DDR_A13",null,"DDR_A13",null,null,null,null,null,null,null,null,null,null,null,null,null,"vddio_ddr",null,null,null,null,null,null,null,null,null,"DDR_A13",null,null,null,null,null,null,null,null,null,"DDR_A<14>"]
["DDR_A14","E17","C23",null,"unused_DDR_A14",null,"DDR_A14",null,null,null,null,null,null,null,null,null,null,null,null,null,"vddio_ddr",null,null,null,null,null,null,null,null,null,"DDR_A14",null,null,null,null,null,null,null,null,null,"DDR_BA<0>"]
["DDR_A15","E18","E20",null,"unused_DDR_A15",null,"DDR_A15",null,null,null,null,null,null,null,null,null,null,null,null,null,"vddio_ddr",null,null,null,null,null,null,null,null,null,"DDR_A15",null,null,null,null,null,null,null,null,null,"DDR_BA<1>"]
["DDR_BA0","F18","D22",null,"unused_DDR_BA0",null,"DDR_BA0",null,null,null,null,null,null,null,null,null,null,null,null,null,"vddio_ddr",null,null,null,null,null,null,null,null,null,"DDR_BA0",null,null,null,null,null,null,null,null,null,"DDR_A<12>"]
["DDR_BA1","D20","E23",null,"unused_DDR_BA1",null,"DDR_BA1",null,null,null,null,null,null,null,null,null,null,null,null,null,"vddio_ddr",null,null,null,null,null,null,null,null,null,"DDR_BA1",null,null,null,null,null,null,null,null,null,"DDR_A<11>"]
["DDR_BA2","H15","E22",null,"unused_DDR_BA2",null,"DDR_BA2",null,null,null,null,null,null,null,null,null,null,null,null,null,"vddio_ddr",null,null,null,null,null,null,null,null,null,"DDR_BA2",null,null,null,null,null,null,null,null,null,"DDR_A<10>"]
["DDR_CAS_N","C14","E17",null,"unused_DDR_CAS_N",null,"DDR_CAS_N",null,null,null,null,null,null,null,null,null,null,null,null,null,"vddio_ddr",null,null,null,null,null,null,null,null,null,"DDR_CAS_N",null,null,null,null,null,null,null,null,null,"DDR_A<0>"]
["DDR_CKE0","A13","B19",null,"unused_DDR_CKE0",null,"DDR_CKE0",null,null,null,null,null,null,null,null,null,null,null,null,null,"vddio_ddr",null,null,null,null,null,null,null,null,null,"DDR_CKE0",null,null,null,null,null,null,null,null,null,"DDR0_CKE0"]
["DDR_CKE1","A14","B20",null,"unused_DDR_CKE1",null,"DDR_CKE1",null,null,null,null,null,null,null,null,null,null,null,null,null,"vddio_ddr",null,null,null,null,null,null,null,null,null,"DDR_CKE1",null,null,null,null,null,null,null,null,null,"DDR0_CKE1"]
["DDR_CLK","G14","E14",null,"unused_DDR_CLK",null,"DDR_CLK",null,null,null,null,null,null,null,null,null,null,null,null,null,"vddio_ddr",null,null,null,null,null,null,null,null,null,"DDR_CLK",null,null,null,null,null,null,null,null,null,"DDR0_CLKP"]
["DDR_CLK_N","H14","F14",null,"unused_DDR_CLK_N",null,"DDR_CLK_N",null,null,null,null,null,null,null,null,null,null,null,null,null,"vddio_ddr",null,null,null,null,null,null,null,null,null,"DDR_CLK_N",null,null,null,null,null,null,null,null,null,"DDR0_CLKN"]
["DDR_CLKB","H18","E25",null,"unused_DDR_CLKB",null,"DDR_CLKB",null,null,null,null,null,null,null,null,null,null,null,null,null,"vddio_ddr",null,null,null,null,null,null,null,null,null,"DDR_CLKB",null,null,null,null,null,null,null,null,null,"DDR1_CLKP"]
["DDR_CLKB_N","G18","F25",null,"unused_DDR_CLKB_N",null,"DDR_CLKB_N",null,null,null,null,null,null,null,null,null,null,null,null,null,"vddio_ddr",null,null,null,null,null,null,null,null,null,"DDR_CLKB_N",null,null,null,null,null,null,null,null,null,"DDR1_CLKN"]
["DDR_CS0_N","B14","C18",null,"unused_DDR_CS0_N",null,"DDR_CS0_N",null,null,null,null,null,null,null,null,null,null,null,null,null,"vddio_ddr",null,null,null,null,null,null,null,null,null,"DDR_CS0_N",null,null,null,null,null,null,null,null,null,"DDR0_CS1_L"]
["DDR_CS1_N","A12","C17",null,"unused_DDR_CS1_N",null,"DDR_CS1_N",null,null,null,null,null,null,null,null,null,null,null,null,null,"vddio_ddr",null,null,null,null,null,null,null,null,null,"DDR_CS1_N",null,null,null,null,null,null,null,null,null,"DDR0_CS0_L"]
["DDR_DM0","C1","A5",null,"unused_DDR_DM0",null,"DDR_DM0",null,null,null,null,null,null,null,null,null,null,null,null,null,"vddio_ddr",null,null,null,null,null,null,null,null,null,"DDR_DM0",null,null,null,null,null,null,null,null,null,"DDR_DM2"]
["DDR_DQS0N","D5","C5",null,"unused_DDR_DQS0N",null,"DDR_DQS0N",null,null,null,null,null,null,null,null,null,null,null,null,null,"vddio_ddr",null,null,null,null,null,null,null,null,null,"DDR_DQS0N",null,null,null,null,null,null,null,null,null,"DDR_DQS2N"]
["DDR_DQS0P","C5","B5",null,"unused_DDR_DQS0P",null,"DDR_DQS0P",null,null,null,null,null,null,null,null,null,null,null,null,null,"vddio_ddr",null,null,null,null,null,null,null,null,null,"DDR_DQS0P",null,null,null,null,null,null,null,null,null,"DDR_DQS2P"]
["DDR_DQ0","A3","D5",null,"unused_DDR_DQ0",null,"DDR_DQ0",null,null,null,null,null,null,null,null,null,null,null,null,null,"vddio_ddr",null,null,null,null,null,null,null,null,null,"DDR_DQ0",null,null,null,null,null,null,null,null,null,"DDR_DQ<23>"]
["DDR_DQ1","A4","B4",null,"unused_DDR_DQ1",null,"DDR_DQ1",null,null,null,null,null,null,null,null,null,null,null,null,null,"vddio_ddr",null,null,null,null,null,null,null,null,null,"DDR_DQ1",null,null,null,null,null,null,null,null,null,"DDR_DQ<22>"]
["DDR_DQ2","B5","A4",null,"unused_DDR_DQ2",null,"DDR_DQ2",null,null,null,null,null,null,null,null,null,null,null,null,null,"vddio_ddr",null,null,null,null,null,null,null,null,null,"DDR_DQ2",null,null,null,null,null,null,null,null,null,"DDR_DQ<16>"]
["DDR_DQ3","C2","B2",null,"unused_DDR_DQ3",null,"DDR_DQ3",null,null,null,null,null,null,null,null,null,null,null,null,null,"vddio_ddr",null,null,null,null,null,null,null,null,null,"DDR_DQ3",null,null,null,null,null,null,null,null,null,"DDR_DQ<19>"]
["DDR_DQ4","B3","C4",null,"unused_DDR_DQ4",null,"DDR_DQ4",null,null,null,null,null,null,null,null,null,null,null,null,null,"vddio_ddr",null,null,null,null,null,null,null,null,null,"DDR_DQ4",null,null,null,null,null,null,null,null,null,"DDR_DQ<20>"]
["DDR_DQ5","B2","C2",null,"unused_DDR_DQ5",null,"DDR_DQ5",null,null,null,null,null,null,null,null,null,null,null,null,null,"vddio_ddr",null,null,null,null,null,null,null,null,null,"DDR_DQ5",null,null,null,null,null,null,null,null,null,"DDR_DQ<17>"]
["DDR_DQ6","C3","D4",null,"unused_DDR_DQ6",null,"DDR_DQ6",null,null,null,null,null,null,null,null,null,null,null,null,null,"vddio_ddr",null,null,null,null,null,null,null,null,null,"DDR_DQ6",null,null,null,null,null,null,null,null,null,"DDR_DQ<21>"]
["DDR_DQ7","A5","B3",null,"unused_DDR_DQ7",null,"DDR_DQ7",null,null,null,null,null,null,null,null,null,null,null,null,null,"vddio_ddr",null,null,null,null,null,null,null,null,null,"DDR_DQ7",null,null,null,null,null,null,null,null,null,"DDR_DQ<18>"]
["DDR_DM1","B9","B8",null,"unused_DDR_DM1",null,"DDR_DM1",null,null,null,null,null,null,null,null,null,null,null,null,null,"vddio_ddr",null,null,null,null,null,null,null,null,null,"DDR_DM1",null,null,null,null,null,null,null,null,null,"DDR_DM0"]
["DDR_DQS1N","H9","C9",null,"unused_DDR_DQS1N",null,"DDR_DQS1N",null,null,null,null,null,null,null,null,null,null,null,null,null,"vddio_ddr",null,null,null,null,null,null,null,null,null,"DDR_DQS1N",null,null,null,null,null,null,null,null,null,"DDR_DQS0N"]
["DDR_DQS1P","G9","C10",null,"unused_DDR_DQS1P",null,"DDR_DQS1P",null,null,null,null,null,null,null,null,null,null,null,null,null,"vddio_ddr",null,null,null,null,null,null,null,null,null,"DDR_DQS1P",null,null,null,null,null,null,null,null,null,"DDR_DQS0P"]
["DDR_DQ8","C9","B10",null,"unused_DDR_DQ8",null,"DDR_DQ8",null,null,null,null,null,null,null,null,null,null,null,null,null,"vddio_ddr",null,null,null,null,null,null,null,null,null,"DDR_DQ8",null,null,null,null,null,null,null,null,null,"DDR_DQ<3>"]
["DDR_DQ9","F9","C8",null,"unused_DDR_DQ9",null,"DDR_DQ9",null,null,null,null,null,null,null,null,null,null,null,null,null,"vddio_ddr",null,null,null,null,null,null,null,null,null,"DDR_DQ9",null,null,null,null,null,null,null,null,null,"DDR_DQ<5>"]
["DDR_DQ10","G8","D10",null,"unused_DDR_DQ10",null,"DDR_DQ10",null,null,null,null,null,null,null,null,null,null,null,null,null,"vddio_ddr",null,null,null,null,null,null,null,null,null,"DDR_DQ10",null,null,null,null,null,null,null,null,null,"DDR_DQ<2>"]
["DDR_DQ11","F8","A8",null,"unused_DDR_DQ11",null,"DDR_DQ11",null,null,null,null,null,null,null,null,null,null,null,null,null,"vddio_ddr",null,null,null,null,null,null,null,null,null,"DDR_DQ11",null,null,null,null,null,null,null,null,null,"DDR_DQ<6>"]
["DDR_DQ12","E9","E11",null,"unused_DDR_DQ12",null,"DDR_DQ12",null,null,null,null,null,null,null,null,null,null,null,null,null,"vddio_ddr",null,null,null,null,null,null,null,null,null,"DDR_DQ12",null,null,null,null,null,null,null,null,null,"DDR_DQ<0>"]
["DDR_DQ13","A9","A10",null,"unused_DDR_DQ13",null,"DDR_DQ13",null,null,null,null,null,null,null,null,null,null,null,null,null,"vddio_ddr",null,null,null,null,null,null,null,null,null,"DDR_DQ13",null,null,null,null,null,null,null,null,null,"DDR_DQ<1>"]
["DDR_DQ14","D9","D11",null,"unused_DDR_DQ14",null,"DDR_DQ14",null,null,null,null,null,null,null,null,null,null,null,null,null,"vddio_ddr",null,null,null,null,null,null,null,null,null,"DDR_DQ14",null,null,null,null,null,null,null,null,null,"DDR_DQ<7>"]
["DDR_DQ15","E8","E10",null,"unused_DDR_DQ15",null,"DDR_DQ15",null,null,null,null,null,null,null,null,null,null,null,null,null,"vddio_ddr",null,null,null,null,null,null,null,null,null,"DDR_DQ15",null,null,null,null,null,null,null,null,null,"DDR_DQ<4>"]
["DDR_DM2","B6","F8",null,"unused_DDR_DM2",null,"DDR_DM2",null,null,null,null,null,null,null,null,null,null,null,null,null,"vddio_ddr",null,null,null,null,null,null,null,null,null,"DDR_DM2",null,null,null,null,null,null,null,null,null,"DDR_DM3"]
["DDR_DQS2N","D8","E8",null,"unused_DDR_DQS2N",null,"DDR_DQS2N",null,null,null,null,null,null,null,null,null,null,null,null,null,"vddio_ddr",null,null,null,null,null,null,null,null,null,"DDR_DQS2N",null,null,null,null,null,null,null,null,null,"DDR_DQS3N"]
["DDR_DQS2P","C8","D8",null,"unused_DDR_DQS2P",null,"DDR_DQS2P",null,null,null,null,null,null,null,null,null,null,null,null,null,"vddio_ddr",null,null,null,null,null,null,null,null,null,"DDR_DQS2P",null,null,null,null,null,null,null,null,null,"DDR_DQS3P"]
["DDR_DQ16","A8","B7",null,"unused_DDR_DQ16",null,"DDR_DQ16",null,null,null,null,null,null,null,null,null,null,null,null,null,"vddio_ddr",null,null,null,null,null,null,null,null,null,"DDR_DQ16",null,null,null,null,null,null,null,null,null,"DDR_DQ<26>"]
["DDR_DQ17","B8","A7",null,"unused_DDR_DQ17",null,"DDR_DQ17",null,null,null,null,null,null,null,null,null,null,null,null,null,"vddio_ddr",null,null,null,null,null,null,null,null,null,"DDR_DQ17",null,null,null,null,null,null,null,null,null,"DDR_DQ<24>"]
["DDR_DQ18","C6","C6",null,"unused_DDR_DQ18",null,"DDR_DQ18",null,null,null,null,null,null,null,null,null,null,null,null,null,"vddio_ddr",null,null,null,null,null,null,null,null,null,"DDR_DQ18",null,null,null,null,null,null,null,null,null,"DDR_DQ<25>"]
["DDR_DQ19","E6","E7",null,"unused_DDR_DQ19",null,"DDR_DQ19",null,null,null,null,null,null,null,null,null,null,null,null,null,"vddio_ddr",null,null,null,null,null,null,null,null,null,"DDR_DQ19",null,null,null,null,null,null,null,null,null,"DDR_DQ<31>"]
["DDR_DQ20","A7","C7",null,"unused_DDR_DQ20",null,"DDR_DQ20",null,null,null,null,null,null,null,null,null,null,null,null,null,"vddio_ddr",null,null,null,null,null,null,null,null,null,"DDR_DQ20",null,null,null,null,null,null,null,null,null,"DDR_DQ<30>"]
["DDR_DQ21","A6","D7",null,"unused_DDR_DQ21",null,"DDR_DQ21",null,null,null,null,null,null,null,null,null,null,null,null,null,"vddio_ddr",null,null,null,null,null,null,null,null,null,"DDR_DQ21",null,null,null,null,null,null,null,null,null,"DDR_DQ<27>"]
["DDR_DQ22","D6","E5",null,"unused_DDR_DQ22",null,"DDR_DQ22",null,null,null,null,null,null,null,null,null,null,null,null,null,"vddio_ddr",null,null,null,null,null,null,null,null,null,"DDR_DQ22",null,null,null,null,null,null,null,null,null,"DDR_DQ<29>"]
["DDR_DQ23","F6","F7",null,"unused_DDR_DQ23",null,"DDR_DQ23",null,null,null,null,null,null,null,null,null,null,null,null,null,"vddio_ddr",null,null,null,null,null,null,null,null,null,"DDR_DQ23",null,null,null,null,null,null,null,null,null,"DDR_DQ<28>"]
["DDR_DM3","C11","A11",null,"unused_DDR_DM3",null,"DDR_DM3",null,null,null,null,null,null,null,null,null,null,null,null,null,"vddio_ddr",null,null,null,null,null,null,null,null,null,"DDR_DM3",null,null,null,null,null,null,null,null,null,"DDR_DM1"]
["DDR_DQS3N","G11","B11",null,"unused_DDR_DQS3N",null,"DDR_DQS3N",null,null,null,null,null,null,null,null,null,null,null,null,null,"vddio_ddr",null,null,null,null,null,null,null,null,null,"DDR_DQS3N",null,null,null,null,null,null,null,null,null,"DDR_DQS1N"]
["DDR_DQS3P","H11","C11",null,"unused_DDR_DQS3P",null,"DDR_DQS3P",null,null,null,null,null,null,null,null,null,null,null,null,null,"vddio_ddr",null,null,null,null,null,null,null,null,null,"DDR_DQS3P",null,null,null,null,null,null,null,null,null,"DDR_DQS1P"]
["DDR_DQ24","G12","A13",null,"unused_DDR_DQ24",null,"DDR_DQ24",null,null,null,null,null,null,null,null,null,null,null,null,null,"vddio_ddr",null,null,null,null,null,null,null,null,null,"DDR_DQ24",null,null,null,null,null,null,null,null,null,"DDR_DQ<13>"]
["DDR_DQ25","H12","F13",null,"unused_DDR_DQ25",null,"DDR_DQ25",null,null,null,null,null,null,null,null,null,null,null,null,null,"vddio_ddr",null,null,null,null,null,null,null,null,null,"DDR_DQ25",null,null,null,null,null,null,null,null,null,"DDR_DQ<15>"]
["DDR_DQ26","A11","B13",null,"unused_DDR_DQ26",null,"DDR_DQ26",null,null,null,null,null,null,null,null,null,null,null,null,null,"vddio_ddr",null,null,null,null,null,null,null,null,null,"DDR_DQ26",null,null,null,null,null,null,null,null,null,"DDR_DQ<9>"]
["DDR_DQ27","E11","E13",null,"unused_DDR_DQ27",null,"DDR_DQ27",null,null,null,null,null,null,null,null,null,null,null,null,null,"vddio_ddr",null,null,null,null,null,null,null,null,null,"DDR_DQ27",null,null,null,null,null,null,null,null,null,"DDR_DQ<10>"]
["DDR_DQ28","A10","C13",null,"unused_DDR_DQ28",null,"DDR_DQ28",null,null,null,null,null,null,null,null,null,null,null,null,null,"vddio_ddr",null,null,null,null,null,null,null,null,null,"DDR_DQ28",null,null,null,null,null,null,null,null,null,"DDR_DQ<14>"]
["DDR_DQ29","B11","D14",null,"unused_DDR_DQ29",null,"DDR_DQ29",null,null,null,null,null,null,null,null,null,null,null,null,null,"vddio_ddr",null,null,null,null,null,null,null,null,null,"DDR_DQ29",null,null,null,null,null,null,null,null,null,"DDR_DQ<11>"]
["DDR_DQ30","F11","C12",null,"unused_DDR_DQ30",null,"DDR_DQ30",null,null,null,null,null,null,null,null,null,null,null,null,null,"vddio_ddr",null,null,null,null,null,null,null,null,null,"DDR_DQ30",null,null,null,null,null,null,null,null,null,"DDR_DQ<12>"]
["DDR_DQ31","D11","D13",null,"unused_DDR_DQ31",null,"DDR_DQ31",null,null,null,null,null,null,null,null,null,null,null,null,null,"vddio_ddr",null,null,null,null,null,null,null,null,null,"DDR_DQ31",null,null,null,null,null,null,null,null,null,"DDR_DQ<8>"]
["DDR_DM4","F21","A28",null,"unused_DDR_DM4",null,"DDR_DM4",null,null,null,null,null,null,null,null,null,null,null,null,null,"vddio_ddr",null,null,null,null,null,null,null,null,null,"DDR_DM4",null,null,null,null,null,null,null,null,null,"DDR_DM6"]
["DDR_DQS4N","H20","C28",null,"unused_DDR_DQS4N",null,"DDR_DQS4N",null,null,null,null,null,null,null,null,null,null,null,null,null,"vddio_ddr",null,null,null,null,null,null,null,null,null,"DDR_DQS4N",null,null,null,null,null,null,null,null,null,"DDR_DQS6N"]
["DDR_DQS4P","H21","B28",null,"unused_DDR_DQS4P",null,"DDR_DQS4P",null,null,null,null,null,null,null,null,null,null,null,null,null,"vddio_ddr",null,null,null,null,null,null,null,null,null,"DDR_DQS4P",null,null,null,null,null,null,null,null,null,"DDR_DQS6P"]
["DDR_DQ32","G21","E26",null,"unused_DDR_DQ32",null,"DDR_DQ32",null,null,null,null,null,null,null,null,null,null,null,null,null,"vddio_ddr",null,null,null,null,null,null,null,null,null,"DDR_DQ32",null,null,null,null,null,null,null,null,null,"DDR_DQ<50>"]
["DDR_DQ33","A21","A26",null,"unused_DDR_DQ33",null,"DDR_DQ33",null,null,null,null,null,null,null,null,null,null,null,null,null,"vddio_ddr",null,null,null,null,null,null,null,null,null,"DDR_DQ33",null,null,null,null,null,null,null,null,null,"DDR_DQ<51>"]
["DDR_DQ34","E21","D26",null,"unused_DDR_DQ34",null,"DDR_DQ34",null,null,null,null,null,null,null,null,null,null,null,null,null,"vddio_ddr",null,null,null,null,null,null,null,null,null,"DDR_DQ34",null,null,null,null,null,null,null,null,null,"DDR_DQ<48>"]
["DDR_DQ35","F20","B26",null,"unused_DDR_DQ35",null,"DDR_DQ35",null,null,null,null,null,null,null,null,null,null,null,null,null,"vddio_ddr",null,null,null,null,null,null,null,null,null,"DDR_DQ35",null,null,null,null,null,null,null,null,null,"DDR_DQ<54>"]
["DDR_DQ36","G20","F26",null,"unused_DDR_DQ36",null,"DDR_DQ36",null,null,null,null,null,null,null,null,null,null,null,null,null,"vddio_ddr",null,null,null,null,null,null,null,null,null,"DDR_DQ36",null,null,null,null,null,null,null,null,null,"DDR_DQ<52>"]
["DDR_DQ37","D21","C27",null,"unused_DDR_DQ37",null,"DDR_DQ37",null,null,null,null,null,null,null,null,null,null,null,null,null,"vddio_ddr",null,null,null,null,null,null,null,null,null,"DDR_DQ37",null,null,null,null,null,null,null,null,null,"DDR_DQ<53>"]
["DDR_DQ38","B21","D25",null,"unused_DDR_DQ38",null,"DDR_DQ38",null,null,null,null,null,null,null,null,null,null,null,null,null,"vddio_ddr",null,null,null,null,null,null,null,null,null,"DDR_DQ38",null,null,null,null,null,null,null,null,null,"DDR_DQ<49>"]
["DDR_DQ39","C21","C26",null,"unused_DDR_DQ39",null,"DDR_DQ39",null,null,null,null,null,null,null,null,null,null,null,null,null,"vddio_ddr",null,null,null,null,null,null,null,null,null,"DDR_DQ39",null,null,null,null,null,null,null,null,null,"DDR_DQ<55>"]
["DDR_DM5","B24","F31",null,"unused_DDR_DM5",null,"DDR_DM5",null,null,null,null,null,null,null,null,null,null,null,null,null,"vddio_ddr",null,null,null,null,null,null,null,null,null,"DDR_DM5",null,null,null,null,null,null,null,null,null,"DDR_DM4"]
["DDR_DQS5N","D26","E31",null,"unused_DDR_DQS5N",null,"DDR_DQS5N",null,null,null,null,null,null,null,null,null,null,null,null,null,"vddio_ddr",null,null,null,null,null,null,null,null,null,"DDR_DQS5N",null,null,null,null,null,null,null,null,null,"DDR_DQS4N"]
["DDR_DQS5P","C26","D31",null,"unused_DDR_DQS5P",null,"DDR_DQS5P",null,null,null,null,null,null,null,null,null,null,null,null,null,"vddio_ddr",null,null,null,null,null,null,null,null,null,"DDR_DQS5P",null,null,null,null,null,null,null,null,null,"DDR_DQS4P"]
["DDR_DQ40","D24","A32",null,"unused_DDR_DQ40",null,"DDR_DQ40",null,null,null,null,null,null,null,null,null,null,null,null,null,"vddio_ddr",null,null,null,null,null,null,null,null,null,"DDR_DQ40",null,null,null,null,null,null,null,null,null,"DDR_DQ<37>"]
["DDR_DQ41","C24","B32",null,"unused_DDR_DQ41",null,"DDR_DQ41",null,null,null,null,null,null,null,null,null,null,null,null,null,"vddio_ddr",null,null,null,null,null,null,null,null,null,"DDR_DQ41",null,null,null,null,null,null,null,null,null,"DDR_DQ<33>"]
["DDR_DQ42","E27","F32",null,"unused_DDR_DQ42",null,"DDR_DQ42",null,null,null,null,null,null,null,null,null,null,null,null,null,"vddio_ddr",null,null,null,null,null,null,null,null,null,"DDR_DQ42",null,null,null,null,null,null,null,null,null,"DDR_DQ<38>"]
["DDR_DQ43","A24","C32",null,"unused_DDR_DQ43",null,"DDR_DQ43",null,null,null,null,null,null,null,null,null,null,null,null,null,"vddio_ddr",null,null,null,null,null,null,null,null,null,"DDR_DQ43",null,null,null,null,null,null,null,null,null,"DDR_DQ<35>"]
["DDR_DQ44","E26","E32",null,"unused_DDR_DQ44",null,"DDR_DQ44",null,null,null,null,null,null,null,null,null,null,null,null,null,"vddio_ddr",null,null,null,null,null,null,null,null,null,"DDR_DQ44",null,null,null,null,null,null,null,null,null,"DDR_DQ<36>"]
["DDR_DQ45","B26","E34",null,"unused_DDR_DQ45",null,"DDR_DQ45",null,null,null,null,null,null,null,null,null,null,null,null,null,"vddio_ddr",null,null,null,null,null,null,null,null,null,"DDR_DQ45",null,null,null,null,null,null,null,null,null,"DDR_DQ<32>"]
["DDR_DQ46","A25","D32",null,"unused_DDR_DQ46",null,"DDR_DQ46",null,null,null,null,null,null,null,null,null,null,null,null,null,"vddio_ddr",null,null,null,null,null,null,null,null,null,"DDR_DQ46",null,null,null,null,null,null,null,null,null,"DDR_DQ<39>"]
["DDR_DQ47","A26","C33",null,"unused_DDR_DQ47",null,"DDR_DQ47",null,null,null,null,null,null,null,null,null,null,null,null,null,"vddio_ddr",null,null,null,null,null,null,null,null,null,"DDR_DQ47",null,null,null,null,null,null,null,null,null,"DDR_DQ<34>"]
["DDR_DM6","F23","B31",null,"unused_DDR_DM6",null,"DDR_DM6",null,null,null,null,null,null,null,null,null,null,null,null,null,"vddio_ddr",null,null,null,null,null,null,null,null,null,"DDR_DM6",null,null,null,null,null,null,null,null,null,"DDR_DM7"]
["DDR_DQS6N","D23","C30",null,"unused_DDR_DQS6N",null,"DDR_DQS6N",null,null,null,null,null,null,null,null,null,null,null,null,null,"vddio_ddr",null,null,null,null,null,null,null,null,null,"DDR_DQS6N",null,null,null,null,null,null,null,null,null,"DDR_DQS7N"]
["DDR_DQS6P","E23","C29",null,"unused_DDR_DQS6P",null,"DDR_DQS6P",null,null,null,null,null,null,null,null,null,null,null,null,null,"vddio_ddr",null,null,null,null,null,null,null,null,null,"DDR_DQS6P",null,null,null,null,null,null,null,null,null,"DDR_DQS7P"]
["DDR_DQ48","A22","A29",null,"unused_DDR_DQ48",null,"DDR_DQ48",null,null,null,null,null,null,null,null,null,null,null,null,null,"vddio_ddr",null,null,null,null,null,null,null,null,null,"DDR_DQ48",null,null,null,null,null,null,null,null,null,"DDR_DQ<62>"]
["DDR_DQ49","E24","E29",null,"unused_DDR_DQ49",null,"DDR_DQ49",null,null,null,null,null,null,null,null,null,null,null,null,null,"vddio_ddr",null,null,null,null,null,null,null,null,null,"DDR_DQ49",null,null,null,null,null,null,null,null,null,"DDR_DQ<63>"]
["DDR_DQ50","A23","B29",null,"unused_DDR_DQ50",null,"DDR_DQ50",null,null,null,null,null,null,null,null,null,null,null,null,null,"vddio_ddr",null,null,null,null,null,null,null,null,null,"DDR_DQ50",null,null,null,null,null,null,null,null,null,"DDR_DQ<58>"]
["DDR_DQ51","C23","D28",null,"unused_DDR_DQ51",null,"DDR_DQ51",null,null,null,null,null,null,null,null,null,null,null,null,null,"vddio_ddr",null,null,null,null,null,null,null,null,null,"DDR_DQ51",null,null,null,null,null,null,null,null,null,"DDR_DQ<60>"]
["DDR_DQ52","B23","A31",null,"unused_DDR_DQ52",null,"DDR_DQ52",null,null,null,null,null,null,null,null,null,null,null,null,null,"vddio_ddr",null,null,null,null,null,null,null,null,null,"DDR_DQ52",null,null,null,null,null,null,null,null,null,"DDR_DQ<56>"]
["DDR_DQ53","G23","E28",null,"unused_DDR_DQ53",null,"DDR_DQ53",null,null,null,null,null,null,null,null,null,null,null,null,null,"vddio_ddr",null,null,null,null,null,null,null,null,null,"DDR_DQ53",null,null,null,null,null,null,null,null,null,"DDR_DQ<57>"]
["DDR_DQ54","F24","C31",null,"unused_DDR_DQ54",null,"DDR_DQ54",null,null,null,null,null,null,null,null,null,null,null,null,null,"vddio_ddr",null,null,null,null,null,null,null,null,null,"DDR_DQ54",null,null,null,null,null,null,null,null,null,"DDR_DQ<61>"]
["DDR_DQ55","H23","D29",null,"unused_DDR_DQ55",null,"DDR_DQ55",null,null,null,null,null,null,null,null,null,null,null,null,null,"vddio_ddr",null,null,null,null,null,null,null,null,null,"DDR_DQ55",null,null,null,null,null,null,null,null,null,"DDR_DQ<59>"]
["DDR_DM7","B27","D34",null,"unused_DDR_DM7",null,"DDR_DM7",null,null,null,null,null,null,null,null,null,null,null,null,null,"vddio_ddr",null,null,null,null,null,null,null,null,null,"DDR_DM7",null,null,null,null,null,null,null,null,null,"DDR_DM5"]
["DDR_DQS7N","B29","C34",null,"unused_DDR_DQS7N",null,"DDR_DQS7N",null,null,null,null,null,null,null,null,null,null,null,null,null,"vddio_ddr",null,null,null,null,null,null,null,null,null,"DDR_DQS7N",null,null,null,null,null,null,null,null,null,"DDR_DQS5N"]
["DDR_DQS7P","B30","B34",null,"unused_DDR_DQS7P",null,"DDR_DQS7P",null,null,null,null,null,null,null,null,null,null,null,null,null,"vddio_ddr",null,null,null,null,null,null,null,null,null,"DDR_DQS7P",null,null,null,null,null,null,null,null,null,"DDR_DQS5P"]
["DDR_DQ56","D27","B36",null,"unused_DDR_DQ56",null,"DDR_DQ56",null,null,null,null,null,null,null,null,null,null,null,null,null,"vddio_ddr",null,null,null,null,null,null,null,null,null,"DDR_DQ56",null,null,null,null,null,null,null,null,null,"DDR_DQ<45>"]
["DDR_DQ57","C29","C35",null,"unused_DDR_DQ57",null,"DDR_DQ57",null,null,null,null,null,null,null,null,null,null,null,null,null,"vddio_ddr",null,null,null,null,null,null,null,null,null,"DDR_DQ57",null,null,null,null,null,null,null,null,null,"DDR_DQ<44>"]
["DDR_DQ58","C27","B37",null,"unused_DDR_DQ58",null,"DDR_DQ58",null,null,null,null,null,null,null,null,null,null,null,null,null,"vddio_ddr",null,null,null,null,null,null,null,null,null,"DDR_DQ58",null,null,null,null,null,null,null,null,null,"DDR_DQ<41>"]
["DDR_DQ59","A29","B35",null,"unused_DDR_DQ59",null,"DDR_DQ59",null,null,null,null,null,null,null,null,null,null,null,null,null,"vddio_ddr",null,null,null,null,null,null,null,null,null,"DDR_DQ59",null,null,null,null,null,null,null,null,null,"DDR_DQ<46>"]
["DDR_DQ60","C31","D37",null,"unused_DDR_DQ60",null,"DDR_DQ60",null,null,null,null,null,null,null,null,null,null,null,null,null,"vddio_ddr",null,null,null,null,null,null,null,null,null,"DDR_DQ60",null,null,null,null,null,null,null,null,null,"DDR_DQ<40>"]
["DDR_DQ61","A27","A34",null,"unused_DDR_DQ61",null,"DDR_DQ61",null,null,null,null,null,null,null,null,null,null,null,null,null,"vddio_ddr",null,null,null,null,null,null,null,null,null,"DDR_DQ61",null,null,null,null,null,null,null,null,null,"DDR_DQ<43>"]
["DDR_DQ62","C30","C37",null,"unused_DDR_DQ62",null,"DDR_DQ62",null,null,null,null,null,null,null,null,null,null,null,null,null,"vddio_ddr",null,null,null,null,null,null,null,null,null,"DDR_DQ62",null,null,null,null,null,null,null,null,null,"DDR_DQ<42>"]
["DDR_DQ63","A28","A35",null,"unused_DDR_DQ63",null,"DDR_DQ63",null,null,null,null,null,null,null,null,null,null,null,null,null,"vddio_ddr",null,null,null,null,null,null,null,null,null,"DDR_DQ63",null,null,null,null,null,null,null,null,null,"DDR_DQ<47>"]
["DDR_ODT0","A15","C19",null,"unused_DDR_ODT0",null,"DDR_ODT0",null,null,null,null,null,null,null,null,null,null,null,null,null,"vddio_ddr",null,null,null,null,null,null,null,null,null,"DDR_ODT0",null,null,null,null,null,null,null,null,null,"DDR0_ODT0"]
["DDR_ODT1","B15","B17",null,"unused_DDR_ODT1",null,"DDR_ODT1",null,null,null,null,null,null,null,null,null,null,null,null,null,"vddio_ddr",null,null,null,null,null,null,null,null,null,"DDR_ODT1",null,null,null,null,null,null,null,null,null,"DDR0_ODT1"]
["DDR_RAS_N","G15","E19",null,"unused_DDR_RAS_N",null,"DDR_RAS_N",null,null,null,null,null,null,null,null,null,null,null,null,null,"vddio_ddr",null,null,null,null,null,null,null,null,null,"DDR_RAS_N",null,null,null,null,null,null,null,null,null,"DDR_A0<3>"]
["DDR_RESET_N","F15","D19",null,"unused_DDR_RESET_N",null,"DDR_RESET_N",null,null,null,null,null,null,null,null,null,null,null,null,null,"vddio_ddr",null,null,null,null,null,null,null,null,null,"DDR_RESET_N",null,null,null,null,null,null,null,null,null,"DDR_RESET_L"]
["DDR_WE_N","C15","D17",null,"unused_DDR_WE_N",null,"DDR_WE_N",null,null,null,null,null,null,null,null,null,null,null,null,null,"vddio_ddr",null,null,null,null,null,null,null,null,null,"DDR_WE_N",null,null,null,null,null,null,null,null,null,"DDR_CAS_L"]
["DDR_ODT_B0","C18","C21",null,"unused_DDR_ODT_B0",null,"DDR_ODT_B0",null,null,null,null,null,null,null,null,null,null,null,null,null,"vddio_ddr",null,null,null,null,null,null,null,null,null,"DDR_ODT_B0",null,null,null,null,null,null,null,null,null,"DDR1_ODT0"]
["DDR_ODT_B1","A18","B22",null,"unused_DDR_ODT_B1",null,"DDR_ODT_B1",null,null,null,null,null,null,null,null,null,null,null,null,null,"vddio_ddr",null,null,null,null,null,null,null,null,null,"DDR_ODT_B1",null,null,null,null,null,null,null,null,null,"DDR1_CS1_L"]
["DDR_CS_B0_N","B18","C22",null,"unused_DDR_CS_B0_N",null,"DDR_CS_B0_N",null,null,null,null,null,null,null,null,null,null,null,null,null,"vddio_ddr",null,null,null,null,null,null,null,null,null,"DDR_CS_B0_N",null,null,null,null,null,null,null,null,null,"DDR1_ODT1"]
["DDR_CS_B1_N","A19","C20",null,"unused_DDR_CS_B1_N",null,"DDR_CS_B1_N",null,null,null,null,null,null,null,null,null,null,null,null,null,"vddio_ddr",null,null,null,null,null,null,null,null,null,"DDR_CS_B1_N",null,null,null,null,null,null,null,null,null,"DDR1_CS0_L"]
["DDR_CKE_B0","A20","A22",null,"unused_DDR_CKE_B0",null,"DDR_CKE_B0",null,null,null,null,null,null,null,null,null,null,null,null,null,"vddio_ddr",null,null,null,null,null,null,null,null,null,"DDR_CKE_B0",null,null,null,null,null,null,null,null,null,"DDR1_CKE0"]
["DDR_CKE_B1","B20","A23",null,"unused_DDR_CKE_B1",null,"DDR_CKE_B1",null,null,null,null,null,null,null,null,null,null,null,null,null,"vddio_ddr",null,null,null,null,null,null,null,null,null,"DDR_CKE_B1",null,null,null,null,null,null,null,null,null,"DDR1_CKE1"]
["DDR_A_B3","H17","C25",null,"unused_DDR_A_B3",null,"DDR_A_B3",null,null,null,null,null,null,null,null,null,null,null,null,null,"vddio_ddr",null,null,null,null,null,null,null,null,null,"DDR_A_B3",null,null,null,null,null,null,null,null,null,"DDR_A1<5>"]
["DDR_A_B4","E20","B25",null,"unused_DDR_A_B4",null,"DDR_A_B4",null,null,null,null,null,null,null,null,null,null,null,null,null,"vddio_ddr",null,null,null,null,null,null,null,null,null,"DDR_A_B4",null,null,null,null,null,null,null,null,null,"DDR_A1<4>"]
["DDR_A_B5","F17","A25",null,"unused_DDR_A_B5",null,"DDR_A_B5",null,null,null,null,null,null,null,null,null,null,null,null,null,"vddio_ddr",null,null,null,null,null,null,null,null,null,"DDR_A_B5",null,null,null,null,null,null,null,null,null,"DDR_BA<2>"]
["DDR_COMP_PU","C17","A19","D18","unused_DDR_COMP_PU",null,"DDR_COMP_PU",null,null,null,null,null,null,null,null,null,null,null,null,null,"vddio_ddr",null,null,null,null,null,null,null,null,null,"DDR_COMP_PU",null,null,null,null,null,33.200000000000003,null,null,null,"DDR_COMP_PU"]
["DDR_COMP_PD","D17","A20","D19","unused_DDR_COMP_PD",null,"DDR_COMP_PD",null,null,null,null,null,null,null,null,null,null,null,null,null,"vddio_ddr",null,null,null,null,null,null,null,null,null,"DDR_COMP_PD",null,null,null,null,null,null,33.200000000000003,null,null,"DDR_COMP_PD"]
["DSI_CSI",null,null,null,null,null,null,null,null,null,null,null,null,null,null,null,null,null,null,null,null,null,null,null,null,null,null,null,null,null,null,null,null,null,null,null,null,null,null,"1.2V"]
["CSI_A_CLK_N","AE11","AP13","AP12","unused_CSI_A_CLK_N",null,"CSI_A_CLK_N",null,null,null,null,null,null,null,null,null,null,null,null,null,"avdd_csi_dsi",null,null,null,null,null,null,null,null,null,"CSI_A_CLK_N",null,null,null,null,null,null,null,null,null,"CSI_A_CLK_N","J3A2",15,"Camera 0 CSI x4","Camera 0 CSI x4","Camera 0 CSI x4","Camera 0 CSI x4"]
["CSI_A_CLK_P","AD11","AR13","AR12","unused_CSI_A_CLK_P",null,"CSI_A_CLK_P",null,null,null,null,null,null,null,null,null,null,null,null,null,"avdd_csi_dsi",null,null,null,null,null,null,null,null,null,"CSI_A_CLK_P",null,null,null,null,null,null,null,null,null,"CSI_A_CLK_P","J3A2",12]
["CSI_A_D0_N","AK9","AU14","AM13","unused_CSI_A_D0_N",null,"CSI_A_D0_N",null,null,null,null,null,null,null,null,null,null,null,null,null,"avdd_csi_dsi",null,null,null,null,null,null,null,null,null,"CSI_A_D0_N",null,null,null,null,null,null,null,null,null,"CSI_A_D0_N","J3A2",30]
["CSI_A_D0_P","AL9","AT14","AN13","unused_CSI_A_D0_P",null,"CSI_A_D0_P",null,null,null,null,null,null,null,null,null,null,null,null,null,"avdd_csi_dsi",null,null,null,null,null,null,null,null,null,"CSI_A_D0_P",null,null,null,null,null,null,null,null,null,"CSI_A_D0_P","J3A2",33]
["CSI_A_D1_N","AE9","AR14","AP13","unused_CSI_A_D1_N",null,"CSI_A_D1_N",null,null,null,null,null,null,null,null,null,null,null,null,null,"avdd_csi_dsi",null,null,null,null,null,null,null,null,null,"CSI_A_D1_N",null,null,null,null,null,null,null,null,null,"CSI_A_D1_N","J3A2",21]
["CSI_A_D1_P","AD9","AP14","AR13","unused_CSI_A_D1_P",null,"CSI_A_D1_P",null,null,null,null,null,null,null,null,null,null,null,null,null,"avdd_csi_dsi",null,null,null,null,null,null,null,null,null,"CSI_A_D1_P",null,null,null,null,null,null,null,null,null,"CSI_A_D1_P","J3A2",24]
["CSI_B_D0_N","AK8","AU17","AM12","unused_CSI_B_D0_N",null,"CSI_B_D0_N",null,null,null,null,null,null,null,null,null,null,null,null,null,"avdd_csi_dsi",null,null,null,null,null,null,null,null,null,"unused_CSI_B_D0_N",null,null,null,null,null,null,null,null,null,"Modified; Unused","J3A2",51]
["CSI_B_D0_P","AL8","AU16","AN12","unused_CSI_B_D0_P",null,"CSI_B_D0_P",null,null,null,null,null,null,null,null,null,null,null,null,null,"avdd_csi_dsi",null,null,null,null,null,null,null,null,null,"unused_CSI_B_D0_P",null,null,null,null,null,null,null,null,null,"Modified; Unused","J3A2",48]
["CSI_B_D1_N","AJ9","AT13","AT16","unused_CSI_B_D1_N",null,"CSI_B_D1_N",null,null,null,null,null,null,null,null,null,null,null,null,null,"avdd_csi_dsi",null,null,null,null,null,null,null,null,null,"unused_CSI_B_D1_N",null,null,null,null,null,null,null,null,null,"Modified; Unused","J3A2",39]
["CSI_B_D1_P","AH9","AU13","AT15","unused_CSI_B_D1_P",null,"CSI_B_D1_P",null,null,null,null,null,null,null,null,null,null,null,null,null,"avdd_csi_dsi",null,null,null,null,null,null,null,null,null,"unused_CSI_B_D1_P",null,null,null,null,null,null,null,null,null,"Modified; Unused","J3A2",42]
["CSI_E_CLK_N","AJ8","AV13","AT12","unused_CSI_E_CLK_N",null,"CSI_E_CLK_N",null,null,null,null,null,null,null,null,null,null,null,null,null,"avdd_csi_dsi",null,null,null,null,null,null,null,null,null,"unused_CSI_E_CLK_N",null,null,null,null,null,null,null,null,null,"Modified; Unused","J3A2",13,"Camera 2 CSI x1","Camera 2 CSI x1","Camera 2 CSI x1","Camera 2 CSI x1"]
["CSI_E_CLK_P","AH8","AV14","AT13","unused_CSI_E_CLK_P",null,"CSI_E_CLK_P",null,null,null,null,null,null,null,null,null,null,null,null,null,"avdd_csi_dsi",null,null,null,null,null,null,null,null,null,"unused_CSI_E_CLK_P",null,null,null,null,null,null,null,null,null,"Modified; Unused","J3A2",16]
["CSI_E_D0_N","AF9","AV17","AT9","unused_CSI_E_D0_N",null,"CSI_E_D0_N",null,null,null,null,null,null,null,null,null,null,null,null,null,"avdd_csi_dsi",null,null,null,null,null,null,null,null,null,"unused_CSI_E_D0_N",null,null,null,null,null,null,null,null,null,"Modified; Unused","J3A2",17]
["CSI_E_D0_P","AG9","AV16","AT10","unused_CSI_E_D0_P",null,"CSI_E_D0_P",null,null,null,null,null,null,null,null,null,null,null,null,null,"avdd_csi_dsi",null,null,null,null,null,null,null,null,null,"unused_CSI_E_D0_P",null,null,null,null,null,null,null,null,null,"Modified; Unused","J3A2",20]
["DSI_A_CLK_N","AJ14","AT20","AM19","unused_DSI_A_CLK_N",null,"DSI_A_CLK_N",null,null,null,null,null,null,null,null,null,null,null,null,null,"avdd_csi_dsi",null,null,null,null,null,null,null,null,null,"DSI_A_CLK_N",null,null,null,null,null,null,null,null,null,"Modified: CAM2_CLK_N",null,null,null,"MIPI display(s)\nDSI 0 x4, 2x4\nDSI 0 x4 + DSI 1 x4\n( Camera 1 CSI x4\n if DSI 1 not used)","MIPI display(s)\nDSI 0 x4, 2x4\nDSI 0 x4 + DSI 1 x4\n( Camera 1 CSI x4\n if DSI 1 not used)","MIPI display(s)\nDSI 0 x4, 2x4\nDSI 0 x4 + DSI 1 x4\n( Camera 1 CSI x4\n if DSI 1 not used)"]
["DSI_A_CLK_P","AH14","AU20","AN19","unused_DSI_A_CLK_P",null,"DSI_A_CLK_P",null,null,null,null,null,null,null,null,null,null,null,null,null,"avdd_csi_dsi",null,null,null,null,null,null,null,null,null,"DSI_A_CLK_P",null,null,null,null,null,null,null,null,null,"Modified: CAM2_CLK_P"]
["DSI_A_D0_N","AK11","AP20","AM16","unused_DSI_A_D0_N",null,"DSI_A_D0_N",null,null,null,null,null,null,null,null,null,null,null,null,null,"avdd_csi_dsi",null,null,null,null,null,null,null,null,null,"DSI_A_D0_N",null,null,null,null,null,null,null,null,null,"Modified: CAM2_D0_N"]
["DSI_A_D0_P","AL11","AR20","AN16","unused_DSI_A_D0_P",null,"DSI_A_D0_P",null,null,null,null,null,null,null,null,null,null,null,null,null,"avdd_csi_dsi",null,null,null,null,null,null,null,null,null,"DSI_A_D0_P",null,null,null,null,null,null,null,null,null,"Modified: CAM2_D0_P"]
["DSI_A_D1_N","AD14","AR17","AM21","unused_DSI_A_D1_N",null,"DSI_A_D1_N",null,null,null,null,null,null,null,null,null,null,null,null,null,"avdd_csi_dsi",null,null,null,null,null,null,null,null,null,"DSI_A_D1_N",null,null,null,null,null,null,null,null,null,"Modified: CAM2_D1_N"]
["DSI_A_D1_P","AE14","AP17","AN21","unused_DSI_A_D1_P",null,"DSI_A_D1_P",null,null,null,null,null,null,null,null,null,null,null,null,null,"avdd_csi_dsi",null,null,null,null,null,null,null,null,null,"DSI_A_D1_P",null,null,null,null,null,null,null,null,null,"Modified: CAM2_D0_N"]
["DSI_A_D2_N","AL15","AT19","AM15","unused_DSI_A_D2_N",null,"DSI_A_D2_N",null,null,null,null,null,null,null,null,null,null,null,null,null,"avdd_csi_dsi",null,null,null,null,null,null,null,null,null,"unused_DSI_A_D2_N"]
["DSI_A_D2_P","AK15","AU19","AN15","unused_DSI_A_D2_P",null,"DSI_A_D2_P",null,null,null,null,null,null,null,null,null,null,null,null,null,"avdd_csi_dsi",null,null,null,null,null,null,null,null,null,"unused_DSI_A_D2_P"]
["DSI_A_D3_N","AG14","AP19","AM18","unused_DSI_A_D3_N",null,"DSI_A_D3_N",null,null,null,null,null,null,null,null,null,null,null,null,null,"avdd_csi_dsi",null,null,null,null,null,null,null,null,null,"unused_DSI_A_D3_N"]
["DSI_A_D3_P","AF14","AR19","AN18","unused_DSI_A_D3_P",null,"DSI_A_D3_P",null,null,null,null,null,null,null,null,null,null,null,null,null,"avdd_csi_dsi",null,null,null,null,null,null,null,null,null,"unused_DSI_A_D3_P"]
["DSI_B_CLK_N","AJ11","AT16","AP18","unused_DSI_B_CLK_N",null,"DSI_B_CLK_N",null,null,null,null,null,null,null,null,null,null,null,null,null,"avdd_csi_dsi",null,null,null,null,null,null,null,null,null,"unused_DSI_B_CLK_N"]
["DSI_B_CLK_P","AH11","AT15","AR18","unused_DSI_B_CLK_P",null,"DSI_B_CLK_P",null,null,null,null,null,null,null,null,null,null,null,null,null,"avdd_csi_dsi",null,null,null,null,null,null,null,null,null,"unused_DSI_B_CLK_P"]
["DSI_B_D0_N","AH12","AT22","AP21","unused_DSI_B_D0_N",null,"DSI_B_D0_N",null,null,null,null,null,null,null,null,null,null,null,null,null,"avdd_csi_dsi",null,null,null,null,null,null,null,null,null,"unused_DSI_B_D0_N"]
["DSI_B_D0_P","AJ12","AT21","AR21","unused_DSI_B_D0_P",null,"DSI_B_D0_P",null,null,null,null,null,null,null,null,null,null,null,null,null,"avdd_csi_dsi",null,null,null,null,null,null,null,null,null,"unused_DSI_B_D0_P"]
["DSI_B_D1_N","AE12","AR16","AP15","unused_DSI_B_D1_N",null,"DSI_B_D1_N",null,null,null,null,null,null,null,null,null,null,null,null,null,"avdd_csi_dsi",null,null,null,null,null,null,null,null,null,"unused_DSI_B_D1_N"]
["DSI_B_D1_P","AD12","AP16","AR15","unused_DSI_B_D1_P",null,"DSI_B_D1_P",null,null,null,null,null,null,null,null,null,null,null,null,null,"avdd_csi_dsi",null,null,null,null,null,null,null,null,null,"unused_DSI_B_D1_P"]
["DSI_B_D2_N","AL12","AT18","AP19","unused_DSI_B_D2_N",null,"DSI_B_D2_N",null,null,null,null,null,null,null,null,null,null,null,null,null,"avdd_csi_dsi",null,null,null,null,null,null,null,null,null,"unused_DSI_B_D2_N"]
["DSI_B_D2_P","AK12","AT17","AR19","unused_DSI_B_D2_P",null,"DSI_B_D2_P",null,null,null,null,null,null,null,null,null,null,null,null,null,"avdd_csi_dsi",null,null,null,null,null,null,null,null,null,"unused_DSI_B_D2_P"]
["DSI_B_D3_N","AF12","AV19","AP16","unused_DSI_B_D3_N",null,"DSI_B_D3_N",null,null,null,null,null,null,null,null,null,null,null,null,null,"avdd_csi_dsi",null,null,null,null,null,null,null,null,null,"unused_DSI_B_D3_N"]
["DSI_B_D3_P","AG12","AV20","AR16","unused_DSI_B_D3_P",null,"DSI_B_D3_P",null,null,null,null,null,null,null,null,null,null,null,null,null,"avdd_csi_dsi",null,null,null,null,null,null,null,null,null,"unused_DSI_B_D3_P"]
["CSI_DSI_RUP","AF11","AR22","AR22","unused_CSI_DSI_RUP",null,"CSI_DSI_RUP",null,null,null,null,null,null,null,null,null,null,null,null,null,"avdd_csi_dsi",null,null,null,null,null,null,null,null,null,"CSI_DSI_RUP",null,null,null,null,null,453,null,null,null,"DSI_CSI_RUP",null,null,"CSI_DSI_RUP","CSI_DSI_RUP","CSI_DSI_RUP","CSI_DSI_RUP"]
["CSI_DSI_RDN","AG11","AP22","AP22","unused_CSI_DSI_RDN",null,"CSI_DSI_RDN",null,null,null,null,null,null,null,null,null,null,null,null,null,"avdd_csi_dsi",null,null,null,null,null,null,null,null,null,"CSI_DSI_RDN",null,null,null,null,null,null,49.9,null,null,"DSI_CSI_RDN",null,null,"CSI_DSI_RDN","CSI_DSI_RDN","CSI_DSI_RDN","CSI_DSI_RDN"]
["LVDS / eDP",null,null,null,null,null,null,null,null,null,null,null,null,null,null,null,null,null,null,null,null,null,null,null,null,null,null,null,null,null,null,null,null,null,null,null,null,null,null,"1.05V"]
["LVDS0_TXD0N","AJ2","AT8",null,"unused_LVDS0_TXD0N",null,"LVDS0_TXD0N",null,null,null,null,null,null,null,null,null,null,null,null,null,"avdd_lvds0_io",null,null,null,null,null,null,null,null,null,"unused_LVDS0_TXD0N",null,null,null,null,null,null,null,null,null,"Modified; Unused","J3A1",33,"eDP or LVDS","eDP or LVDS","eDP or LVDS","eDP or LVDS"]
["LVDS0_TXD0P","AJ3","AU8",null,"unused_LVDS0_TXD0P",null,"LVDS0_TXD0P",null,null,null,null,null,null,null,null,null,null,null,null,null,"avdd_lvds0_io",null,null,null,null,null,null,null,null,null,"unused_LVDS0_TXD0P",null,null,null,null,null,null,null,null,null,"Modified; Unused","J3A1",31]
["LVDS0_TXD1N","AG3","AR8",null,"unused_LVDS0_TXD1N",null,"LVDS0_TXD1N",null,null,null,null,null,null,null,null,null,null,null,null,null,"avdd_lvds0_io",null,null,null,null,null,null,null,null,null,"unused_LVDS0_TXD1N",null,null,null,null,null,null,null,null,null,"Modified; Unused","J3A1",36]
["LVDS0_TXD1P","AG4","AP8",null,"unused_LVDS0_TXD1P",null,"LVDS0_TXD1P",null,null,null,null,null,null,null,null,null,null,null,null,null,"avdd_lvds0_io",null,null,null,null,null,null,null,null,null,"unused_LVDS0_TXD1P",null,null,null,null,null,null,null,null,null,"Modified; Unused","J3A1",34]
["LVDS0_TXD2N","AG5","AV7",null,"unused_LVDS0_TXD2N",null,"LVDS0_TXD2N",null,null,null,null,null,null,null,null,null,null,null,null,null,"avdd_lvds0_io",null,null,null,null,null,null,null,null,null,"unused_LVDS0_TXD2N",null,null,null,null,null,null,null,null,null,"Modified; UNused","J3A1",42]
["LVDS0_TXD2P","AG6","AV8",null,"unused_LVDS0_TXD2P",null,"LVDS0_TXD2P",null,null,null,null,null,null,null,null,null,null,null,null,null,"avdd_lvds0_io",null,null,null,null,null,null,null,null,null,"unused_LVDS0_TXD2P",null,null,null,null,null,null,null,null,null,"Modified; Unused","J3A1",40]
["LVDS0_TXD3N","AG1","AU7",null,"unused_LVDS0_TXD3N",null,"LVDS0_TXD3N",null,null,null,null,null,null,null,null,null,null,null,null,null,"avdd_lvds0_io",null,null,null,null,null,null,null,null,null,"unused_LVDS0_TXD3N",null,null,null,null,null,null,null,null,null,"Modified; Unused","J3A1",39]
["LVDS0_TXD3P","AG2","AT7",null,"unused_LVDS0_TXD3P",null,"LVDS0_TXD3P",null,null,null,null,null,null,null,null,null,null,null,null,null,"avdd_lvds0_io",null,null,null,null,null,null,null,null,null,"unused_LVDS0_TXD3P",null,null,null,null,null,null,null,null,null,"Modified; Unused","J3A1",37]
["LVDS0_TXD4N","AF3","AT5",null,"unused_LVDS0_TXD4N",null,"LVDS0_TXD4N",null,null,null,null,null,null,null,null,null,null,null,null,null,"avdd_lvds0_io",null,null,null,null,null,null,null,null,null,"unused_LVDS0_TXD4N",null,null,null,null,null,null,null,null,null,"Modified; Unused","J3A1",43]
["LVDS0_TXD4P","AF4","AT6",null,"unused_LVDS0_TXD4P",null,"LVDS0_TXD4P",null,null,null,null,null,null,null,null,null,null,null,null,null,"avdd_lvds0_io",null,null,null,null,null,null,null,null,null,"unused_LVDS0_TXD4P",null,null,null,null,null,null,null,null,null,"Modified; Unused","J3A1",45]
["LVDS0_RSET","AK3","AT9",null,"unused_LVDS0_RSET",null,"LVDS0_RSET",null,null,null,null,null,null,null,null,null,null,null,null,null,"avdd_lvds0_io",null,null,null,null,null,null,null,null,null,"LVDS0_RSET",null,null,null,null,null,null,"1K",null,null,"LVDS_RSET"]
["LVDS0_PROBE","AL3",null,null,"unused_LVDS0_PROBE",null,"LVDS0_PROBE",null,null,null,null,null,null,null,null,null,null,null,null,null,"avdd_lvds0_io",null,null,null,null,null,null,null,null,null,"unused_LVDS0_PROBE"]
["HDMI",null,null,null,null,null,null,null,null,null,null,null,null,null,null,null,null,null,null,null,null,null,null,null,null,null,null,null,null,null,null,null,null,null,null,null,null,null,null,"3.3V"]
["HDMI_TXCN","AF5","AV4","AT7","unused_HDMI_TXCN",null,"HDMI_TXCN",null,null,null,null,null,null,null,null,null,null,null,null,null,"avdd_hdmi",null,null,null,null,null,null,null,null,null,"HDMI_TXCN",null,null,null,null,null,null,null,null,null,"HDMI_TXC_N","J1C1",12,"HDMI","HDMI","HDMI","HDMI"]
["HDMI_TXCP","AF6","AV5","AT6","unused_HDMI_TXCP",null,"HDMI_TXCP",null,null,null,null,null,null,null,null,null,null,null,null,null,"avdd_hdmi",null,null,null,null,null,null,null,null,null,"HDMI_TXCP",null,null,null,null,null,null,null,null,null,"HDMI_TXC_P","J1C1",10]
["HDMI_TXD0N","AD5","AR2","AN2","unused_HDMI_TXD0N",null,"HDMI_TXD0N",null,null,null,null,null,null,null,null,null,null,null,null,null,"avdd_hdmi",null,null,null,null,null,null,null,null,null,"HDMI_TXD0N",null,null,null,null,null,null,null,null,null,"HDMI_TXD_N<0>","J1C1",9]
["HDMI_TXD0P","AD6","AT2","AN3","unused_HDMI_TXD0P",null,"HDMI_TXD0P",null,null,null,null,null,null,null,null,null,null,null,null,null,"avdd_hdmi",null,null,null,null,null,null,null,null,null,"HDMI_TXD0P",null,null,null,null,null,null,null,null,null,"HDMI_TXD_P<0>","J1C1",7]
["HDMI_TXD1N","AD4","AU2","AP2","unused_HDMI_TXD1N",null,"HDMI_TXD1N",null,null,null,null,null,null,null,null,null,null,null,null,null,"avdd_hdmi",null,null,null,null,null,null,null,null,null,"HDMI_TXD1N",null,null,null,null,null,null,null,null,null,"HDMI_TXD_N<1>","J1C1",6]
["HDMI_TXD1P","AD3","AU3","AR2","unused_HDMI_TXD1P",null,"HDMI_TXD1P",null,null,null,null,null,null,null,null,null,null,null,null,null,"avdd_hdmi",null,null,null,null,null,null,null,null,null,"HDMI_TXD1P",null,null,null,null,null,null,null,null,null,"HDMI_TXD_P<1>","J1C1",4]
["HDMI_TXD2N","AD2","AU4","AP4","unused_HDMI_TXD2N",null,"HDMI_TXD2N",null,null,null,null,null,null,null,null,null,null,null,null,null,"avdd_hdmi",null,null,null,null,null,null,null,null,null,"HDMI_TXD2N",null,null,null,null,null,null,null,null,null,"HDMI_TXD_N<2>","J1C1",3]
["HDMI_TXD2P","AD1","AU5","AR4","unused_HDMI_TXD2P",null,"HDMI_TXD2P",null,null,null,null,null,null,null,null,null,null,null,null,null,"avdd_hdmi",null,null,null,null,null,null,null,null,null,"HDMI_TXD2P",null,null,null,null,null,null,null,null,null,"HDMI_TXD_P<2>","J1C1",1]
["HDMI_RSET","AF2","AR3","AN1","unused_HDMI_RSET",null,"HDMI_RSET",null,null,null,null,null,null,null,null,null,null,null,null,null,"avdd_hdmi",null,null,null,null,null,null,null,null,null,"HDMI_RSET",null,null,null,null,null,null,"1K",null,null,"HDMI_RSET"]
["HDMI_PROBE","AE1",null,null,"unused_HDMI_PROBE",null,"HDMI_PROBE",null,null,null,null,null,null,null,null,null,null,null,null,null,"avdd_hdmi",null,null,null,null,null,null,null,null,null,"unused_HDMI_PROBE"]
["HSIC",null,null,null,null,null,null,null,null,null,null,null,null,null,null,null,null,null,null,null,null,null,null,null,null,null,null,null,null,null,null,null,null,null,null,null,null,null,null,"1.2V"]
["HSIC1_DATA","AF18","AT27","AN30","unused_HSIC1_DATA",null,"HSIC1_DATA",null,null,null,null,null,null,null,null,null,null,null,null,null,"vddio_hsic",null,null,null,null,null,null,null,null,null,"unused_HSIC1_DATA",null,null,null,null,null,null,null,null,null,"Modified; Unused","J3A2",35,"\nHSIC 1\n","HSIC1","HSIC1","HSIC1"]
["HSIC1_STROBE","AE18","AP23","AM30","unused_HSIC1_STROBE",null,"HSIC1_STROBE",null,null,null,null,null,null,null,null,null,null,null,null,null,"vddio_hsic",null,null,null,null,null,null,null,null,null,"unused_HSIC1_STROBE",null,null,null,null,null,null,null,null,null,"Modified; Unused","J3A2",31]
["HSIC2_DATA","AG18","AT26","AN28","unused_HSIC2_DATA",null,"HSIC2_DATA",null,null,null,null,null,null,null,null,null,null,null,null,null,"vddio_hsic",null,null,null,null,null,null,null,null,null,"unused_HSIC2_DATA",null,null,null,null,null,null,null,null,null,null,null,null,null,"HSIC2","HSIC2","HSIC2"]
["HSIC2_STROBE","AD18","AR23","AP28","unused_HSIC2_STROBE",null,"HSIC2_STROBE",null,null,null,null,null,null,null,null,null,null,null,null,null,"vddio_hsic",null,null,null,null,null,null,null,null,null,"unused_HSIC2_STROBE"]
["HSIC_REXT","AH18","AT25","AR28","unused_HSIC_REXT",null,"HSIC_REXT",null,null,null,null,null,null,null,null,null,null,null,null,null,"vddio_hsic",null,null,null,null,null,null,null,null,null,"HSIC_REXT",null,null,null,null,null,null,"1K",null,null,"HSIC_REXT",null,null,"HSIC_REXT","HSIC_REXT","HSIC_REXT","HSIC_REXT"]
["USB 2.0",null,null,null,null,null,null,null,null,null,null,null,null,null,null,null,null,null,null,null,null,null,null,null,null,null,null,null,null,null,null,null,null,null,null,null,null,null,null,"3.3V"]
["USB0_ID","AK20","AT28","AM31","unused_USB0_ID",null,"USB0_ID",null,null,null,null,null,null,null,null,null,null,null,null,null,"avdd_usb",null,null,null,null,null,null,null,null,null,"USB0_ID",null,null,null,null,null,null,null,null,null,"USB0_ID",null,null,"USB2.0 Host/Device  ","USB2.0 Host/Device ","USB2.0 Host/Device ","USB2.0 Host/Device  "]
["USB0_VBUS","AL20","AT29","AN31","unused_USB0_VBUS",null,"USB0_VBUS",null,null,null,null,null,null,null,null,null,null,null,null,null,"avdd_usb",null,null,null,null,null,null,null,null,null,"USB0_VBUS",null,null,null,null,null,null,null,null,null,"USB0_VBUS"]
["USB0_DN","AH20","AP26","AT30","unused_USB0_DN",null,"USB0_DN",null,null,null,null,null,null,null,null,null,null,null,null,null,"avdd_usb",null,null,null,null,null,null,null,null,null,"USB0_DN",null,null,null,null,null,null,null,null,null,"USB0D_N"]
["USB0_DP","AJ20","AR26","AT31","unused_USB0_DP",null,"USB0_DP",null,null,null,null,null,null,null,null,null,null,null,null,null,"avdd_usb",null,null,null,null,null,null,null,null,null,"USB0_DP",null,null,null,null,null,null,null,null,null,"USB0D_P"]
["USB1_DN","AF20","AP25","AR30","unused_USB1_DN",null,"USB1_DN",null,null,null,null,null,null,null,null,null,null,null,null,null,"avdd_usb",null,null,null,null,null,null,null,null,null,"USB1_DN",null,null,null,null,null,null,null,null,null,"USB1D_N","J2D2",36,"USB2.0 Host  ","USB2.0 Host  ","USB2.0 Host  ","USB2.0 Host  "]
["USB1_DP","AG20","AR25","AP30","unused_USB1_DP",null,"USB1_DP",null,null,null,null,null,null,null,null,null,null,null,null,null,"avdd_usb",null,null,null,null,null,null,null,null,null,"USB1_DP",null,null,null,null,null,null,null,null,null,"USB1D_P","J2D2",38]
["USB2_DN","AE20","AR28",null,"unused_USB2_DN",null,"USB2_DN",null,null,null,null,null,null,null,null,null,null,null,null,null,"avdd_usb",null,null,null,null,null,null,null,null,null,"USB2_DN",null,null,null,null,null,null,null,null,null,"USB2D_N","J1C2",2,"USB3.0 Connector","USB2.0 Host  ","USB2.0 Host  ","USB2.0 Host  "]
["USB2_DP","AD20","AP28",null,"unused_USB2_DP",null,"USB2_DP",null,null,null,null,null,null,null,null,null,null,null,null,null,"avdd_usb",null,null,null,null,null,null,null,null,null,"USB2_DP",null,null,null,null,null,null,null,null,null,"USB2D_P","J1C2",3]
["USB_REXT","AL19","AT30","AP29","unused_USB_REXT",null,"USB_REXT",null,null,null,null,null,null,null,null,null,null,null,null,null,"avdd_usb",null,null,null,null,null,null,null,null,null,"USB_REXT",null,null,null,null,null,null,"1K",null,null,"USB_REXT",null,null,"USB_REXT","USB_REXT","USB_REXT","USB_REXT"]
["USB 3.0 + PEX",null,null,null,null,null,null,null,null,null,null,null,null,null,null,null,null,null,null,null,null,null,null,null,null,null,null,null,null,null,null,null,null,null,null,null,null,null,null,"3.3V"]
["USB3_RX0N","AL21","AP29","AR31","unused_USB3_RX0N",null,"USB3_RX0N",null,null,null,null,null,null,null,null,null,null,null,null,null,"dvddio_pex",null,null,null,null,null,null,null,null,null,"USB3_RX0N",null,null,null,null,null,null,null,null,null,"Modified: GbE PCIe","J1C2",5,"USB 3.0 SS Host Port 0","USB 3.0 #0","USB 3.0 #0","PCIe x1"]
["USB3_RX0P","AK21","AR29","AP31","unused_USB3_RX0P",null,"USB3_RX0P",null,null,null,null,null,null,null,null,null,null,null,null,null,"dvddio_pex",null,null,null,null,null,null,null,null,null,"USB3_RX0P",null,null,null,null,null,null,null,null,null,"Modified: GbE PCIe","J1C2",6]
["USB3_TX0N","AJ21","AT33","AP33","unused_USB3_TX0N",null,"USB3_TX0N",null,null,null,null,null,null,null,null,null,null,null,null,null,"dvddio_pex",null,null,null,null,null,null,null,null,null,"USB3_TX0N",null,null,null,null,null,null,null,null,null,"Modified: GbE PCIe","J1C2",8]
["USB3_TX0P","AH21","AT32","AR33","unused_USB3_TX0P",null,"USB3_TX0P",null,null,null,null,null,null,null,null,null,null,null,null,null,"dvddio_pex",null,null,null,null,null,null,null,null,null,"USB3_TX0P",null,null,null,null,null,null,null,null,null,"Modified: GbE PCIe","J1C2",9]
["PEX_USB3_RX1N","AL23",null,null,"unused_PEX_USB3_RX1N",null,"PEX_USB3_RX1N",null,null,null,null,null,null,null,null,null,null,null,null,null,"dvddio_pex",null,null,null,null,null,null,null,null,null,"PEX_USB3_RX1N",null,null,null,null,null,null,null,null,null,"Modified: PCIE#0 3"]
["PEX_USB3_RX1P","AK23",null,null,"unused_PEX_USB3_RX1P",null,"PEX_USB3_RX1P",null,null,null,null,null,null,null,null,null,null,null,null,null,"dvddio_pex",null,null,null,null,null,null,null,null,null,"PEX_USB3_RX1P",null,null,null,null,null,null,null,null,null,"Modified: PCIE#0 3"]
["PEX_USB3_TX1N","AG21",null,null,"unused_PEX_USB3_TX1N",null,"PEX_USB3_TX1N",null,null,null,null,null,null,null,null,null,null,null,null,null,"dvddio_pex",null,null,null,null,null,null,null,null,null,"PEX_USB3_TX1N",null,null,null,null,null,null,null,null,null,"Modified: PCIE#0 3"]
["PEX_USB3_TX1P","AF21",null,null,"unused_PEX_USB3_TX1P",null,"PEX_USB3_TX1P",null,null,null,null,null,null,null,null,null,null,null,null,null,"dvddio_pex",null,null,null,null,null,null,null,null,null,"PEX_USB3_TX1P",null,null,null,null,null,null,null,null,null,"Modified: PCIE#0 3"]
["USB3_RX1N",null,"AR35",null,"unused_USB3_RX1N",null,"USB3_RX1N",null,null,null,null,null,null,null,null,null,null,null,null,null,"dvddio_pex",null,null,null,null,null,null,null,null,null,"USB3_RX1N",null,null,null,null,null,null,null,null,null,"Modified: USB3",null,null,null,"PCIe x 4","PCIe x 4","PCIe x 4"]
["USB3_RX1P",null,"AR36",null,"unused_USB3_RX1P",null,"USB3_RX1P",null,null,null,null,null,null,null,null,null,null,null,null,null,"dvddio_pex",null,null,null,null,null,null,null,null,null,"USB3_RX1P",null,null,null,null,null,null,null,null,null,"Modified: USB3"]
["USB3_TX1N",null,"AP34",null,"unused_USB3_TX1N",null,"USB3_TX1N",null,null,null,null,null,null,null,null,null,null,null,null,null,"dvddio_pex",null,null,null,null,null,null,null,null,null,"USB3_TX1N",null,null,null,null,null,null,null,null,null,"Modified: USB3"]
["USB3_TX1P",null,"AR34",null,"unused_USB3_TX1P",null,"USB3_TX1P",null,null,null,null,null,null,null,null,null,null,null,null,null,"dvddio_pex",null,null,null,null,null,null,null,null,null,"USB3_TX1P",null,null,null,null,null,null,null,null,null,"Modified: USB3"]
["PEX_RX2N","AE21",null,null,"unused_PEX_RX2N",null,"PEX_RX2N",null,null,null,null,null,null,null,null,null,null,null,null,null,"dvddio_pex",null,null,null,null,null,null,null,null,null,"PEX_RX2N",null,null,null,null,null,null,null,null,null,"PEX_RX2_N",null,null,"PCIe x1\nGigE LAN\n(Realtek RTL811GS)"]
["PEX_RX2P","AD21",null,null,"unused_PEX_RX2P",null,"PEX_RX2P",null,null,null,null,null,null,null,null,null,null,null,null,null,"dvddio_pex",null,null,null,null,null,null,null,null,null,"PEX_RX2P",null,null,null,null,null,null,null,null,null,"PEX_RX2_P"]
["PEX_TX2N","AJ23",null,null,"unused_PEX_TX2N",null,"PEX_TX2N",null,null,null,null,null,null,null,null,null,null,null,null,null,"dvddio_pex",null,null,null,null,null,null,null,null,null,"PEX_TX2N",null,null,null,null,null,null,null,null,null,"PEX_TX2_C_N"]
["PEX_TX2P","AH23",null,null,"unused_PEX_TX2P",null,"PEX_TX2P",null,null,null,null,null,null,null,null,null,null,null,null,null,"dvddio_pex",null,null,null,null,null,null,null,null,null,"PEX_TX2P",null,null,null,null,null,null,null,null,null,"PEX_TX2_C_P"]
["PEX_RX3N","AK24",null,null,"unused_PEX_RX3N",null,"PEX_RX3N",null,null,null,null,null,null,null,null,null,null,null,null,null,"dvddio_pex",null,null,null,null,null,null,null,null,null,"PEX_RX3N",null,null,null,null,null,null,null,null,null,"Modified: CIE#0_2"]
["PEX_RX3P","AL24",null,null,"unused_PEX_RX3P",null,"PEX_RX3P",null,null,null,null,null,null,null,null,null,null,null,null,null,"dvddio_pex",null,null,null,null,null,null,null,null,null,"PEX_RX3P"]
["PEX_TX3N","AG23",null,null,"unused_PEX_TX3N",null,"PEX_TX3N",null,null,null,null,null,null,null,null,null,null,null,null,null,"dvddio_pex",null,null,null,null,null,null,null,null,null,"PEX_TX3N"]
["PEX_TX3P","AF23",null,null,"unused_PEX_TX3P",null,"PEX_TX3P",null,null,null,null,null,null,null,null,null,null,null,null,null,"dvddio_pex",null,null,null,null,null,null,null,null,null,"PEX_TX3P",null,null,null,null,null,null,null,null,null,"Modified: PCIE#0 2"]
["PEX_RX4N","AL26",null,null,"unused_PEX_RX4N",null,"PEX_RX4N",null,null,null,null,null,null,null,null,null,null,null,null,null,"dvddio_pex",null,null,null,null,null,null,null,null,null,"PEX_RX4N",null,null,null,null,null,null,null,null,null,"PEX_RX4_N","J2D2",23,"PCIe x1\nMini PCIe Connector"]
["PEX_RX4P","AK26",null,null,"unused_PEX_RX4P",null,"PEX_RX4P",null,null,null,null,null,null,null,null,null,null,null,null,null,"dvddio_pex",null,null,null,null,null,null,null,null,null,"PEX_RX4P",null,null,null,null,null,null,null,null,null,"PEX_RX4_P","J2D2",25]
["PEX_TX4N","AH26",null,null,"unused_PEX_TX4N",null,"PEX_TX4N",null,null,null,null,null,null,null,null,null,null,null,null,null,"dvddio_pex",null,null,null,null,null,null,null,null,null,"PEX_TX4N",null,null,null,null,null,null,null,null,null,"PEX_TX4_N","J2D2",31]
["PEX_TX4P","AJ26",null,null,"unused_PEX_TX4P",null,"PEX_TX4P",null,null,null,null,null,null,null,null,null,null,null,null,null,"dvddio_pex",null,null,null,null,null,null,null,null,null,"PEX_TX4P",null,null,null,null,null,null,null,null,null,"PEX_TX4_P","J2D2",33]
["PEX_REFCLKN","AJ24",null,null,"unused_PEX_REFCLKN",null,"PEX_REFCLKN",null,null,null,null,null,null,null,null,null,null,null,null,null,"dvddio_pex",null,null,null,null,null,null,null,null,null,"unused_PEX_REFCLKN"]
["PEX_REFCLKP","AH24",null,null,"unused_PEX_REFCLKP",null,"PEX_REFCLKP",null,null,null,null,null,null,null,null,null,null,null,null,null,"dvddio_pex",null,null,null,null,null,null,null,null,null,"unused_PEX_REFCLKP"]
["PEX_TESTCLKN","AF24","AU35","AR35","unused_PEX_TESTCLKN",null,"PEX_TESTCLKN",null,null,null,null,null,null,null,null,null,null,null,null,null,"dvddio_pex",null,null,null,null,null,null,null,null,null,"unused_PEX_TESTCLKN",null,null,null,null,null,null,null,null,null,"TP_PEX_TESTCLK_N"]
["PEX_TESTCLKP","AG24","AU34","AP35","unused_PEX_TESTCLKP",null,"PEX_TESTCLKP",null,null,null,null,null,null,null,null,null,null,null,null,null,"dvddio_pex",null,null,null,null,null,null,null,null,null,"unused_PEX_TESTCLKP",null,null,null,null,null,null,null,null,null,"TP_PEX_TESTCLK_P"]
["PEX_TERMP","AL22","AT34","AP32","unused_PEX_TERMP",null,"PEX_TERMP",null,null,null,null,null,null,null,null,null,null,null,null,null,"dvddio_pex",null,null,null,null,null,null,null,null,null,"PEX_TERMP",null,null,null,null,null,null,"2.49K",null,null,"PEX_TERMP",null,null,"PEX_TERMP","PEX_TERMP","PEX_TERMP","PEX_TERMP"]
["PEX1_TERMP",null,"AT38",null,"unused_PEX1_TERMP",null,"PEX1_TERMP",null,null,null,null,null,null,null,null,null,null,null,null,null,"dvddio_pex",null,null,null,null,null,null,null,null,null,"unused_PEX_TERMP",null,null,null,null,null,null,"2.49K"]
["SATA",null,null,null,null,null,null,null,null,null,null,null,null,null,null,null,null,null,null,null,null,null,null,null,null,null,null,null,null,null,null,null,null,null,null,null,null,null,null,"1.2V"]
["SATA_L0_RXP","AJ27",null,null,"unused_SATA_L0_RXP",null,"SATA_L0_RXP",null,null,null,null,null,null,null,null,null,null,null,null,null,"vddio_sata",null,null,null,null,null,null,null,null,null,"SATA_L0_RXP",null,null,null,null,null,null,null,null,null,"SATA_L0_RX_P","J2D1",6,"SATA","SATA","USB 3.0 #1","USB 3.0 #1"]
["SATA_L0_RXN","AH27",null,null,"unused_SATA_L0_RXN",null,"SATA_L0_RXN",null,null,null,null,null,null,null,null,null,null,null,null,null,"vddio_sata",null,null,null,null,null,null,null,null,null,"SATA_L0_RXN",null,null,null,null,null,null,null,null,null,"SATA_L0_RX_N","J2D1",5]
["SATA_L0_TXP","AL27",null,null,"unused_SATA_L0_TXP",null,"SATA_L0_TXP",null,null,null,null,null,null,null,null,null,null,null,null,null,"vddio_sata",null,null,null,null,null,null,null,null,null,"SATA_L0_TXP",null,null,null,null,null,null,null,null,null,"SATA_L0_TX_P","J2D1",2]
["SATA_L0_TXN","AK27",null,null,"unused_SATA_L0_TXN",null,"SATA_L0_TXN",null,null,null,null,null,null,null,null,null,null,null,null,null,"vddio_sata",null,null,null,null,null,null,null,null,null,"SATA_L0_TXN",null,null,null,null,null,null,null,null,null,"SATA_L0_TX_N","J2D1",3]
["SATA_TESTCLKP","AG27",null,null,"unused_SATA_TESTCLKP",null,"SATA_TESTCLKP",null,null,null,null,null,null,null,null,null,null,null,null,null,"vddio_sata",null,null,null,null,null,null,null,null,null,"unused_SATA_TESTCLKP",null,null,null,null,null,null,null,null,null,"Modified; Unused"]
["SATA_TESTCLKN","AF27",null,null,"unused_SATA_TESTCLKN",null,"SATA_TESTCLKN",null,null,null,null,null,null,null,null,null,null,null,null,null,"vddio_sata",null,null,null,null,null,null,null,null,null,"unused_SATA_TESTCLKN",null,null,null,null,null,null,null,null,null,"Modified; Unused"]
["SATA_TERMP","AL25",null,null,"unused_SATA_TERMP",null,"SATA_TERMP",null,null,null,null,null,null,null,null,null,null,null,null,null,"vddio_sata",null,null,null,null,null,null,null,null,null,"SATA_TERMP",null,null,null,null,null,null,null,null,null,"SATA_TERMP"]
["THERM"]
["THERM_DP","U28","AB34","AA34","unused_THERM_DP",null,"THERM_DP",null,null,null,null,null,null,null,null,null,null,null,null,null,null,null,null,null,null,null,null,null,null,null,"THERM_DP",null,null,null,null,null,null,null,null,null,"THERMD_P",null,null,"Thermal Sensor","Thermal Sensor","Thermal Sensor","Thermal Sensor"]
["THERM_DN","U29","AB35","Y34","unused_THERM_DN",null,"THERM_DN",null,null,null,null,null,null,null,null,null,null,null,null,null,null,null,null,null,null,null,null,null,null,null,"THERM_DN",null,null,null,null,null,null,null,null,null,"THERMD_N"]
["XTAL"]
["XTAL_IN","E3","E1","A9","unused_XTAL_IN",null,"XTAL_IN",null,null,null,null,null,null,null,null,null,null,null,null,null,"avdd_osc",null,null,null,null,null,null,null,null,null,"XTAL_IN",null,null,null,null,null,null,null,null,null,"XTAL_OUT",null,null,"XTAL","XTAL","XTAL","XTAL"]
["XTAL_OUT","E4","E2","B9","unused_XTAL_OUT",null,"XTAL_OUT",null,null,null,null,null,null,null,null,null,null,null,null,null,"avdd_osc",null,null,null,null,null,null,null,null,null,"XTAL_OUT",null,null,null,null,null,null,null,null,null,"XTAL_IN"]